Body Name,Body,Date,Department,Beneficiary,Summary of Purpose (SeRCOP),Amount,Merchant Code,Transaction Number,Supplier ID
Sandwell Metropolitan Borough Council,http://www.sandwell.gov.uk/info/200202/performance_and_spending/1079/payments_over_500,01-Mar-2022,Adults Social Care Capital,AXIS EUROPE PLC ,Adults Social Care Capital,6240.39,Deferred Charges/Grant Payments,2122P12_CR00001,64946
Sandwell Metropolitan Borough Council,http://www.sandwell.gov.uk/info/200202/performance_and_spending/1079/payments_over_500,01-Mar-2022,Adults Social Care Capital,AXIS EUROPE PLC ,Adults Social Care Capital,6315.80,Deferred Charges/Grant Payments,2122P12_CR00002,64946
Sandwell Metropolitan Borough Council,http://www.sandwell.gov.uk/info/200202/performance_and_spending/1079/payments_over_500,01-Mar-2022,Adults Social Care Capital,DLM BUILDING & MAINTENANCE LTD,Adults Social Care Capital,7807.12,CIP - Infrastructure,2122P12_CR00003,137596
Sandwell Metropolitan Borough Council,http://www.sandwell.gov.uk/info/200202/performance_and_spending/1079/payments_over_500,01-Mar-2022,Adults Social Care Capital,DOLPHIN LIFTS MIDLANDS LTD,Adults Social Care Capital,2819.60,Deferred Charges/Grant Payments,2122P12_CR00004,123852
Sandwell Metropolitan Borough Council,http://www.sandwell.gov.uk/info/200202/performance_and_spending/1079/payments_over_500,01-Mar-2022,Adults Social Care Capital,DOLPHIN LIFTS MIDLANDS LTD,Adults Social Care Capital,3594.99,Deferred Charges/Grant Payments,2122P12_CR00005,123852
Sandwell Metropolitan Borough Council,http://www.sandwell.gov.uk/info/200202/performance_and_spending/1079/payments_over_500,23-Mar-2022,Adults Social Care Capital,DOLPHIN LIFTS MIDLANDS LTD,Adults Social Care Capital,5774.99,Deferred Charges/Grant Payments,2122P12_CR00006,123852
Sandwell Metropolitan Borough Council,http://www.sandwell.gov.uk/info/200202/performance_and_spending/1079/payments_over_500,01-Mar-2022,Adults Social Care Capital,LIFT & ENGINEERING SERVICES LTD,Adults Social Care Capital,6115.36,"CIP - New Construction,Conversion, Enhancement & Reno",2122P12_CR00007,77003962
Sandwell Metropolitan Borough Council,http://www.sandwell.gov.uk/info/200202/performance_and_spending/1079/payments_over_500,08-Mar-2022,Adults Social Care Capital,LIFT & ENGINEERING SERVICES LTD,Adults Social Care Capital,6032.06,"CIP - New Construction,Conversion, Enhancement & Reno",2122P12_CR00008,77003962
Sandwell Metropolitan Borough Council,http://www.sandwell.gov.uk/info/200202/performance_and_spending/1079/payments_over_500,08-Mar-2022,Adults Social Care Capital,LIFT & ENGINEERING SERVICES LTD,Adults Social Care Capital,6949.30,"CIP - New Construction,Conversion, Enhancement & Reno",2122P12_CR00009,77003962
Sandwell Metropolitan Borough Council,http://www.sandwell.gov.uk/info/200202/performance_and_spending/1079/payments_over_500,01-Mar-2022,Adults Social Care Capital,PR PROPERTY MAINTENANCE,Adults Social Care Capital,9474.32,Deferred Charges/Grant Payments,2122P12_CR00010,33836
Sandwell Metropolitan Borough Council,http://www.sandwell.gov.uk/info/200202/performance_and_spending/1079/payments_over_500,01-Mar-2022,Adults Social Care Capital,PR PROPERTY MAINTENANCE,Adults Social Care Capital,7963.41,Deferred Charges/Grant Payments,2122P12_CR00011,33836
Sandwell Metropolitan Borough Council,http://www.sandwell.gov.uk/info/200202/performance_and_spending/1079/payments_over_500,01-Mar-2022,Adults Social Care Capital,RIDGE & PARTNERS LLP,Adults Social Care Capital,1500.00,"CIP - New Construction,Conversion, Enhancement & Reno",2122P12_CR00012,134994
Sandwell Metropolitan Borough Council,http://www.sandwell.gov.uk/info/200202/performance_and_spending/1079/payments_over_500,01-Mar-2022,Adults Social Care Capital,T.A. SMITH (BUILDERS) LIMITED,Adults Social Care Capital,15096.95,Deferred Charges/Grant Payments,2122P12_CR00013,89846
Sandwell Metropolitan Borough Council,http://www.sandwell.gov.uk/info/200202/performance_and_spending/1079/payments_over_500,01-Mar-2022,Adults Social Care Capital,TERRY GROUP LIMITED,Adults Social Care Capital,9480.25,Deferred Charges/Grant Payments,2122P12_CR00014,77002029
Sandwell Metropolitan Borough Council,http://www.sandwell.gov.uk/info/200202/performance_and_spending/1079/payments_over_500,23-Mar-2022,Adults Social Care Capital,VINCI CONSTRUCTION LTD,Adults Social Care Capital,35441.53,Deferred Charges/Grant Payments,2122P12_CR00015,36361
Sandwell Metropolitan Borough Council,http://www.sandwell.gov.uk/info/200202/performance_and_spending/1079/payments_over_500,14-Mar-2022,Adults Social Care Capital,WILLMOTT DIXON CONSTRUCTION LIMITED,Adults Social Care Capital,891259.99,"CIP - New Construction,Conversion, Enhancement & Reno",2122P12_CR00016,34081
Sandwell Metropolitan Borough Council,http://www.sandwell.gov.uk/info/200202/performance_and_spending/1079/payments_over_500,07-Mar-2022,Adults Social Care Capital,HOME DESIGN,Adults Social Care Capital,10500.00,Deferred Charges/Grant Payments,2122P12_CR00017,141847
Sandwell Metropolitan Borough Council,http://www.sandwell.gov.uk/info/200202/performance_and_spending/1079/payments_over_500,04-Mar-2022,Adults Social Care Capital,LIFT SEAT LIMITED,Adults Social Care Capital,3999.00,Deferred Charges/Grant Payments,2122P12_CR00018,162402
Sandwell Metropolitan Borough Council,http://www.sandwell.gov.uk/info/200202/performance_and_spending/1079/payments_over_500,01-Mar-2022,Adults Social Care Capital,SAFESPACES (CORNHOLME) LTD,Adults Social Care Capital,7346.44,Deferred Charges/Grant Payments,2122P12_CR00019,65847
Sandwell Metropolitan Borough Council,http://www.sandwell.gov.uk/info/200202/performance_and_spending/1079/payments_over_500,01-Mar-2022,Adults Social Care Capital,SPECTOR DESIGN LTD,Adults Social Care Capital,4200.00,Deferred Charges/Grant Payments,2122P12_CR00020,134898
Sandwell Metropolitan Borough Council,http://www.sandwell.gov.uk/info/200202/performance_and_spending/1079/payments_over_500,01-Mar-2022,Adults Social Care Capital,SPECTOR DESIGN LTD,Adults Social Care Capital,15000.00,Deferred Charges/Grant Payments,2122P12_CR00021,134898
Sandwell Metropolitan Borough Council,http://www.sandwell.gov.uk/info/200202/performance_and_spending/1079/payments_over_500,06-Mar-2022,Adults Social Care Capital,SPECTOR DESIGN LTD,Adults Social Care Capital,2752.72,Deferred Charges/Grant Payments,2122P12_CR00022,134898
Sandwell Metropolitan Borough Council,http://www.sandwell.gov.uk/info/200202/performance_and_spending/1079/payments_over_500,01-Mar-2022,Adults Social Care Capital,TDF DESIGN LIMITED,Adults Social Care Capital,14695.20,Deferred Charges/Grant Payments,2122P12_CR00023,10320
Sandwell Metropolitan Borough Council,http://www.sandwell.gov.uk/info/200202/performance_and_spending/1079/payments_over_500,16-Mar-2022,Adults Social Care Capital,TDF DESIGN LIMITED,Adults Social Care Capital,8808.94,Deferred Charges/Grant Payments,2122P12_CR00024,10320
Sandwell Metropolitan Borough Council,http://www.sandwell.gov.uk/info/200202/performance_and_spending/1079/payments_over_500,16-Mar-2022,Adults Social Care Capital,TDF DESIGN LIMITED,Adults Social Care Capital,9635.33,Deferred Charges/Grant Payments,2122P12_CR00025,10320
Sandwell Metropolitan Borough Council,http://www.sandwell.gov.uk/info/200202/performance_and_spending/1079/payments_over_500,01-Mar-2022,Childrens Services,121 CARZ,Childrens Services,4594.73,Public Transport,2122P12_CR00026,116848
Sandwell Metropolitan Borough Council,http://www.sandwell.gov.uk/info/200202/performance_and_spending/1079/payments_over_500,01-Mar-2022,Childrens Services,121 CARZ,Childrens Services,2292.95,Public Transport,2122P12_CR00027,116848
Sandwell Metropolitan Borough Council,http://www.sandwell.gov.uk/info/200202/performance_and_spending/1079/payments_over_500,01-Mar-2022,Childrens Services,121 CARZ,Childrens Services,1638.00,Public Transport,2122P12_CR00028,116848
Sandwell Metropolitan Borough Council,http://www.sandwell.gov.uk/info/200202/performance_and_spending/1079/payments_over_500,01-Mar-2022,Childrens Services,121 CARZ,Childrens Services,2191.04,Public Transport,2122P12_CR00029,116848
Sandwell Metropolitan Borough Council,http://www.sandwell.gov.uk/info/200202/performance_and_spending/1079/payments_over_500,01-Mar-2022,Childrens Services,121 CARZ,Childrens Services,1646.67,Public Transport,2122P12_CR00030,116848
Sandwell Metropolitan Borough Council,http://www.sandwell.gov.uk/info/200202/performance_and_spending/1079/payments_over_500,01-Mar-2022,Childrens Services,121 CARZ,Childrens Services,1200.00,Public Transport,2122P12_CR00031,116848
Sandwell Metropolitan Borough Council,http://www.sandwell.gov.uk/info/200202/performance_and_spending/1079/payments_over_500,01-Mar-2022,Childrens Services,121 CARZ,Childrens Services,3308.98,Public Transport,2122P12_CR00032,116848
Sandwell Metropolitan Borough Council,http://www.sandwell.gov.uk/info/200202/performance_and_spending/1079/payments_over_500,01-Mar-2022,Childrens Services,121 CARZ,Childrens Services,1638.00,Public Transport,2122P12_CR00033,116848
Sandwell Metropolitan Borough Council,http://www.sandwell.gov.uk/info/200202/performance_and_spending/1079/payments_over_500,01-Mar-2022,Childrens Services,121 CARZ,Childrens Services,4594.73,Public Transport,2122P12_CR00034,116848
Sandwell Metropolitan Borough Council,http://www.sandwell.gov.uk/info/200202/performance_and_spending/1079/payments_over_500,01-Mar-2022,Childrens Services,121 CARZ,Childrens Services,1646.67,Public Transport,2122P12_CR00035,116848
Sandwell Metropolitan Borough Council,http://www.sandwell.gov.uk/info/200202/performance_and_spending/1079/payments_over_500,01-Mar-2022,Childrens Services,121 CARZ,Childrens Services,2191.04,Public Transport,2122P12_CR00036,116848
Sandwell Metropolitan Borough Council,http://www.sandwell.gov.uk/info/200202/performance_and_spending/1079/payments_over_500,01-Mar-2022,Childrens Services,121 CARZ,Childrens Services,1272.00,Public Transport,2122P12_CR00037,116848
Sandwell Metropolitan Borough Council,http://www.sandwell.gov.uk/info/200202/performance_and_spending/1079/payments_over_500,03-Mar-2022,Childrens Services,4 COMMUNITY TRUST CIC,Childrens Services,716.39,Externally Purchased Professional Services ,2122P12_CR00038,137880
Sandwell Metropolitan Borough Council,http://www.sandwell.gov.uk/info/200202/performance_and_spending/1079/payments_over_500,01-Mar-2022,Childrens Services,4 COMMUNITY TRUST CIC,Childrens Services,716.39,Externally Purchased Professional Services ,2122P12_CR00039,137880
Sandwell Metropolitan Borough Council,http://www.sandwell.gov.uk/info/200202/performance_and_spending/1079/payments_over_500,15-Mar-2022,Childrens Services,4 COMMUNITY TRUST CIC,Childrens Services,5000.00,Grant Payments,2122P12_CR00040,137880
Sandwell Metropolitan Borough Council,http://www.sandwell.gov.uk/info/200202/performance_and_spending/1079/payments_over_500,15-Mar-2022,Childrens Services,4 COMMUNITY TRUST CIC,Childrens Services,560.00,Grants,2122P12_CR00041,137880
Sandwell Metropolitan Borough Council,http://www.sandwell.gov.uk/info/200202/performance_and_spending/1079/payments_over_500,10-Mar-2022,Childrens Services,ABBEY JUNIOR SCHOOL ,Childrens Services,1500.00,Grants,2122P12_CR00042,04031024
Sandwell Metropolitan Borough Council,http://www.sandwell.gov.uk/info/200202/performance_and_spending/1079/payments_over_500,01-Mar-2022,Childrens Services,AGENTIS WORKWEAR LIMITED,Childrens Services,574.00,Protective Clothing & Uniforms,2122P12_CR00043,131966
Sandwell Metropolitan Borough Council,http://www.sandwell.gov.uk/info/200202/performance_and_spending/1079/payments_over_500,01-Mar-2022,Childrens Services,AMP BIOMASS FUEL LTD T/A AMP CLEAN ENERGY,Childrens Services,2498.54,Ingestre Hall Arts Centre,2122P12_CR00044,128761
Sandwell Metropolitan Borough Council,http://www.sandwell.gov.uk/info/200202/performance_and_spending/1079/payments_over_500,04-Mar-2022,Childrens Services,AMP BIOMASS FUEL LTD T/A AMP CLEAN ENERGY,Childrens Services,3056.14,Ingestre Hall Arts Centre,2122P12_CR00045,128761
Sandwell Metropolitan Borough Council,http://www.sandwell.gov.uk/info/200202/performance_and_spending/1079/payments_over_500,01-Mar-2022,Childrens Services,ASPECT POWDER COATINGS LTD,Childrens Services,1010.75,Externally Purchased Professional Services ,2122P12_CR00046,56653
Sandwell Metropolitan Borough Council,http://www.sandwell.gov.uk/info/200202/performance_and_spending/1079/payments_over_500,14-Mar-2022,Childrens Services,AVANTI GAS LIMITED,Childrens Services,2354.36,Gas,2122P12_CR00047,60069
Sandwell Metropolitan Borough Council,http://www.sandwell.gov.uk/info/200202/performance_and_spending/1079/payments_over_500,01-Mar-2022,Childrens Services,BAINS TRAVEL,Childrens Services,2084.67,Public Transport,2122P12_CR00048,06002298
Sandwell Metropolitan Borough Council,http://www.sandwell.gov.uk/info/200202/performance_and_spending/1079/payments_over_500,01-Mar-2022,Childrens Services,BAINS TRAVEL,Childrens Services,1378.00,Public Transport,2122P12_CR00049,06002298
Sandwell Metropolitan Borough Council,http://www.sandwell.gov.uk/info/200202/performance_and_spending/1079/payments_over_500,01-Mar-2022,Childrens Services,BAINS TRAVEL,Childrens Services,1225.00,Public Transport,2122P12_CR00050,06002298
Sandwell Metropolitan Borough Council,http://www.sandwell.gov.uk/info/200202/performance_and_spending/1079/payments_over_500,01-Mar-2022,Childrens Services,BAINS TRAVEL,Childrens Services,2080.00,Public Transport,2122P12_CR00051,06002298
Sandwell Metropolitan Borough Council,http://www.sandwell.gov.uk/info/200202/performance_and_spending/1079/payments_over_500,01-Mar-2022,Childrens Services,BANGLADESHI WOMEN'S ASSOCIATION LIMITED,Childrens Services,1010.75,Externally Purchased Professional Services ,2122P12_CR00052,69648
Sandwell Metropolitan Borough Council,http://www.sandwell.gov.uk/info/200202/performance_and_spending/1079/payments_over_500,01-Mar-2022,Childrens Services,BLAKEMORE FOOD SERVICE LTD,Childrens Services,624.00,Catering Provisions,2122P12_CR00053,2518
Sandwell Metropolitan Borough Council,http://www.sandwell.gov.uk/info/200202/performance_and_spending/1079/payments_over_500,17-Mar-2022,Childrens Services,BLAKEMORE FOOD SERVICE LTD,Childrens Services,529.10,Catering Provisions,2122P12_CR00054,2518
Sandwell Metropolitan Borough Council,http://www.sandwell.gov.uk/info/200202/performance_and_spending/1079/payments_over_500,01-Mar-2022,Childrens Services,BLAKEMORE FOOD SERVICE LTD,Childrens Services,586.84,Catering Provisions,2122P12_CR00055,2518
Sandwell Metropolitan Borough Council,http://www.sandwell.gov.uk/info/200202/performance_and_spending/1079/payments_over_500,02-Mar-2022,Childrens Services,BLAKEMORE FOOD SERVICE LTD,Childrens Services,502.59,Catering Provisions,2122P12_CR00056,2518
Sandwell Metropolitan Borough Council,http://www.sandwell.gov.uk/info/200202/performance_and_spending/1079/payments_over_500,16-Mar-2022,Childrens Services,BLAKEMORE FOOD SERVICE LTD,Childrens Services,501.27,Catering Provisions,2122P12_CR00057,2518
Sandwell Metropolitan Borough Council,http://www.sandwell.gov.uk/info/200202/performance_and_spending/1079/payments_over_500,01-Mar-2022,Childrens Services,BUTT TAXIS,Childrens Services,4213.32,Public Transport,2122P12_CR00058,109306
Sandwell Metropolitan Borough Council,http://www.sandwell.gov.uk/info/200202/performance_and_spending/1079/payments_over_500,01-Mar-2022,Childrens Services,CANAL & RIVER TRUST,Childrens Services,864.00,Licences,2122P12_CR00059,01631306
Sandwell Metropolitan Borough Council,http://www.sandwell.gov.uk/info/200202/performance_and_spending/1079/payments_over_500,01-Mar-2022,Childrens Services,CARLYLE LTD,Childrens Services,716.39,Externally Purchased Professional Services ,2122P12_CR00060,01507965
Sandwell Metropolitan Borough Council,http://www.sandwell.gov.uk/info/200202/performance_and_spending/1079/payments_over_500,21-Mar-2022,Childrens Services,CARLYLE LTD,Childrens Services,716.39,Externally Purchased Professional Services ,2122P12_CR00061,01507965
Sandwell Metropolitan Borough Council,http://www.sandwell.gov.uk/info/200202/performance_and_spending/1079/payments_over_500,01-Mar-2022,Childrens Services,CERTAS ENERGY LIMITED,Childrens Services,2232.28,Oil,2122P12_CR00062,80421
Sandwell Metropolitan Borough Council,http://www.sandwell.gov.uk/info/200202/performance_and_spending/1079/payments_over_500,01-Mar-2022,Childrens Services,CHERYL DODD LTD,Childrens Services,1800.00,Externally Purchased Professional Services ,2122P12_CR00063,161817
Sandwell Metropolitan Borough Council,http://www.sandwell.gov.uk/info/200202/performance_and_spending/1079/payments_over_500,04-Mar-2022,Childrens Services,CHRIST CHURCH C OF E (AIDED) PRIMARY SCHOOL,Childrens Services,1500.00,Grants,2122P12_CR00064,1705
Sandwell Metropolitan Borough Council,http://www.sandwell.gov.uk/info/200202/performance_and_spending/1079/payments_over_500,04-Mar-2022,Childrens Services,CHRIST CHURCH C OF E (AIDED) PRIMARY SCHOOL,Childrens Services,1500.00,Grants,2122P12_CR00065,1705
Sandwell Metropolitan Borough Council,http://www.sandwell.gov.uk/info/200202/performance_and_spending/1079/payments_over_500,01-Mar-2022,Childrens Services,CHUBB FIRE & SECURITY LIMITED t/a CHUBB ELECTRONIC SECURITY,Childrens Services,1056.00,Security,2122P12_CR00066,81343
Sandwell Metropolitan Borough Council,http://www.sandwell.gov.uk/info/200202/performance_and_spending/1079/payments_over_500,02-Mar-2022,Childrens Services,CHUBB FIRE & SECURITY LIMITED t/a CHUBB ELECTRONIC SECURITY,Childrens Services,1056.00,Security,2122P12_CR00067,81343
Sandwell Metropolitan Borough Council,http://www.sandwell.gov.uk/info/200202/performance_and_spending/1079/payments_over_500,01-Mar-2022,Childrens Services,CITY OF WOLVERHAMPTON COUNCIL,Childrens Services,1318780.42,SH Payments,2122P12_CR00068,126961
Sandwell Metropolitan Borough Council,http://www.sandwell.gov.uk/info/200202/performance_and_spending/1079/payments_over_500,01-Mar-2022,Childrens Services,CLASSIC CARS 1997,Childrens Services,50324.29,Public Transport,2122P12_CR00069,06005093
Sandwell Metropolitan Borough Council,http://www.sandwell.gov.uk/info/200202/performance_and_spending/1079/payments_over_500,01-Mar-2022,Childrens Services,CLASSIC CARS 1997,Childrens Services,49974.82,Public Transport,2122P12_CR00070,06005093
Sandwell Metropolitan Borough Council,http://www.sandwell.gov.uk/info/200202/performance_and_spending/1079/payments_over_500,07-Mar-2022,Childrens Services,CLEMMYS,Childrens Services,2505.00,Protective Clothing & Uniforms,2122P12_CR00071,01613504
Sandwell Metropolitan Borough Council,http://www.sandwell.gov.uk/info/200202/performance_and_spending/1079/payments_over_500,22-Mar-2022,Childrens Services,COGNISOFT LTD,Childrens Services,6037.50,Externally Purchased Professional Services ,2122P12_CR00072,134201
Sandwell Metropolitan Borough Council,http://www.sandwell.gov.uk/info/200202/performance_and_spending/1079/payments_over_500,09-Mar-2022,Childrens Services,COMMUNITY FOUNDATION,Childrens Services,1010.75,Externally Purchased Professional Services ,2122P12_CR00073,121601
Sandwell Metropolitan Borough Council,http://www.sandwell.gov.uk/info/200202/performance_and_spending/1079/payments_over_500,09-Mar-2022,Childrens Services,COMMUNITY FOUNDATION,Childrens Services,1010.75,Externally Purchased Professional Services ,2122P12_CR00074,121601
Sandwell Metropolitan Borough Council,http://www.sandwell.gov.uk/info/200202/performance_and_spending/1079/payments_over_500,07-Mar-2022,Childrens Services,COMMUNITY FOUNDATION,Childrens Services,1010.75,Externally Purchased Professional Services ,2122P12_CR00075,121601
Sandwell Metropolitan Borough Council,http://www.sandwell.gov.uk/info/200202/performance_and_spending/1079/payments_over_500,01-Mar-2022,Childrens Services,CONFEDERATION OF BANGLADESHI ORGANISATIONS (CBO) LIMITED,Childrens Services,941.16,Externally Purchased Professional Services ,2122P12_CR00076,10034
Sandwell Metropolitan Borough Council,http://www.sandwell.gov.uk/info/200202/performance_and_spending/1079/payments_over_500,15-Mar-2022,Childrens Services,CONFEDERATION OF BANGLADESHI ORGANISATIONS (CBO) LIMITED,Childrens Services,560.00,Grants,2122P12_CR00077,10034
Sandwell Metropolitan Borough Council,http://www.sandwell.gov.uk/info/200202/performance_and_spending/1079/payments_over_500,01-Mar-2022,Childrens Services,CORE MARKETING & EVENTS LTD,Childrens Services,4560.00,Advertising & Publicity,2122P12_CR00078,77137
Sandwell Metropolitan Borough Council,http://www.sandwell.gov.uk/info/200202/performance_and_spending/1079/payments_over_500,09-Mar-2022,Childrens Services,CORONA ENERGY RETAIL 2 LIMITED,Childrens Services,2971.96,Gas,2122P12_CR00079,118395
Sandwell Metropolitan Borough Council,http://www.sandwell.gov.uk/info/200202/performance_and_spending/1079/payments_over_500,21-Mar-2022,Childrens Services,COUNTY CARS (2003) LIMITED,Childrens Services,87307.64,Public Transport,2122P12_CR00080,06002387
Sandwell Metropolitan Borough Council,http://www.sandwell.gov.uk/info/200202/performance_and_spending/1079/payments_over_500,21-Mar-2022,Childrens Services,COUNTY CARS (2003) LIMITED,Childrens Services,38109.83,Public Transport,2122P12_CR00081,06002387
Sandwell Metropolitan Borough Council,http://www.sandwell.gov.uk/info/200202/performance_and_spending/1079/payments_over_500,21-Mar-2022,Childrens Services,COUNTY CARS (2003) LIMITED,Childrens Services,38109.83,Public Transport,2122P12_CR00082,06002387
Sandwell Metropolitan Borough Council,http://www.sandwell.gov.uk/info/200202/performance_and_spending/1079/payments_over_500,21-Mar-2022,Childrens Services,COUNTY CARS (2003) LIMITED,Childrens Services,87307.64,Public Transport,2122P12_CR00083,06002387
Sandwell Metropolitan Borough Council,http://www.sandwell.gov.uk/info/200202/performance_and_spending/1079/payments_over_500,17-Mar-2022,Childrens Services,CYBER MEDIA SOLUTIONS LTD,Childrens Services,750.00,Externally Purchased Professional Services ,2122P12_CR00084,114293
Sandwell Metropolitan Borough Council,http://www.sandwell.gov.uk/info/200202/performance_and_spending/1079/payments_over_500,01-Mar-2022,Childrens Services,D J TRAVEL,Childrens Services,2968.00,Public Transport,2122P12_CR00085,96415
Sandwell Metropolitan Borough Council,http://www.sandwell.gov.uk/info/200202/performance_and_spending/1079/payments_over_500,11-Mar-2022,Childrens Services,DAINTY LITTLE HANDS LTD,Childrens Services,1500.00,Grant Payments,2122P12_CR00086,146448
Sandwell Metropolitan Borough Council,http://www.sandwell.gov.uk/info/200202/performance_and_spending/1079/payments_over_500,01-Mar-2022,Childrens Services,DIRECTION TRAINING & MANAGEMENT,Childrens Services,1000.00,Externally Purchased Professional Services ,2122P12_CR00087,01727395
Sandwell Metropolitan Borough Council,http://www.sandwell.gov.uk/info/200202/performance_and_spending/1079/payments_over_500,17-Mar-2022,Childrens Services,DIRECTION TRAINING & MANAGEMENT,Childrens Services,500.00,Externally Purchased Professional Services ,2122P12_CR00088,01727395
Sandwell Metropolitan Borough Council,http://www.sandwell.gov.uk/info/200202/performance_and_spending/1079/payments_over_500,01-Mar-2022,Childrens Services,DJB PEST CONTROL,Childrens Services,610.00,Pest Control,2122P12_CR00089,119231
Sandwell Metropolitan Borough Council,http://www.sandwell.gov.uk/info/200202/performance_and_spending/1079/payments_over_500,01-Mar-2022,Childrens Services,DOT DIGITAL CREATIVE LTD,Childrens Services,1010.76,Externally Purchased Professional Services ,2122P12_CR00090,151805
Sandwell Metropolitan Borough Council,http://www.sandwell.gov.uk/info/200202/performance_and_spending/1079/payments_over_500,01-Mar-2022,Childrens Services,DOT DIGITAL CREATIVE LTD,Childrens Services,1010.76,Externally Purchased Professional Services ,2122P12_CR00091,151805
Sandwell Metropolitan Borough Council,http://www.sandwell.gov.uk/info/200202/performance_and_spending/1079/payments_over_500,11-Mar-2022,Childrens Services,DROACH TRAVEL LTD,Childrens Services,20882.50,Public Transport,2122P12_CR00092,06002707
Sandwell Metropolitan Borough Council,http://www.sandwell.gov.uk/info/200202/performance_and_spending/1079/payments_over_500,01-Mar-2022,Childrens Services,DUDLEY MBC,Childrens Services,6417.00,External Contract Hire,2122P12_CR00093,01349846
Sandwell Metropolitan Borough Council,http://www.sandwell.gov.uk/info/200202/performance_and_spending/1079/payments_over_500,03-Mar-2022,Childrens Services,EATON VALLEY PRIMARY SCHOOL,Childrens Services,716.39,Externally Purchased Professional Services ,2122P12_CR00094,88755
Sandwell Metropolitan Borough Council,http://www.sandwell.gov.uk/info/200202/performance_and_spending/1079/payments_over_500,03-Mar-2022,Childrens Services,EATON VALLEY PRIMARY SCHOOL,Childrens Services,716.39,Externally Purchased Professional Services ,2122P12_CR00095,88755
Sandwell Metropolitan Borough Council,http://www.sandwell.gov.uk/info/200202/performance_and_spending/1079/payments_over_500,03-Mar-2022,Childrens Services,EATON VALLEY PRIMARY SCHOOL,Childrens Services,716.39,Externally Purchased Professional Services ,2122P12_CR00096,88755
Sandwell Metropolitan Borough Council,http://www.sandwell.gov.uk/info/200202/performance_and_spending/1079/payments_over_500,03-Mar-2022,Childrens Services,EATON VALLEY PRIMARY SCHOOL,Childrens Services,716.39,Externally Purchased Professional Services ,2122P12_CR00097,88755
Sandwell Metropolitan Borough Council,http://www.sandwell.gov.uk/info/200202/performance_and_spending/1079/payments_over_500,22-Mar-2022,Childrens Services,EATON VALLEY PRIMARY SCHOOL,Childrens Services,716.39,Externally Purchased Professional Services ,2122P12_CR00098,88755
Sandwell Metropolitan Borough Council,http://www.sandwell.gov.uk/info/200202/performance_and_spending/1079/payments_over_500,22-Mar-2022,Childrens Services,EATON VALLEY PRIMARY SCHOOL,Childrens Services,1010.75,Externally Purchased Professional Services ,2122P12_CR00099,88755
Sandwell Metropolitan Borough Council,http://www.sandwell.gov.uk/info/200202/performance_and_spending/1079/payments_over_500,03-Mar-2022,Childrens Services,EATON VALLEY PRIMARY SCHOOL,Childrens Services,500.00,Grants,2122P12_CR00100,88755
Sandwell Metropolitan Borough Council,http://www.sandwell.gov.uk/info/200202/performance_and_spending/1079/payments_over_500,03-Mar-2022,Childrens Services,EATON VALLEY PRIMARY SCHOOL,Childrens Services,500.00,Grants,2122P12_CR00101,88755
Sandwell Metropolitan Borough Council,http://www.sandwell.gov.uk/info/200202/performance_and_spending/1079/payments_over_500,03-Mar-2022,Childrens Services,EATON VALLEY PRIMARY SCHOOL,Childrens Services,500.00,Grants,2122P12_CR00102,88755
Sandwell Metropolitan Borough Council,http://www.sandwell.gov.uk/info/200202/performance_and_spending/1079/payments_over_500,03-Mar-2022,Childrens Services,EATON VALLEY PRIMARY SCHOOL,Childrens Services,500.00,Grants,2122P12_CR00103,88755
Sandwell Metropolitan Borough Council,http://www.sandwell.gov.uk/info/200202/performance_and_spending/1079/payments_over_500,22-Mar-2022,Childrens Services,EATON VALLEY PRIMARY SCHOOL,Childrens Services,500.00,Grants,2122P12_CR00104,88755
Sandwell Metropolitan Borough Council,http://www.sandwell.gov.uk/info/200202/performance_and_spending/1079/payments_over_500,22-Mar-2022,Childrens Services,EATON VALLEY PRIMARY SCHOOL,Childrens Services,500.00,Grants,2122P12_CR00105,88755
Sandwell Metropolitan Borough Council,http://www.sandwell.gov.uk/info/200202/performance_and_spending/1079/payments_over_500,22-Mar-2022,Childrens Services,EATON VALLEY PRIMARY SCHOOL,Childrens Services,500.00,Grants,2122P12_CR00106,88755
Sandwell Metropolitan Borough Council,http://www.sandwell.gov.uk/info/200202/performance_and_spending/1079/payments_over_500,23-Mar-2022,Childrens Services,EDUFOCUS LIMITED,Childrens Services,5725.33,Licences,2122P12_CR00107,102238
Sandwell Metropolitan Borough Council,http://www.sandwell.gov.uk/info/200202/performance_and_spending/1079/payments_over_500,09-Mar-2022,Childrens Services,EON NEXT ENERGY LTD,Childrens Services,567.84,Electricity,2122P12_CR00108,149566
Sandwell Metropolitan Borough Council,http://www.sandwell.gov.uk/info/200202/performance_and_spending/1079/payments_over_500,11-Mar-2022,Childrens Services,FERNDALE PRIMARY SCHOOL                                ,Childrens Services,750.00,Grants,2122P12_CR00109,11562
Sandwell Metropolitan Borough Council,http://www.sandwell.gov.uk/info/200202/performance_and_spending/1079/payments_over_500,02-Mar-2022,Childrens Services,FFT EDUCATION LIMITED,Childrens Services,34962.85,ICT ,2122P12_CR00110,91550
Sandwell Metropolitan Borough Council,http://www.sandwell.gov.uk/info/200202/performance_and_spending/1079/payments_over_500,12-Mar-2022,Childrens Services,FIRST RESPONSE (FIRST AID) LTD,Childrens Services,875.00,Externally Purchased Professional Services ,2122P12_CR00111,57372
Sandwell Metropolitan Borough Council,http://www.sandwell.gov.uk/info/200202/performance_and_spending/1079/payments_over_500,12-Mar-2022,Childrens Services,FIRST RESPONSE (FIRST AID) LTD,Childrens Services,875.00,Externally Purchased Professional Services ,2122P12_CR00112,57372
Sandwell Metropolitan Borough Council,http://www.sandwell.gov.uk/info/200202/performance_and_spending/1079/payments_over_500,01-Mar-2022,Childrens Services,FIVE STAR TAXIS (DUDLEY) LTD,Childrens Services,92948.99,Public Transport,2122P12_CR00113,133542
Sandwell Metropolitan Borough Council,http://www.sandwell.gov.uk/info/200202/performance_and_spending/1079/payments_over_500,01-Mar-2022,Childrens Services,GAYTON ROAD COMMUNITY CENTRE ASSOCIATION,Childrens Services,516.00,Hire of Facilities,2122P12_CR00114,112420
Sandwell Metropolitan Borough Council,http://www.sandwell.gov.uk/info/200202/performance_and_spending/1079/payments_over_500,01-Mar-2022,Childrens Services,GREEN DESTINATIONS LTD,Childrens Services,86128.59,Public Transport,2122P12_CR00115,109275
Sandwell Metropolitan Borough Council,http://www.sandwell.gov.uk/info/200202/performance_and_spending/1079/payments_over_500,01-Mar-2022,Childrens Services,GREEN DESTINATIONS LTD,Childrens Services,87358.16,Public Transport,2122P12_CR00116,109275
Sandwell Metropolitan Borough Council,http://www.sandwell.gov.uk/info/200202/performance_and_spending/1079/payments_over_500,11-Mar-2022,Childrens Services,GREEN DESTINATIONS LTD,Childrens Services,3145.00,Public Transport,2122P12_CR00117,109275
Sandwell Metropolitan Borough Council,http://www.sandwell.gov.uk/info/200202/performance_and_spending/1079/payments_over_500,01-Mar-2022,Childrens Services,GREEN DESTINATIONS LTD,Childrens Services,1552.92,Public Transport,2122P12_CR00118,109275
Sandwell Metropolitan Borough Council,http://www.sandwell.gov.uk/info/200202/performance_and_spending/1079/payments_over_500,09-Mar-2022,Childrens Services,HANBURY PRIMARY SCHOOL,Childrens Services,1500.00,Grants,2122P12_CR00119,01734408
Sandwell Metropolitan Borough Council,http://www.sandwell.gov.uk/info/200202/performance_and_spending/1079/payments_over_500,09-Mar-2022,Childrens Services,HANBURY PRIMARY SCHOOL,Childrens Services,1500.00,Grants,2122P12_CR00120,01734408
Sandwell Metropolitan Borough Council,http://www.sandwell.gov.uk/info/200202/performance_and_spending/1079/payments_over_500,09-Mar-2022,Childrens Services,HANBURY PRIMARY SCHOOL,Childrens Services,1500.00,Grants,2122P12_CR00121,01734408
Sandwell Metropolitan Borough Council,http://www.sandwell.gov.uk/info/200202/performance_and_spending/1079/payments_over_500,01-Mar-2022,Childrens Services,HARGATE PRIMARY SCHOOL,Childrens Services,1000.00,Grants,2122P12_CR00122,04010481
Sandwell Metropolitan Borough Council,http://www.sandwell.gov.uk/info/200202/performance_and_spending/1079/payments_over_500,01-Mar-2022,Childrens Services,HARGATE PRIMARY SCHOOL,Childrens Services,1500.00,Grants,2122P12_CR00123,04010481
Sandwell Metropolitan Borough Council,http://www.sandwell.gov.uk/info/200202/performance_and_spending/1079/payments_over_500,08-Mar-2022,Childrens Services,HARGATE PRIMARY SCHOOL,Childrens Services,1500.00,Grants,2122P12_CR00124,04010481
Sandwell Metropolitan Borough Council,http://www.sandwell.gov.uk/info/200202/performance_and_spending/1079/payments_over_500,08-Mar-2022,Childrens Services,HARGATE PRIMARY SCHOOL,Childrens Services,1500.00,Grants,2122P12_CR00125,04010481
Sandwell Metropolitan Borough Council,http://www.sandwell.gov.uk/info/200202/performance_and_spending/1079/payments_over_500,08-Mar-2022,Childrens Services,HELPING HANDS,Childrens Services,3900.00,Grant Payments,2122P12_CR00126,89364
Sandwell Metropolitan Borough Council,http://www.sandwell.gov.uk/info/200202/performance_and_spending/1079/payments_over_500,02-Mar-2022,Childrens Services,HER MAJESTYS PRISON AND PROBATION SERVICE,Childrens Services,630.00,Other Establishments,2122P12_CR00127,134815
Sandwell Metropolitan Borough Council,http://www.sandwell.gov.uk/info/200202/performance_and_spending/1079/payments_over_500,02-Mar-2022,Childrens Services,HER MAJESTYS PRISON AND PROBATION SERVICE,Childrens Services,9765.00,Other Establishments,2122P12_CR00128,134815
Sandwell Metropolitan Borough Council,http://www.sandwell.gov.uk/info/200202/performance_and_spending/1079/payments_over_500,02-Mar-2022,Childrens Services,HER MAJESTYS PRISON AND PROBATION SERVICE,Childrens Services,9765.00,Other Establishments,2122P12_CR00129,134815
Sandwell Metropolitan Borough Council,http://www.sandwell.gov.uk/info/200202/performance_and_spending/1079/payments_over_500,02-Mar-2022,Childrens Services,HER MAJESTYS PRISON AND PROBATION SERVICE,Childrens Services,2835.00,Other Establishments,2122P12_CR00130,134815
Sandwell Metropolitan Borough Council,http://www.sandwell.gov.uk/info/200202/performance_and_spending/1079/payments_over_500,23-Mar-2022,Childrens Services,HILL INTERIOR CONTRACTS LTD,Childrens Services,7351.00,Equipment & Furniture ,2122P12_CR00131,17158
Sandwell Metropolitan Borough Council,http://www.sandwell.gov.uk/info/200202/performance_and_spending/1079/payments_over_500,01-Mar-2022,Childrens Services,I CAN CHARITY,Childrens Services,4500.00,Advertising & Publicity,2122P12_CR00132,84207
Sandwell Metropolitan Borough Council,http://www.sandwell.gov.uk/info/200202/performance_and_spending/1079/payments_over_500,01-Mar-2022,Childrens Services,I CAN CHARITY,Childrens Services,4500.00,Advertising & Publicity,2122P12_CR00133,84207
Sandwell Metropolitan Borough Council,http://www.sandwell.gov.uk/info/200202/performance_and_spending/1079/payments_over_500,01-Mar-2022,Childrens Services,I CAN CHARITY,Childrens Services,4500.00,Externally Purchased Professional Services ,2122P12_CR00134,84207
Sandwell Metropolitan Borough Council,http://www.sandwell.gov.uk/info/200202/performance_and_spending/1079/payments_over_500,01-Mar-2022,Childrens Services,INGESTRE ORANGERY AND GARDENS,Childrens Services,650.00,Materials & Consumables,2122P12_CR00135,127331
Sandwell Metropolitan Borough Council,http://www.sandwell.gov.uk/info/200202/performance_and_spending/1079/payments_over_500,01-Mar-2022,Childrens Services,IRON MAIDENS COMMERCIAL LAUNDRY LIMITED,Childrens Services,1029.63,Laundry,2122P12_CR00136,124628
Sandwell Metropolitan Borough Council,http://www.sandwell.gov.uk/info/200202/performance_and_spending/1079/payments_over_500,01-Mar-2022,Childrens Services,JMB GLOBAL LTD,Childrens Services,941.16,Externally Purchased Professional Services ,2122P12_CR00137,152360
Sandwell Metropolitan Borough Council,http://www.sandwell.gov.uk/info/200202/performance_and_spending/1079/payments_over_500,01-Mar-2022,Childrens Services,JMB GLOBAL LTD,Childrens Services,941.16,Externally Purchased Professional Services ,2122P12_CR00138,152360
Sandwell Metropolitan Borough Council,http://www.sandwell.gov.uk/info/200202/performance_and_spending/1079/payments_over_500,01-Mar-2022,Childrens Services,JMB GLOBAL LTD,Childrens Services,716.39,Externally Purchased Professional Services ,2122P12_CR00139,152360
Sandwell Metropolitan Borough Council,http://www.sandwell.gov.uk/info/200202/performance_and_spending/1079/payments_over_500,01-Mar-2022,Childrens Services,JMB GLOBAL LTD,Childrens Services,716.39,Externally Purchased Professional Services ,2122P12_CR00140,152360
Sandwell Metropolitan Borough Council,http://www.sandwell.gov.uk/info/200202/performance_and_spending/1079/payments_over_500,01-Mar-2022,Childrens Services,JMB GLOBAL LTD,Childrens Services,716.39,Externally Purchased Professional Services ,2122P12_CR00141,152360
Sandwell Metropolitan Borough Council,http://www.sandwell.gov.uk/info/200202/performance_and_spending/1079/payments_over_500,01-Mar-2022,Childrens Services,JMB GLOBAL LTD,Childrens Services,560.00,Grants,2122P12_CR00142,152360
Sandwell Metropolitan Borough Council,http://www.sandwell.gov.uk/info/200202/performance_and_spending/1079/payments_over_500,01-Mar-2022,Childrens Services,JPC TRAVEL SOLUTION,Childrens Services,51364.35,Public Transport,2122P12_CR00143,138533
Sandwell Metropolitan Borough Council,http://www.sandwell.gov.uk/info/200202/performance_and_spending/1079/payments_over_500,02-Mar-2022,Childrens Services,JUNIPER TRAINING LTD,Childrens Services,630.00,Externally Purchased Professional Services ,2122P12_CR00144,84880
Sandwell Metropolitan Borough Council,http://www.sandwell.gov.uk/info/200202/performance_and_spending/1079/payments_over_500,01-Mar-2022,Childrens Services,KANGAROO POUCH LIMITED,Childrens Services,4298.32,Externally Purchased Professional Services ,2122P12_CR00145,106981
Sandwell Metropolitan Borough Council,http://www.sandwell.gov.uk/info/200202/performance_and_spending/1079/payments_over_500,11-Mar-2022,Childrens Services,KEY LEGAL LTD,Childrens Services,560.00,Grants,2122P12_CR00146,161816
Sandwell Metropolitan Borough Council,http://www.sandwell.gov.uk/info/200202/performance_and_spending/1079/payments_over_500,01-Mar-2022,Childrens Services,LIFE'S ABOUT ESSENTIALS LTD,Childrens Services,716.39,Externally Purchased Professional Services ,2122P12_CR00147,143969
Sandwell Metropolitan Borough Council,http://www.sandwell.gov.uk/info/200202/performance_and_spending/1079/payments_over_500,01-Mar-2022,Childrens Services,LIONCOURT HOMES LIMITED,Childrens Services,1010.75,Externally Purchased Professional Services ,2122P12_CR00148,133372
Sandwell Metropolitan Borough Council,http://www.sandwell.gov.uk/info/200202/performance_and_spending/1079/payments_over_500,01-Mar-2022,Childrens Services,LIONCOURT HOMES LIMITED,Childrens Services,1010.75,Externally Purchased Professional Services ,2122P12_CR00149,133372
Sandwell Metropolitan Borough Council,http://www.sandwell.gov.uk/info/200202/performance_and_spending/1079/payments_over_500,01-Mar-2022,Childrens Services,LIONCOURT HOMES LIMITED,Childrens Services,716.39,Externally Purchased Professional Services ,2122P12_CR00150,133372
Sandwell Metropolitan Borough Council,http://www.sandwell.gov.uk/info/200202/performance_and_spending/1079/payments_over_500,01-Mar-2022,Childrens Services,LIONCOURT HOMES LIMITED,Childrens Services,716.39,Externally Purchased Professional Services ,2122P12_CR00151,133372
Sandwell Metropolitan Borough Council,http://www.sandwell.gov.uk/info/200202/performance_and_spending/1079/payments_over_500,01-Mar-2022,Childrens Services,LIONCOURT HOMES LIMITED,Childrens Services,560.00,Grants,2122P12_CR00152,133372
Sandwell Metropolitan Borough Council,http://www.sandwell.gov.uk/info/200202/performance_and_spending/1079/payments_over_500,17-Mar-2022,Childrens Services,LOCAL EDUCATION AND DEVELOPMENT,Childrens Services,1132.00,Discretionary Awards,2122P12_CR00153,148259
Sandwell Metropolitan Borough Council,http://www.sandwell.gov.uk/info/200202/performance_and_spending/1079/payments_over_500,17-Mar-2022,Childrens Services,LOCAL EDUCATION AND DEVELOPMENT,Childrens Services,1358.40,Discretionary Awards,2122P12_CR00154,148259
Sandwell Metropolitan Borough Council,http://www.sandwell.gov.uk/info/200202/performance_and_spending/1079/payments_over_500,17-Mar-2022,Childrens Services,LOCAL EDUCATION AND DEVELOPMENT,Childrens Services,897.00,Discretionary Awards,2122P12_CR00155,148259
Sandwell Metropolitan Borough Council,http://www.sandwell.gov.uk/info/200202/performance_and_spending/1079/payments_over_500,01-Mar-2022,Childrens Services,LOUISE ATKIN ASSOCIATES LTD,Childrens Services,600.00,Externally Purchased Professional Services ,2122P12_CR00156,21109
Sandwell Metropolitan Borough Council,http://www.sandwell.gov.uk/info/200202/performance_and_spending/1079/payments_over_500,07-Mar-2022,Childrens Services,MEAL BOX DIRECT LTD,Childrens Services,716.39,Externally Purchased Professional Services ,2122P12_CR00157,155083
Sandwell Metropolitan Borough Council,http://www.sandwell.gov.uk/info/200202/performance_and_spending/1079/payments_over_500,17-Mar-2022,Childrens Services,MENZIES DESIGN AND PRINT LTD,Childrens Services,535.00,"Printing, Stationery & General Office Expenses",2122P12_CR00158,113639
Sandwell Metropolitan Borough Council,http://www.sandwell.gov.uk/info/200202/performance_and_spending/1079/payments_over_500,23-Mar-2022,Childrens Services,MENZIES DESIGN AND PRINT LTD,Childrens Services,4837.00,"Printing, Stationery & General Office Expenses",2122P12_CR00159,113639
Sandwell Metropolitan Borough Council,http://www.sandwell.gov.uk/info/200202/performance_and_spending/1079/payments_over_500,23-Mar-2022,Childrens Services,MENZIES DESIGN AND PRINT LTD,Childrens Services,712.00,"Printing, Stationery & General Office Expenses",2122P12_CR00160,113639
Sandwell Metropolitan Borough Council,http://www.sandwell.gov.uk/info/200202/performance_and_spending/1079/payments_over_500,01-Mar-2022,Childrens Services,MOAT FARM INFANTS SCHOOL                              ,Childrens Services,1500.00,Grants,2122P12_CR00161,13623
Sandwell Metropolitan Borough Council,http://www.sandwell.gov.uk/info/200202/performance_and_spending/1079/payments_over_500,01-Mar-2022,Childrens Services,MOAT FARM INFANTS SCHOOL                              ,Childrens Services,1500.00,Grants,2122P12_CR00162,13623
Sandwell Metropolitan Borough Council,http://www.sandwell.gov.uk/info/200202/performance_and_spending/1079/payments_over_500,21-Mar-2022,Childrens Services,MOAT FARM INFANTS SCHOOL                              ,Childrens Services,1500.00,Grants,2122P12_CR00163,13623
Sandwell Metropolitan Borough Council,http://www.sandwell.gov.uk/info/200202/performance_and_spending/1079/payments_over_500,01-Mar-2022,Childrens Services,NEWAVE LTD,Childrens Services,1960.00,Agency Staff,2122P12_CR00164,101666
Sandwell Metropolitan Borough Council,http://www.sandwell.gov.uk/info/200202/performance_and_spending/1079/payments_over_500,01-Mar-2022,Childrens Services,NEWAVE LTD,Childrens Services,3535.96,Agency Staff,2122P12_CR00165,101666
Sandwell Metropolitan Borough Council,http://www.sandwell.gov.uk/info/200202/performance_and_spending/1079/payments_over_500,15-Mar-2022,Childrens Services,NEWAVE LTD,Childrens Services,1375.00,Agency Staff,2122P12_CR00166,101666
Sandwell Metropolitan Borough Council,http://www.sandwell.gov.uk/info/200202/performance_and_spending/1079/payments_over_500,15-Mar-2022,Childrens Services,NEWAVE LTD,Childrens Services,1205.48,Agency Staff,2122P12_CR00167,101666
Sandwell Metropolitan Borough Council,http://www.sandwell.gov.uk/info/200202/performance_and_spending/1079/payments_over_500,01-Mar-2022,Childrens Services,NEWAVE LTD,Childrens Services,1404.00,Agency Staff,2122P12_CR00168,101666
Sandwell Metropolitan Borough Council,http://www.sandwell.gov.uk/info/200202/performance_and_spending/1079/payments_over_500,01-Mar-2022,Childrens Services,NOTTINGHAMSHIRE COUNTY COUNCIL,Childrens Services,585.00,External Contract Hire,2122P12_CR00169,01218759
Sandwell Metropolitan Borough Council,http://www.sandwell.gov.uk/info/200202/performance_and_spending/1079/payments_over_500,01-Mar-2022,Childrens Services,NOTTINGHAMSHIRE COUNTY COUNCIL,Childrens Services,2115.00,External Contract Hire,2122P12_CR00170,01218759
Sandwell Metropolitan Borough Council,http://www.sandwell.gov.uk/info/200202/performance_and_spending/1079/payments_over_500,23-Mar-2022,Childrens Services,OAKLEYS LTD,Childrens Services,1871.21,Grounds Maintenance & Improvements,2122P12_CR00171,01598115
Sandwell Metropolitan Borough Council,http://www.sandwell.gov.uk/info/200202/performance_and_spending/1079/payments_over_500,01-Mar-2022,Childrens Services,ONE 4 YOU SERVICES LTD,Childrens Services,46544.15,Public Transport,2122P12_CR00172,81204
Sandwell Metropolitan Borough Council,http://www.sandwell.gov.uk/info/200202/performance_and_spending/1079/payments_over_500,01-Mar-2022,Childrens Services,ONE 4 YOU SERVICES LTD,Childrens Services,47333.67,Public Transport,2122P12_CR00173,81204
Sandwell Metropolitan Borough Council,http://www.sandwell.gov.uk/info/200202/performance_and_spending/1079/payments_over_500,01-Mar-2022,Childrens Services,ONE 4 YOU SERVICES LTD,Childrens Services,7782.23,Public Transport,2122P12_CR00174,81204
Sandwell Metropolitan Borough Council,http://www.sandwell.gov.uk/info/200202/performance_and_spending/1079/payments_over_500,23-Mar-2022,Childrens Services,ORMISTON SANDWELL COMMUNITY ACADEMY                                        ,Childrens Services,700.00,Childcare,2122P12_CR00175,60950
Sandwell Metropolitan Borough Council,http://www.sandwell.gov.uk/info/200202/performance_and_spending/1079/payments_over_500,03-Mar-2022,Childrens Services,PARK HILL PRIMARY SCHOOL,Childrens Services,716.39,Externally Purchased Professional Services ,2122P12_CR00176,04017201
Sandwell Metropolitan Borough Council,http://www.sandwell.gov.uk/info/200202/performance_and_spending/1079/payments_over_500,01-Mar-2022,Childrens Services,PARK HILL PRIMARY SCHOOL,Childrens Services,500.00,Grants,2122P12_CR00177,04017201
Sandwell Metropolitan Borough Council,http://www.sandwell.gov.uk/info/200202/performance_and_spending/1079/payments_over_500,03-Mar-2022,Childrens Services,PARK HILL PRIMARY SCHOOL,Childrens Services,500.00,Grants,2122P12_CR00178,04017201
Sandwell Metropolitan Borough Council,http://www.sandwell.gov.uk/info/200202/performance_and_spending/1079/payments_over_500,01-Mar-2022,Childrens Services,PENNYHILL PRIMARY SCHOOL,Childrens Services,3634.34,Electricity,2122P12_CR00179,73032
Sandwell Metropolitan Borough Council,http://www.sandwell.gov.uk/info/200202/performance_and_spending/1079/payments_over_500,01-Mar-2022,Childrens Services,PENNYHILL PRIMARY SCHOOL,Childrens Services,2000.19,Rents,2122P12_CR00180,73032
Sandwell Metropolitan Borough Council,http://www.sandwell.gov.uk/info/200202/performance_and_spending/1079/payments_over_500,23-Mar-2022,Childrens Services,PENNYHILL PRIMARY SCHOOL,Childrens Services,11567.51,Security,2122P12_CR00181,73032
Sandwell Metropolitan Borough Council,http://www.sandwell.gov.uk/info/200202/performance_and_spending/1079/payments_over_500,18-Mar-2022,Childrens Services,PHEW DESIGN LIMITED,Childrens Services,3434.40,ICT ,2122P12_CR00182,125418
Sandwell Metropolitan Borough Council,http://www.sandwell.gov.uk/info/200202/performance_and_spending/1079/payments_over_500,22-Mar-2022,Childrens Services,PRINT DIRECT LIMITED,Childrens Services,2999.58,"Printing, Stationery & General Office Expenses",2122P12_CR00183,118575
Sandwell Metropolitan Borough Council,http://www.sandwell.gov.uk/info/200202/performance_and_spending/1079/payments_over_500,01-Mar-2022,Childrens Services,PURE CARE SERVICES LTD,Childrens Services,1010.75,Externally Purchased Professional Services ,2122P12_CR00184,158100
Sandwell Metropolitan Borough Council,http://www.sandwell.gov.uk/info/200202/performance_and_spending/1079/payments_over_500,12-Mar-2022,Childrens Services,PURE CARE SERVICES LTD,Childrens Services,1010.75,Externally Purchased Professional Services ,2122P12_CR00185,158100
Sandwell Metropolitan Borough Council,http://www.sandwell.gov.uk/info/200202/performance_and_spending/1079/payments_over_500,01-Mar-2022,Childrens Services,RECYCLING LIVES ENVIRONMENTAL SERVICES LTD,Childrens Services,941.16,Externally Purchased Professional Services ,2122P12_CR00186,160094
Sandwell Metropolitan Borough Council,http://www.sandwell.gov.uk/info/200202/performance_and_spending/1079/payments_over_500,15-Mar-2022,Childrens Services,REGENT PUBLICITY (2020) LTD,Childrens Services,907.50,"Printing, Stationery & General Office Expenses",2122P12_CR00187,01740568
Sandwell Metropolitan Borough Council,http://www.sandwell.gov.uk/info/200202/performance_and_spending/1079/payments_over_500,01-Mar-2022,Childrens Services,REPOSE FURNITURE LTD,Childrens Services,716.39,Externally Purchased Professional Services ,2122P12_CR00188,159480
Sandwell Metropolitan Borough Council,http://www.sandwell.gov.uk/info/200202/performance_and_spending/1079/payments_over_500,01-Mar-2022,Childrens Services,REPOSE FURNITURE LTD,Childrens Services,716.39,Externally Purchased Professional Services ,2122P12_CR00189,159480
Sandwell Metropolitan Borough Council,http://www.sandwell.gov.uk/info/200202/performance_and_spending/1079/payments_over_500,01-Mar-2022,Childrens Services,REPOSE FURNITURE LTD,Childrens Services,560.00,Grants,2122P12_CR00190,159480
Sandwell Metropolitan Borough Council,http://www.sandwell.gov.uk/info/200202/performance_and_spending/1079/payments_over_500,01-Mar-2022,Childrens Services,REPOSE FURNITURE LTD,Childrens Services,560.00,Grants,2122P12_CR00191,159480
Sandwell Metropolitan Borough Council,http://www.sandwell.gov.uk/info/200202/performance_and_spending/1079/payments_over_500,01-Mar-2022,Childrens Services,RYDERS HAYES ACADEMY,Childrens Services,14400.00,Advertising & Publicity,2122P12_CR00192,134012
Sandwell Metropolitan Borough Council,http://www.sandwell.gov.uk/info/200202/performance_and_spending/1079/payments_over_500,01-Mar-2022,Childrens Services,SANDWELL ACADEMY TRUST LTD,Childrens Services,22015.00,Public Transport,2122P12_CR00193,62330
Sandwell Metropolitan Borough Council,http://www.sandwell.gov.uk/info/200202/performance_and_spending/1079/payments_over_500,21-Mar-2022,Childrens Services,SANDWELL CHILDREN'S TRUST,Childrens Services,1082764.93,Other Establishments,2122P12_CR00194,133302
Sandwell Metropolitan Borough Council,http://www.sandwell.gov.uk/info/200202/performance_and_spending/1079/payments_over_500,21-Mar-2022,Childrens Services,SANDWELL CHILDREN'S TRUST,Childrens Services,191692.28,Other Establishments,2122P12_CR00195,133302
Sandwell Metropolitan Borough Council,http://www.sandwell.gov.uk/info/200202/performance_and_spending/1079/payments_over_500,11-Mar-2022,Childrens Services,SANDWELL CHILDREN'S TRUST,Childrens Services,10842141.08,Other Establishments,2122P12_CR00196,133302
Sandwell Metropolitan Borough Council,http://www.sandwell.gov.uk/info/200202/performance_and_spending/1079/payments_over_500,21-Mar-2022,Childrens Services,SANDWELL CHILDREN'S TRUST,Childrens Services,34166.00,Other Establishments,2122P12_CR00197,133302
Sandwell Metropolitan Borough Council,http://www.sandwell.gov.uk/info/200202/performance_and_spending/1079/payments_over_500,01-Mar-2022,Childrens Services,SANDWELL CHILDREN'S TRUST,Childrens Services,626083.00,SH Payments,2122P12_CR00198,133302
Sandwell Metropolitan Borough Council,http://www.sandwell.gov.uk/info/200202/performance_and_spending/1079/payments_over_500,01-Mar-2022,Childrens Services,SANDWELL CITIZENS ADVICE BUREAUX,Childrens Services,1010.75,Externally Purchased Professional Services ,2122P12_CR00199,01760899
Sandwell Metropolitan Borough Council,http://www.sandwell.gov.uk/info/200202/performance_and_spending/1079/payments_over_500,01-Mar-2022,Childrens Services,SEDDON CONSTRUCTION LIMITED,Childrens Services,560.00,Grants,2122P12_CR00200,132999
Sandwell Metropolitan Borough Council,http://www.sandwell.gov.uk/info/200202/performance_and_spending/1079/payments_over_500,09-Mar-2022,Childrens Services,SIPS EDUCATION LTD,Childrens Services,34000.00,Contract Payments,2122P12_CR00201,110784
Sandwell Metropolitan Borough Council,http://www.sandwell.gov.uk/info/200202/performance_and_spending/1079/payments_over_500,01-Mar-2022,Childrens Services,SITEWATCH FIRE AND SURVEILLANCE LIMITED,Childrens Services,1369.00,Security,2122P12_CR00202,55288
Sandwell Metropolitan Borough Council,http://www.sandwell.gov.uk/info/200202/performance_and_spending/1079/payments_over_500,01-Mar-2022,Childrens Services,SKILLS WORK AND ENTERPRISE DEVELOPMENT AGENCY LTD,Childrens Services,716.39,Externally Purchased Professional Services ,2122P12_CR00203,5092
Sandwell Metropolitan Borough Council,http://www.sandwell.gov.uk/info/200202/performance_and_spending/1079/payments_over_500,01-Mar-2022,Childrens Services,SKILLS WORK AND ENTERPRISE DEVELOPMENT AGENCY LTD,Childrens Services,560.00,Grants,2122P12_CR00204,5092
Sandwell Metropolitan Borough Council,http://www.sandwell.gov.uk/info/200202/performance_and_spending/1079/payments_over_500,02-Mar-2022,Childrens Services,SSE ENERGY SUPPLY LIMITED,Childrens Services,3679.72,Electricity,2122P12_CR00205,116134
Sandwell Metropolitan Borough Council,http://www.sandwell.gov.uk/info/200202/performance_and_spending/1079/payments_over_500,17-Mar-2022,Childrens Services,STAFFORDSHIRE COUNTY COUNCIL,Childrens Services,3997.50,External Contract Hire,2122P12_CR00206,01124861
Sandwell Metropolitan Borough Council,http://www.sandwell.gov.uk/info/200202/performance_and_spending/1079/payments_over_500,17-Mar-2022,Childrens Services,STAFFORDSHIRE COUNTY COUNCIL,Childrens Services,6785.61,External Contract Hire,2122P12_CR00207,01124861
Sandwell Metropolitan Borough Council,http://www.sandwell.gov.uk/info/200202/performance_and_spending/1079/payments_over_500,15-Mar-2022,Childrens Services,TEMPLE MEADOW KIDS CLUB LTD,Childrens Services,1500.00,Grant Payments,2122P12_CR00208,106301
Sandwell Metropolitan Borough Council,http://www.sandwell.gov.uk/info/200202/performance_and_spending/1079/payments_over_500,01-Mar-2022,Childrens Services,TERRA TEK LTD,Childrens Services,941.16,Externally Purchased Professional Services ,2122P12_CR00209,155508
Sandwell Metropolitan Borough Council,http://www.sandwell.gov.uk/info/200202/performance_and_spending/1079/payments_over_500,01-Mar-2022,Childrens Services,TERRA TEK LTD,Childrens Services,1010.75,Externally Purchased Professional Services ,2122P12_CR00210,155508
Sandwell Metropolitan Borough Council,http://www.sandwell.gov.uk/info/200202/performance_and_spending/1079/payments_over_500,14-Mar-2022,Childrens Services,THE BRANCH,Childrens Services,2600.00,Grant Payments,2122P12_CR00211,08588514
Sandwell Metropolitan Borough Council,http://www.sandwell.gov.uk/info/200202/performance_and_spending/1079/payments_over_500,01-Mar-2022,Childrens Services,THE GROWTH COMPANY,Childrens Services,2100.00,Externally Purchased Professional Services ,2122P12_CR00212,151084
Sandwell Metropolitan Borough Council,http://www.sandwell.gov.uk/info/200202/performance_and_spending/1079/payments_over_500,01-Mar-2022,Childrens Services,THE PATCH DAY NURSERY,Childrens Services,1500.00,Grants,2122P12_CR00213,126020
Sandwell Metropolitan Borough Council,http://www.sandwell.gov.uk/info/200202/performance_and_spending/1079/payments_over_500,02-Mar-2022,Childrens Services,THE PRIORY PRIMARY,Childrens Services,2938.32,Rents,2122P12_CR00214,01746051
Sandwell Metropolitan Borough Council,http://www.sandwell.gov.uk/info/200202/performance_and_spending/1079/payments_over_500,01-Mar-2022,Childrens Services,TIPTON LITTERWATCH,Childrens Services,941.16,Externally Purchased Professional Services ,2122P12_CR00215,27921
Sandwell Metropolitan Borough Council,http://www.sandwell.gov.uk/info/200202/performance_and_spending/1079/payments_over_500,01-Mar-2022,Childrens Services,TIPTON LITTERWATCH,Childrens Services,560.00,Grants,2122P12_CR00216,27921
Sandwell Metropolitan Borough Council,http://www.sandwell.gov.uk/info/200202/performance_and_spending/1079/payments_over_500,10-Mar-2022,Childrens Services,TIVIDALE COMMUNITY PRIMARY SCHOOL,Childrens Services,1500.00,Grants,2122P12_CR00217,20555
Sandwell Metropolitan Borough Council,http://www.sandwell.gov.uk/info/200202/performance_and_spending/1079/payments_over_500,01-Mar-2022,Childrens Services,TOH TAXIS,Childrens Services,1059.65,Public Transport,2122P12_CR00218,12250
Sandwell Metropolitan Borough Council,http://www.sandwell.gov.uk/info/200202/performance_and_spending/1079/payments_over_500,01-Mar-2022,Childrens Services,TOH TAXIS,Childrens Services,1390.30,Public Transport,2122P12_CR00219,12250
Sandwell Metropolitan Borough Council,http://www.sandwell.gov.uk/info/200202/performance_and_spending/1079/payments_over_500,01-Mar-2022,Childrens Services,TOH TAXIS,Childrens Services,1557.85,Public Transport,2122P12_CR00220,12250
Sandwell Metropolitan Borough Council,http://www.sandwell.gov.uk/info/200202/performance_and_spending/1079/payments_over_500,14-Mar-2022,Childrens Services,TOPPS MANAGEMENT & SUPPORT SERVICES LTD,Childrens Services,5714.24,Discretionary Awards,2122P12_CR00221,68846
Sandwell Metropolitan Borough Council,http://www.sandwell.gov.uk/info/200202/performance_and_spending/1079/payments_over_500,09-Mar-2022,Childrens Services,TOPPS MANAGEMENT & SUPPORT SERVICES LTD,Childrens Services,996.94,Externally Purchased Professional Services ,2122P12_CR00222,68846
Sandwell Metropolitan Borough Council,http://www.sandwell.gov.uk/info/200202/performance_and_spending/1079/payments_over_500,12-Mar-2022,Childrens Services,TOTALENERGIES GAS & POWER LTD,Childrens Services,1263.79,Electricity,2122P12_CR00223,107605
Sandwell Metropolitan Borough Council,http://www.sandwell.gov.uk/info/200202/performance_and_spending/1079/payments_over_500,01-Mar-2022,Childrens Services,TOTALENERGIES GAS & POWER LTD,Childrens Services,576.87,Electricity,2122P12_CR00224,107605
Sandwell Metropolitan Borough Council,http://www.sandwell.gov.uk/info/200202/performance_and_spending/1079/payments_over_500,12-Mar-2022,Childrens Services,TOTALENERGIES GAS & POWER LTD,Childrens Services,1423.31,Electricity,2122P12_CR00225,107605
Sandwell Metropolitan Borough Council,http://www.sandwell.gov.uk/info/200202/performance_and_spending/1079/payments_over_500,01-Mar-2022,Childrens Services,TOTALENERGIES GAS & POWER LTD,Childrens Services,1045.55,Electricity,2122P12_CR00226,107605
Sandwell Metropolitan Borough Council,http://www.sandwell.gov.uk/info/200202/performance_and_spending/1079/payments_over_500,12-Mar-2022,Childrens Services,TOTALENERGIES GAS & POWER LTD,Childrens Services,1076.02,Electricity,2122P12_CR00227,107605
Sandwell Metropolitan Borough Council,http://www.sandwell.gov.uk/info/200202/performance_and_spending/1079/payments_over_500,12-Mar-2022,Childrens Services,TOTALENERGIES GAS & POWER LTD,Childrens Services,874.47,Electricity,2122P12_CR00228,107605
Sandwell Metropolitan Borough Council,http://www.sandwell.gov.uk/info/200202/performance_and_spending/1079/payments_over_500,12-Mar-2022,Childrens Services,TOTALENERGIES GAS & POWER LTD,Childrens Services,555.98,Electricity,2122P12_CR00229,107605
Sandwell Metropolitan Borough Council,http://www.sandwell.gov.uk/info/200202/performance_and_spending/1079/payments_over_500,01-Mar-2022,Childrens Services,TRIBAL EDUCATION LTD,Childrens Services,1200.00,Subscriptions,2122P12_CR00230,17382
Sandwell Metropolitan Borough Council,http://www.sandwell.gov.uk/info/200202/performance_and_spending/1079/payments_over_500,01-Mar-2022,Childrens Services,UNITY TRAVEL,Childrens Services,2120.00,Public Transport,2122P12_CR00231,64986
Sandwell Metropolitan Borough Council,http://www.sandwell.gov.uk/info/200202/performance_and_spending/1079/payments_over_500,23-Mar-2022,Childrens Services,UP & UNDER OUTDOOR GEAR LTD,Childrens Services,1369.53,Equipment & Furniture ,2122P12_CR00232,72873
Sandwell Metropolitan Borough Council,http://www.sandwell.gov.uk/info/200202/performance_and_spending/1079/payments_over_500,01-Mar-2022,Childrens Services,VALENCIA FINE FOODS LIMITED,Childrens Services,716.39,Externally Purchased Professional Services ,2122P12_CR00233,131572
Sandwell Metropolitan Borough Council,http://www.sandwell.gov.uk/info/200202/performance_and_spending/1079/payments_over_500,01-Mar-2022,Childrens Services,VALENCIA FINE FOODS LIMITED,Childrens Services,716.39,Externally Purchased Professional Services ,2122P12_CR00234,131572
Sandwell Metropolitan Borough Council,http://www.sandwell.gov.uk/info/200202/performance_and_spending/1079/payments_over_500,23-Mar-2022,Childrens Services,WATER PLUS SELECT LIMITED,Childrens Services,3891.26,Water Services,2122P12_CR00235,129644
Sandwell Metropolitan Borough Council,http://www.sandwell.gov.uk/info/200202/performance_and_spending/1079/payments_over_500,14-Mar-2022,Childrens Services,WELL LIFE PHYSIOTHERAPY,Childrens Services,941.16,Externally Purchased Professional Services ,2122P12_CR00236,149594
Sandwell Metropolitan Borough Council,http://www.sandwell.gov.uk/info/200202/performance_and_spending/1079/payments_over_500,14-Mar-2022,Childrens Services,WELL LIFE PHYSIOTHERAPY,Childrens Services,941.16,Externally Purchased Professional Services ,2122P12_CR00237,149594
Sandwell Metropolitan Borough Council,http://www.sandwell.gov.uk/info/200202/performance_and_spending/1079/payments_over_500,14-Mar-2022,Childrens Services,WELL LIFE PHYSIOTHERAPY,Childrens Services,550.00,Grants,2122P12_CR00238,149594
Sandwell Metropolitan Borough Council,http://www.sandwell.gov.uk/info/200202/performance_and_spending/1079/payments_over_500,01-Mar-2022,Childrens Services,WEST MIDLANDS ACCESSIBLE TRANSPORT LTD,Childrens Services,3501.77,Public Transport,2122P12_CR00239,01694764
Sandwell Metropolitan Borough Council,http://www.sandwell.gov.uk/info/200202/performance_and_spending/1079/payments_over_500,01-Mar-2022,Childrens Services,WEST MIDLANDS TRAVEL LIMITED,Childrens Services,768.50,Public Transport,2122P12_CR00240,01736688
Sandwell Metropolitan Borough Council,http://www.sandwell.gov.uk/info/200202/performance_and_spending/1079/payments_over_500,11-Mar-2022,Childrens Services,WEST MIDLANDS TRAVEL LIMITED,Childrens Services,3500.18,Public Transport,2122P12_CR00241,01736688
Sandwell Metropolitan Borough Council,http://www.sandwell.gov.uk/info/200202/performance_and_spending/1079/payments_over_500,11-Mar-2022,Childrens Services,WEST MIDLANDS TRAVEL LIMITED,Childrens Services,1624.00,Public Transport,2122P12_CR00242,01736688
Sandwell Metropolitan Borough Council,http://www.sandwell.gov.uk/info/200202/performance_and_spending/1079/payments_over_500,11-Mar-2022,Childrens Services,WEST MIDLANDS TRAVEL LIMITED,Childrens Services,3430.90,Public Transport,2122P12_CR00243,01736688
Sandwell Metropolitan Borough Council,http://www.sandwell.gov.uk/info/200202/performance_and_spending/1079/payments_over_500,11-Mar-2022,Childrens Services,WEST MIDLANDS TRAVEL LIMITED,Childrens Services,1508.00,Public Transport,2122P12_CR00244,01736688
Sandwell Metropolitan Borough Council,http://www.sandwell.gov.uk/info/200202/performance_and_spending/1079/payments_over_500,11-Mar-2022,Childrens Services,WEST MIDLANDS TRAVEL LIMITED,Childrens Services,3477.04,Public Transport,2122P12_CR00245,01736688
Sandwell Metropolitan Borough Council,http://www.sandwell.gov.uk/info/200202/performance_and_spending/1079/payments_over_500,11-Mar-2022,Childrens Services,WEST MIDLANDS TRAVEL LIMITED,Childrens Services,3500.20,Public Transport,2122P12_CR00246,01736688
Sandwell Metropolitan Borough Council,http://www.sandwell.gov.uk/info/200202/performance_and_spending/1079/payments_over_500,11-Mar-2022,Childrens Services,WEST MIDLANDS TRAVEL LIMITED,Childrens Services,3500.18,Public Transport,2122P12_CR00247,01736688
Sandwell Metropolitan Borough Council,http://www.sandwell.gov.uk/info/200202/performance_and_spending/1079/payments_over_500,15-Mar-2022,Childrens Services,WHITECREST LATCHKEY CLUB,Childrens Services,1500.00,Grant Payments,2122P12_CR00248,162406
Sandwell Metropolitan Borough Council,http://www.sandwell.gov.uk/info/200202/performance_and_spending/1079/payments_over_500,01-Mar-2022,Childrens Services,WYRE FOREST DISTRICT COUNCIL,Childrens Services,3885.00,Waste Disposal Charges,2122P12_CR00249,5163
Sandwell Metropolitan Borough Council,http://www.sandwell.gov.uk/info/200202/performance_and_spending/1079/payments_over_500,01-Mar-2022,Childrens Services,XMA LTD,Childrens Services,653.30,ICT ,2122P12_CR00250,01135462
Sandwell Metropolitan Borough Council,http://www.sandwell.gov.uk/info/200202/performance_and_spending/1079/payments_over_500,12-Mar-2022,Childrens Services,YELLOW CARS,Childrens Services,25085.68,Public Transport,2122P12_CR00251,116819
Sandwell Metropolitan Borough Council,http://www.sandwell.gov.uk/info/200202/performance_and_spending/1079/payments_over_500,01-Mar-2022,Childrens Services,YOUTH FOCUS WEST MIDLANDS,Childrens Services,500.00,Subscriptions,2122P12_CR00252,112224
Sandwell Metropolitan Borough Council,http://www.sandwell.gov.uk/info/200202/performance_and_spending/1079/payments_over_500,01-Mar-2022,Childrens Services,ANTONIO SANTORELLI,Childrens Services,941.16,Externally Purchased Professional Services ,2122P12_CR00253,80057
Sandwell Metropolitan Borough Council,http://www.sandwell.gov.uk/info/200202/performance_and_spending/1079/payments_over_500,01-Mar-2022,Childrens Services,ANTONIO SANTORELLI,Childrens Services,941.16,Externally Purchased Professional Services ,2122P12_CR00254,80057
Sandwell Metropolitan Borough Council,http://www.sandwell.gov.uk/info/200202/performance_and_spending/1079/payments_over_500,09-Mar-2022,Childrens Services,"RACHEL SMITH,",Childrens Services,2000.00,Externally Purchased Professional Services ,2122P12_CR00255,162210
Sandwell Metropolitan Borough Council,http://www.sandwell.gov.uk/info/200202/performance_and_spending/1079/payments_over_500,15-Mar-2022,Childrens Services,"RACHEL SMITH,",Childrens Services,2200.00,Externally Purchased Professional Services ,2122P12_CR00256,162210
Sandwell Metropolitan Borough Council,http://www.sandwell.gov.uk/info/200202/performance_and_spending/1079/payments_over_500,11-Mar-2022,Childrens Services,REDACTED PERSONAL DATA,Childrens Services,581.80,External Contract Hire,2122P12_CR00257,REDACTED PERSONAL DATA
Sandwell Metropolitan Borough Council,http://www.sandwell.gov.uk/info/200202/performance_and_spending/1079/payments_over_500,11-Mar-2022,Childrens Services,REDACTED PERSONAL DATA,Childrens Services,727.27,External Contract Hire,2122P12_CR00258,REDACTED PERSONAL DATA
Sandwell Metropolitan Borough Council,http://www.sandwell.gov.uk/info/200202/performance_and_spending/1079/payments_over_500,11-Mar-2022,Childrens Services,REDACTED PERSONAL DATA,Childrens Services,727.27,External Contract Hire,2122P12_CR00259,REDACTED PERSONAL DATA
Sandwell Metropolitan Borough Council,http://www.sandwell.gov.uk/info/200202/performance_and_spending/1079/payments_over_500,11-Mar-2022,Childrens Services,REDACTED PERSONAL DATA,Childrens Services,545.45,External Contract Hire,2122P12_CR00260,REDACTED PERSONAL DATA
Sandwell Metropolitan Borough Council,http://www.sandwell.gov.uk/info/200202/performance_and_spending/1079/payments_over_500,11-Mar-2022,Childrens Services,REDACTED PERSONAL DATA,Childrens Services,545.45,External Contract Hire,2122P12_CR00261,REDACTED PERSONAL DATA
Sandwell Metropolitan Borough Council,http://www.sandwell.gov.uk/info/200202/performance_and_spending/1079/payments_over_500,11-Mar-2022,Childrens Services,REDACTED PERSONAL DATA,Childrens Services,545.45,External Contract Hire,2122P12_CR00262,REDACTED PERSONAL DATA
Sandwell Metropolitan Borough Council,http://www.sandwell.gov.uk/info/200202/performance_and_spending/1079/payments_over_500,11-Mar-2022,Childrens Services,REDACTED PERSONAL DATA,Childrens Services,727.28,External Contract Hire,2122P12_CR00263,REDACTED PERSONAL DATA
Sandwell Metropolitan Borough Council,http://www.sandwell.gov.uk/info/200202/performance_and_spending/1079/payments_over_500,11-Mar-2022,Childrens Services,REDACTED PERSONAL DATA,Childrens Services,727.27,External Contract Hire,2122P12_CR00264,REDACTED PERSONAL DATA
Sandwell Metropolitan Borough Council,http://www.sandwell.gov.uk/info/200202/performance_and_spending/1079/payments_over_500,11-Mar-2022,Childrens Services,REDACTED PERSONAL DATA,Childrens Services,727.28,External Contract Hire,2122P12_CR00265,REDACTED PERSONAL DATA
Sandwell Metropolitan Borough Council,http://www.sandwell.gov.uk/info/200202/performance_and_spending/1079/payments_over_500,11-Mar-2022,Childrens Services,REDACTED PERSONAL DATA,Childrens Services,545.45,External Contract Hire,2122P12_CR00266,REDACTED PERSONAL DATA
Sandwell Metropolitan Borough Council,http://www.sandwell.gov.uk/info/200202/performance_and_spending/1079/payments_over_500,11-Mar-2022,Childrens Services,REDACTED PERSONAL DATA,Childrens Services,545.45,External Contract Hire,2122P12_CR00267,REDACTED PERSONAL DATA
Sandwell Metropolitan Borough Council,http://www.sandwell.gov.uk/info/200202/performance_and_spending/1079/payments_over_500,11-Mar-2022,Childrens Services,REDACTED PERSONAL DATA,Childrens Services,545.45,External Contract Hire,2122P12_CR00268,REDACTED PERSONAL DATA
Sandwell Metropolitan Borough Council,http://www.sandwell.gov.uk/info/200202/performance_and_spending/1079/payments_over_500,11-Mar-2022,Childrens Services,REDACTED PERSONAL DATA,Childrens Services,1090.90,External Contract Hire,2122P12_CR00269,REDACTED PERSONAL DATA
Sandwell Metropolitan Borough Council,http://www.sandwell.gov.uk/info/200202/performance_and_spending/1079/payments_over_500,11-Mar-2022,Childrens Services,REDACTED PERSONAL DATA,Childrens Services,545.45,External Contract Hire,2122P12_CR00270,REDACTED PERSONAL DATA
Sandwell Metropolitan Borough Council,http://www.sandwell.gov.uk/info/200202/performance_and_spending/1079/payments_over_500,11-Mar-2022,Childrens Services,REDACTED PERSONAL DATA,Childrens Services,545.45,External Contract Hire,2122P12_CR00271,REDACTED PERSONAL DATA
Sandwell Metropolitan Borough Council,http://www.sandwell.gov.uk/info/200202/performance_and_spending/1079/payments_over_500,11-Mar-2022,Childrens Services,REDACTED PERSONAL DATA,Childrens Services,727.27,External Contract Hire,2122P12_CR00272,REDACTED PERSONAL DATA
Sandwell Metropolitan Borough Council,http://www.sandwell.gov.uk/info/200202/performance_and_spending/1079/payments_over_500,11-Mar-2022,Childrens Services,REDACTED PERSONAL DATA,Childrens Services,909.09,External Contract Hire,2122P12_CR00273,REDACTED PERSONAL DATA
Sandwell Metropolitan Borough Council,http://www.sandwell.gov.uk/info/200202/performance_and_spending/1079/payments_over_500,11-Mar-2022,Childrens Services,REDACTED PERSONAL DATA,Childrens Services,545.45,External Contract Hire,2122P12_CR00274,REDACTED PERSONAL DATA
Sandwell Metropolitan Borough Council,http://www.sandwell.gov.uk/info/200202/performance_and_spending/1079/payments_over_500,11-Mar-2022,Childrens Services,REDACTED PERSONAL DATA,Childrens Services,545.45,External Contract Hire,2122P12_CR00275,REDACTED PERSONAL DATA
Sandwell Metropolitan Borough Council,http://www.sandwell.gov.uk/info/200202/performance_and_spending/1079/payments_over_500,11-Mar-2022,Childrens Services,REDACTED PERSONAL DATA,Childrens Services,545.45,External Contract Hire,2122P12_CR00276,REDACTED PERSONAL DATA
Sandwell Metropolitan Borough Council,http://www.sandwell.gov.uk/info/200202/performance_and_spending/1079/payments_over_500,11-Mar-2022,Childrens Services,REDACTED PERSONAL DATA,Childrens Services,727.28,External Contract Hire,2122P12_CR00277,REDACTED PERSONAL DATA
Sandwell Metropolitan Borough Council,http://www.sandwell.gov.uk/info/200202/performance_and_spending/1079/payments_over_500,11-Mar-2022,Childrens Services,REDACTED PERSONAL DATA,Childrens Services,800.00,External Contract Hire,2122P12_CR00278,REDACTED PERSONAL DATA
Sandwell Metropolitan Borough Council,http://www.sandwell.gov.uk/info/200202/performance_and_spending/1079/payments_over_500,11-Mar-2022,Childrens Services,REDACTED PERSONAL DATA,Childrens Services,545.45,External Contract Hire,2122P12_CR00279,REDACTED PERSONAL DATA
Sandwell Metropolitan Borough Council,http://www.sandwell.gov.uk/info/200202/performance_and_spending/1079/payments_over_500,11-Mar-2022,Childrens Services,REDACTED PERSONAL DATA,Childrens Services,727.28,External Contract Hire,2122P12_CR00280,REDACTED PERSONAL DATA
Sandwell Metropolitan Borough Council,http://www.sandwell.gov.uk/info/200202/performance_and_spending/1079/payments_over_500,11-Mar-2022,Childrens Services,REDACTED PERSONAL DATA,Childrens Services,727.27,External Contract Hire,2122P12_CR00281,REDACTED PERSONAL DATA
Sandwell Metropolitan Borough Council,http://www.sandwell.gov.uk/info/200202/performance_and_spending/1079/payments_over_500,11-Mar-2022,Childrens Services,REDACTED PERSONAL DATA,Childrens Services,545.45,External Contract Hire,2122P12_CR00282,REDACTED PERSONAL DATA
Sandwell Metropolitan Borough Council,http://www.sandwell.gov.uk/info/200202/performance_and_spending/1079/payments_over_500,11-Mar-2022,Childrens Services,REDACTED PERSONAL DATA,Childrens Services,545.45,External Contract Hire,2122P12_CR00283,REDACTED PERSONAL DATA
Sandwell Metropolitan Borough Council,http://www.sandwell.gov.uk/info/200202/performance_and_spending/1079/payments_over_500,11-Mar-2022,Childrens Services,REDACTED PERSONAL DATA,Childrens Services,545.45,External Contract Hire,2122P12_CR00284,REDACTED PERSONAL DATA
Sandwell Metropolitan Borough Council,http://www.sandwell.gov.uk/info/200202/performance_and_spending/1079/payments_over_500,08-Mar-2022,Childrens Services,REDACTED PERSONAL DATA,Childrens Services,850.50,External Contract Hire,2122P12_CR00285,REDACTED PERSONAL DATA
Sandwell Metropolitan Borough Council,http://www.sandwell.gov.uk/info/200202/performance_and_spending/1079/payments_over_500,11-Mar-2022,Childrens Services,REDACTED PERSONAL DATA,Childrens Services,545.45,External Contract Hire,2122P12_CR00286,REDACTED PERSONAL DATA
Sandwell Metropolitan Borough Council,http://www.sandwell.gov.uk/info/200202/performance_and_spending/1079/payments_over_500,11-Mar-2022,Childrens Services,REDACTED PERSONAL DATA,Childrens Services,545.45,External Contract Hire,2122P12_CR00287,REDACTED PERSONAL DATA
Sandwell Metropolitan Borough Council,http://www.sandwell.gov.uk/info/200202/performance_and_spending/1079/payments_over_500,23-Mar-2022,Childrens Services,REDACTED PERSONAL DATA,Childrens Services,798.66,External Contract Hire,2122P12_CR00288,REDACTED PERSONAL DATA
Sandwell Metropolitan Borough Council,http://www.sandwell.gov.uk/info/200202/performance_and_spending/1079/payments_over_500,11-Mar-2022,Childrens Services,REDACTED PERSONAL DATA,Childrens Services,545.45,External Contract Hire,2122P12_CR00289,REDACTED PERSONAL DATA
Sandwell Metropolitan Borough Council,http://www.sandwell.gov.uk/info/200202/performance_and_spending/1079/payments_over_500,11-Mar-2022,Childrens Services,REDACTED PERSONAL DATA,Childrens Services,727.27,External Contract Hire,2122P12_CR00290,REDACTED PERSONAL DATA
Sandwell Metropolitan Borough Council,http://www.sandwell.gov.uk/info/200202/performance_and_spending/1079/payments_over_500,11-Mar-2022,Childrens Services,REDACTED PERSONAL DATA,Childrens Services,727.27,External Contract Hire,2122P12_CR00291,REDACTED PERSONAL DATA
Sandwell Metropolitan Borough Council,http://www.sandwell.gov.uk/info/200202/performance_and_spending/1079/payments_over_500,11-Mar-2022,Childrens Services,REDACTED PERSONAL DATA,Childrens Services,727.27,External Contract Hire,2122P12_CR00292,REDACTED PERSONAL DATA
Sandwell Metropolitan Borough Council,http://www.sandwell.gov.uk/info/200202/performance_and_spending/1079/payments_over_500,11-Mar-2022,Childrens Services,REDACTED PERSONAL DATA,Childrens Services,727.27,External Contract Hire,2122P12_CR00293,REDACTED PERSONAL DATA
Sandwell Metropolitan Borough Council,http://www.sandwell.gov.uk/info/200202/performance_and_spending/1079/payments_over_500,11-Mar-2022,Childrens Services,REDACTED PERSONAL DATA,Childrens Services,545.45,External Contract Hire,2122P12_CR00294,REDACTED PERSONAL DATA
Sandwell Metropolitan Borough Council,http://www.sandwell.gov.uk/info/200202/performance_and_spending/1079/payments_over_500,11-Mar-2022,Childrens Services,REDACTED PERSONAL DATA,Childrens Services,727.27,External Contract Hire,2122P12_CR00295,REDACTED PERSONAL DATA
Sandwell Metropolitan Borough Council,http://www.sandwell.gov.uk/info/200202/performance_and_spending/1079/payments_over_500,11-Mar-2022,Childrens Services,REDACTED PERSONAL DATA,Childrens Services,545.45,External Contract Hire,2122P12_CR00296,REDACTED PERSONAL DATA
Sandwell Metropolitan Borough Council,http://www.sandwell.gov.uk/info/200202/performance_and_spending/1079/payments_over_500,11-Mar-2022,Childrens Services,REDACTED PERSONAL DATA,Childrens Services,727.27,External Contract Hire,2122P12_CR00297,REDACTED PERSONAL DATA
Sandwell Metropolitan Borough Council,http://www.sandwell.gov.uk/info/200202/performance_and_spending/1079/payments_over_500,11-Mar-2022,Childrens Services,REDACTED PERSONAL DATA,Childrens Services,727.27,External Contract Hire,2122P12_CR00298,REDACTED PERSONAL DATA
Sandwell Metropolitan Borough Council,http://www.sandwell.gov.uk/info/200202/performance_and_spending/1079/payments_over_500,11-Mar-2022,Childrens Services,REDACTED PERSONAL DATA,Childrens Services,545.45,External Contract Hire,2122P12_CR00299,REDACTED PERSONAL DATA
Sandwell Metropolitan Borough Council,http://www.sandwell.gov.uk/info/200202/performance_and_spending/1079/payments_over_500,11-Mar-2022,Childrens Services,REDACTED PERSONAL DATA,Childrens Services,727.27,External Contract Hire,2122P12_CR00300,REDACTED PERSONAL DATA
Sandwell Metropolitan Borough Council,http://www.sandwell.gov.uk/info/200202/performance_and_spending/1079/payments_over_500,11-Mar-2022,Childrens Services,REDACTED PERSONAL DATA,Childrens Services,545.45,External Contract Hire,2122P12_CR00301,REDACTED PERSONAL DATA
Sandwell Metropolitan Borough Council,http://www.sandwell.gov.uk/info/200202/performance_and_spending/1079/payments_over_500,11-Mar-2022,Childrens Services,REDACTED PERSONAL DATA,Childrens Services,727.27,External Contract Hire,2122P12_CR00302,REDACTED PERSONAL DATA
Sandwell Metropolitan Borough Council,http://www.sandwell.gov.uk/info/200202/performance_and_spending/1079/payments_over_500,17-Mar-2022,Childrens Services,S.C.V.O.,Childrens Services,10000.00,Grant Payments,2122P12_CR00303,109813
Sandwell Metropolitan Borough Council,http://www.sandwell.gov.uk/info/200202/performance_and_spending/1079/payments_over_500,01-Mar-2022,Childrens Services Capital,B & G CLEANING SYSTEMS LTD,Childrens Services Capital,1699.00,"CIP - New Construction,Conversion, Enhancement & Reno",2122P12_CR00304,01725481
Sandwell Metropolitan Borough Council,http://www.sandwell.gov.uk/info/200202/performance_and_spending/1079/payments_over_500,01-Mar-2022,Childrens Services Capital,INTERCLASS PLC,Childrens Services Capital,77427.94,"CIP - New Construction,Conversion, Enhancement & Reno",2122P12_CR00305,77001959
Sandwell Metropolitan Borough Council,http://www.sandwell.gov.uk/info/200202/performance_and_spending/1079/payments_over_500,01-Mar-2022,Childrens Services Capital,POWELL OFFICE EQUIPMENT LIMITED,Childrens Services Capital,633.50,"CIP - New Construction,Conversion, Enhancement & Reno",2122P12_CR00306,2759
Sandwell Metropolitan Borough Council,http://www.sandwell.gov.uk/info/200202/performance_and_spending/1079/payments_over_500,01-Mar-2022,Childrens Services Capital,POWELL OFFICE EQUIPMENT LIMITED,Childrens Services Capital,10538.83,"CIP - New Construction,Conversion, Enhancement & Reno",2122P12_CR00307,2759
Sandwell Metropolitan Borough Council,http://www.sandwell.gov.uk/info/200202/performance_and_spending/1079/payments_over_500,18-Mar-2022,Childrens Services Capital,POWELL OFFICE EQUIPMENT LIMITED,Childrens Services Capital,1068.90,"CIP - New Construction,Conversion, Enhancement & Reno",2122P12_CR00308,2759
Sandwell Metropolitan Borough Council,http://www.sandwell.gov.uk/info/200202/performance_and_spending/1079/payments_over_500,28-Mar-2022,Childrens Services Capital,SANDWELL FUTURES LTD,Childrens Services Capital,108231.38,"CIP - New Construction,Conversion, Enhancement & Reno",2122P12_CR00309,88151
Sandwell Metropolitan Borough Council,http://www.sandwell.gov.uk/info/200202/performance_and_spending/1079/payments_over_500,04-Mar-2022,Childrens Services Capital,SEDDON CONSTRUCTION LIMITED,Childrens Services Capital,53849.04,"CIP - New Construction,Conversion, Enhancement & Reno",2122P12_CR00310,132999
Sandwell Metropolitan Borough Council,http://www.sandwell.gov.uk/info/200202/performance_and_spending/1079/payments_over_500,04-Mar-2022,Childrens Services Capital,SEDDON CONSTRUCTION LIMITED,Childrens Services Capital,22841.29,"CIP - New Construction,Conversion, Enhancement & Reno",2122P12_CR00311,132999
Sandwell Metropolitan Borough Council,http://www.sandwell.gov.uk/info/200202/performance_and_spending/1079/payments_over_500,01-Mar-2022,Childrens Services Capital,STONE COMPUTERS LIMITED,Childrens Services Capital,1434.00,CIP - Fixtures & Fittings,2122P12_CR00312,23360
Sandwell Metropolitan Borough Council,http://www.sandwell.gov.uk/info/200202/performance_and_spending/1079/payments_over_500,11-Mar-2022,Childrens Services Capital,WEST BROMWICH COLLEGIATE ACADEMY,Childrens Services Capital,1210.00,"CIP - New Construction,Conversion, Enhancement & Reno",2122P12_CR00313,137780
Sandwell Metropolitan Borough Council,http://www.sandwell.gov.uk/info/200202/performance_and_spending/1079/payments_over_500,11-Mar-2022,Childrens Services Capital,WEST BROMWICH COLLEGIATE ACADEMY,Childrens Services Capital,8378.39,"CIP - New Construction,Conversion, Enhancement & Reno",2122P12_CR00314,137780
Sandwell Metropolitan Borough Council,http://www.sandwell.gov.uk/info/200202/performance_and_spending/1079/payments_over_500,01-Mar-2022,Housing & Communities,ASKEWS AND HOLTS LIBRARY SERVICES LTD.,Neighbourhoods,770.65,Materials & Consumables,2122P12_CR00315,111865
Sandwell Metropolitan Borough Council,http://www.sandwell.gov.uk/info/200202/performance_and_spending/1079/payments_over_500,01-Mar-2022,Housing & Communities,ASKEWS AND HOLTS LIBRARY SERVICES LTD.,Neighbourhoods,836.26,Materials & Consumables,2122P12_CR00316,111865
Sandwell Metropolitan Borough Council,http://www.sandwell.gov.uk/info/200202/performance_and_spending/1079/payments_over_500,01-Mar-2022,Housing & Communities,ASKEWS AND HOLTS LIBRARY SERVICES LTD.,Neighbourhoods,569.10,Materials & Consumables,2122P12_CR00317,111865
Sandwell Metropolitan Borough Council,http://www.sandwell.gov.uk/info/200202/performance_and_spending/1079/payments_over_500,01-Mar-2022,Housing & Communities,ASKEWS AND HOLTS LIBRARY SERVICES LTD.,Neighbourhoods,674.69,Materials & Consumables,2122P12_CR00318,111865
Sandwell Metropolitan Borough Council,http://www.sandwell.gov.uk/info/200202/performance_and_spending/1079/payments_over_500,01-Mar-2022,Housing & Communities,ASKEWS AND HOLTS LIBRARY SERVICES LTD.,Neighbourhoods,626.94,Materials & Consumables,2122P12_CR00319,111865
Sandwell Metropolitan Borough Council,http://www.sandwell.gov.uk/info/200202/performance_and_spending/1079/payments_over_500,01-Mar-2022,Housing & Communities,ASKEWS AND HOLTS LIBRARY SERVICES LTD.,Neighbourhoods,632.76,Materials & Consumables,2122P12_CR00320,111865
Sandwell Metropolitan Borough Council,http://www.sandwell.gov.uk/info/200202/performance_and_spending/1079/payments_over_500,01-Mar-2022,Housing & Communities,ASKEWS AND HOLTS LIBRARY SERVICES LTD.,Neighbourhoods,627.49,Materials & Consumables,2122P12_CR00321,111865
Sandwell Metropolitan Borough Council,http://www.sandwell.gov.uk/info/200202/performance_and_spending/1079/payments_over_500,01-Mar-2022,Housing & Communities,BOLINDA UK LTD,Neighbourhoods,3050.87,Materials & Consumables,2122P12_CR00322,117408
Sandwell Metropolitan Borough Council,http://www.sandwell.gov.uk/info/200202/performance_and_spending/1079/payments_over_500,01-Mar-2022,Housing & Communities,PETERS LIMITED,Neighbourhoods,653.80,Materials & Consumables,2122P12_CR00323,01059117
Sandwell Metropolitan Borough Council,http://www.sandwell.gov.uk/info/200202/performance_and_spending/1079/payments_over_500,01-Mar-2022,Housing & Communities,PETERS LIMITED,Neighbourhoods,557.39,Materials & Consumables,2122P12_CR00324,01059117
Sandwell Metropolitan Borough Council,http://www.sandwell.gov.uk/info/200202/performance_and_spending/1079/payments_over_500,01-Mar-2022,Housing & Communities,PETERS LIMITED,Neighbourhoods,510.38,Materials & Consumables,2122P12_CR00325,01059117
Sandwell Metropolitan Borough Council,http://www.sandwell.gov.uk/info/200202/performance_and_spending/1079/payments_over_500,01-Mar-2022,Housing & Communities,PETERS LIMITED,Neighbourhoods,525.89,Materials & Consumables,2122P12_CR00326,01059117
Sandwell Metropolitan Borough Council,http://www.sandwell.gov.uk/info/200202/performance_and_spending/1079/payments_over_500,01-Mar-2022,Housing & Communities,PETERS LIMITED,Neighbourhoods,655.09,Materials & Consumables,2122P12_CR00327,01059117
Sandwell Metropolitan Borough Council,http://www.sandwell.gov.uk/info/200202/performance_and_spending/1079/payments_over_500,01-Mar-2022,Housing & Communities,PETERS LIMITED,Neighbourhoods,600.85,Materials & Consumables,2122P12_CR00328,01059117
Sandwell Metropolitan Borough Council,http://www.sandwell.gov.uk/info/200202/performance_and_spending/1079/payments_over_500,01-Mar-2022,Housing & Communities,PETERS LIMITED,Neighbourhoods,631.97,Materials & Consumables,2122P12_CR00329,01059117
Sandwell Metropolitan Borough Council,http://www.sandwell.gov.uk/info/200202/performance_and_spending/1079/payments_over_500,01-Mar-2022,Housing & Communities,PETERS LIMITED,Neighbourhoods,947.76,Materials & Consumables,2122P12_CR00330,01059117
Sandwell Metropolitan Borough Council,http://www.sandwell.gov.uk/info/200202/performance_and_spending/1079/payments_over_500,01-Mar-2022,Housing & Communities,PETERS LIMITED,Neighbourhoods,541.30,Materials & Consumables,2122P12_CR00331,01059117
Sandwell Metropolitan Borough Council,http://www.sandwell.gov.uk/info/200202/performance_and_spending/1079/payments_over_500,07-Mar-2022,Housing & Communities,PETERS LIMITED,Neighbourhoods,854.86,Materials & Consumables,2122P12_CR00332,01059117
Sandwell Metropolitan Borough Council,http://www.sandwell.gov.uk/info/200202/performance_and_spending/1079/payments_over_500,07-Mar-2022,Housing & Communities,PETERS LIMITED,Neighbourhoods,851.67,Materials & Consumables,2122P12_CR00333,01059117
Sandwell Metropolitan Borough Council,http://www.sandwell.gov.uk/info/200202/performance_and_spending/1079/payments_over_500,08-Mar-2022,Housing & Communities,PETERS LIMITED,Neighbourhoods,1439.62,Materials & Consumables,2122P12_CR00334,01059117
Sandwell Metropolitan Borough Council,http://www.sandwell.gov.uk/info/200202/performance_and_spending/1079/payments_over_500,08-Mar-2022,Housing & Communities,PETERS LIMITED,Neighbourhoods,1041.15,Materials & Consumables,2122P12_CR00335,01059117
Sandwell Metropolitan Borough Council,http://www.sandwell.gov.uk/info/200202/performance_and_spending/1079/payments_over_500,08-Mar-2022,Housing & Communities,PETERS LIMITED,Neighbourhoods,1250.90,Materials & Consumables,2122P12_CR00336,01059117
Sandwell Metropolitan Borough Council,http://www.sandwell.gov.uk/info/200202/performance_and_spending/1079/payments_over_500,08-Mar-2022,Housing & Communities,PETERS LIMITED,Neighbourhoods,913.20,Materials & Consumables,2122P12_CR00337,01059117
Sandwell Metropolitan Borough Council,http://www.sandwell.gov.uk/info/200202/performance_and_spending/1079/payments_over_500,08-Mar-2022,Housing & Communities,PETERS LIMITED,Neighbourhoods,1024.00,Materials & Consumables,2122P12_CR00338,01059117
Sandwell Metropolitan Borough Council,http://www.sandwell.gov.uk/info/200202/performance_and_spending/1079/payments_over_500,08-Mar-2022,Housing & Communities,PETERS LIMITED,Neighbourhoods,719.90,Materials & Consumables,2122P12_CR00339,01059117
Sandwell Metropolitan Borough Council,http://www.sandwell.gov.uk/info/200202/performance_and_spending/1079/payments_over_500,08-Mar-2022,Housing & Communities,PETERS LIMITED,Neighbourhoods,1177.28,Materials & Consumables,2122P12_CR00340,01059117
Sandwell Metropolitan Borough Council,http://www.sandwell.gov.uk/info/200202/performance_and_spending/1079/payments_over_500,08-Mar-2022,Housing & Communities,PETERS LIMITED,Neighbourhoods,525.51,Materials & Consumables,2122P12_CR00341,01059117
Sandwell Metropolitan Borough Council,http://www.sandwell.gov.uk/info/200202/performance_and_spending/1079/payments_over_500,08-Mar-2022,Housing & Communities,PETERS LIMITED,Neighbourhoods,578.91,Materials & Consumables,2122P12_CR00342,01059117
Sandwell Metropolitan Borough Council,http://www.sandwell.gov.uk/info/200202/performance_and_spending/1079/payments_over_500,08-Mar-2022,Housing & Communities,PETERS LIMITED,Neighbourhoods,924.70,Materials & Consumables,2122P12_CR00343,01059117
Sandwell Metropolitan Borough Council,http://www.sandwell.gov.uk/info/200202/performance_and_spending/1079/payments_over_500,09-Mar-2022,Housing & Communities,PETERS LIMITED,Neighbourhoods,643.10,Materials & Consumables,2122P12_CR00344,01059117
Sandwell Metropolitan Borough Council,http://www.sandwell.gov.uk/info/200202/performance_and_spending/1079/payments_over_500,09-Mar-2022,Housing & Communities,PETERS LIMITED,Neighbourhoods,875.78,Materials & Consumables,2122P12_CR00345,01059117
Sandwell Metropolitan Borough Council,http://www.sandwell.gov.uk/info/200202/performance_and_spending/1079/payments_over_500,09-Mar-2022,Housing & Communities,PETERS LIMITED,Neighbourhoods,1100.70,Materials & Consumables,2122P12_CR00346,01059117
Sandwell Metropolitan Borough Council,http://www.sandwell.gov.uk/info/200202/performance_and_spending/1079/payments_over_500,01-Mar-2022,Housing & Communities,ACCESS INNOVATIONS UK LTD,Neighbourhoods,1095.00,Equipment & Furniture ,2122P12_CR00347,137694
Sandwell Metropolitan Borough Council,http://www.sandwell.gov.uk/info/200202/performance_and_spending/1079/payments_over_500,01-Mar-2022,Housing & Communities,ACCESSHIRE NATIONWIDE,Neighbourhoods,948.00,Vehicle Hiring Charges,2122P12_CR00348,123955
Sandwell Metropolitan Borough Council,http://www.sandwell.gov.uk/info/200202/performance_and_spending/1079/payments_over_500,23-Mar-2022,Housing & Communities,ACCESSHIRE NATIONWIDE,Neighbourhoods,540.00,Vehicle Hiring Charges,2122P12_CR00349,123955
Sandwell Metropolitan Borough Council,http://www.sandwell.gov.uk/info/200202/performance_and_spending/1079/payments_over_500,25-Mar-2022,Housing & Communities,ACCESSHIRE NATIONWIDE,Neighbourhoods,1679.00,Vehicle Hiring Charges,2122P12_CR00350,123955
Sandwell Metropolitan Borough Council,http://www.sandwell.gov.uk/info/200202/performance_and_spending/1079/payments_over_500,10-Mar-2022,Housing & Communities,AUTOWASH ENGINEERING LIMITED,Neighbourhoods,860.00,Repairs & Maintenance,2122P12_CR00351,99641
Sandwell Metropolitan Borough Council,http://www.sandwell.gov.uk/info/200202/performance_and_spending/1079/payments_over_500,24-Feb-2022,Housing & Communities,BA BUSH & SON LTD,Neighbourhoods,1222.00,Tyres,2122P12_CR00352,159771
Sandwell Metropolitan Borough Council,http://www.sandwell.gov.uk/info/200202/performance_and_spending/1079/payments_over_500,01-Mar-2022,Housing & Communities,BOC LTD,Neighbourhoods,526.20,Fire Service Workshops,2122P12_CR00353,01070163
Sandwell Metropolitan Borough Council,http://www.sandwell.gov.uk/info/200202/performance_and_spending/1079/payments_over_500,01-Mar-2022,Housing & Communities,DAWSONGROUP VANS,Neighbourhoods,566.40,Vehicle Hiring Charges,2122P12_CR00354,151498
Sandwell Metropolitan Borough Council,http://www.sandwell.gov.uk/info/200202/performance_and_spending/1079/payments_over_500,01-Mar-2022,Housing & Communities,DAYS RENTAL,Neighbourhoods,804.72,Vehicle Hiring Charges,2122P12_CR00355,128169
Sandwell Metropolitan Borough Council,http://www.sandwell.gov.uk/info/200202/performance_and_spending/1079/payments_over_500,01-Mar-2022,Housing & Communities,DAYS RENTAL,Neighbourhoods,804.72,Vehicle Hiring Charges,2122P12_CR00356,128169
Sandwell Metropolitan Borough Council,http://www.sandwell.gov.uk/info/200202/performance_and_spending/1079/payments_over_500,01-Mar-2022,Housing & Communities,DAYS RENTAL,Neighbourhoods,804.72,Vehicle Hiring Charges,2122P12_CR00357,128169
Sandwell Metropolitan Borough Council,http://www.sandwell.gov.uk/info/200202/performance_and_spending/1079/payments_over_500,22-Mar-2022,Housing & Communities,DAYS RENTAL,Neighbourhoods,632.28,Vehicle Hiring Charges,2122P12_CR00358,128169
Sandwell Metropolitan Borough Council,http://www.sandwell.gov.uk/info/200202/performance_and_spending/1079/payments_over_500,25-Mar-2022,Housing & Communities,DAYS RENTAL,Neighbourhoods,718.50,Vehicle Hiring Charges,2122P12_CR00359,128169
Sandwell Metropolitan Borough Council,http://www.sandwell.gov.uk/info/200202/performance_and_spending/1079/payments_over_500,30-Mar-2022,Housing & Communities,DAYS RENTAL,Neighbourhoods,1056.74,Vehicle Hiring Charges,2122P12_CR00360,128169
Sandwell Metropolitan Borough Council,http://www.sandwell.gov.uk/info/200202/performance_and_spending/1079/payments_over_500,31-Mar-2022,Housing & Communities,DAYS RENTAL,Neighbourhoods,518.94,Vehicle Hiring Charges,2122P12_CR00361,128169
Sandwell Metropolitan Borough Council,http://www.sandwell.gov.uk/info/200202/performance_and_spending/1079/payments_over_500,31-Mar-2022,Housing & Communities,DAYS RENTAL,Neighbourhoods,890.94,Vehicle Hiring Charges,2122P12_CR00362,128169
Sandwell Metropolitan Borough Council,http://www.sandwell.gov.uk/info/200202/performance_and_spending/1079/payments_over_500,31-Mar-2022,Housing & Communities,DAYS RENTAL,Neighbourhoods,518.94,Vehicle Hiring Charges,2122P12_CR00363,128169
Sandwell Metropolitan Borough Council,http://www.sandwell.gov.uk/info/200202/performance_and_spending/1079/payments_over_500,31-Mar-2022,Housing & Communities,DAYS RENTAL,Neighbourhoods,518.94,Vehicle Hiring Charges,2122P12_CR00364,128169
Sandwell Metropolitan Borough Council,http://www.sandwell.gov.uk/info/200202/performance_and_spending/1079/payments_over_500,11-Mar-2022,Housing & Communities,DENNIS EAGLE LTD,Neighbourhoods,1103.32,Fire Service Workshops,2122P12_CR00365,01004865
Sandwell Metropolitan Borough Council,http://www.sandwell.gov.uk/info/200202/performance_and_spending/1079/payments_over_500,22-Mar-2022,Housing & Communities,DENNIS EAGLE LTD,Neighbourhoods,782.99,Fire Service Workshops,2122P12_CR00366,01004865
Sandwell Metropolitan Borough Council,http://www.sandwell.gov.uk/info/200202/performance_and_spending/1079/payments_over_500,17-Mar-2022,Housing & Communities,GREENMAN SPECIALIST VEHICLE SERVICES LTD.,Neighbourhoods,630.00,Fire Service Workshops,2122P12_CR00367,133345
Sandwell Metropolitan Borough Council,http://www.sandwell.gov.uk/info/200202/performance_and_spending/1079/payments_over_500,01-Mar-2022,Housing & Communities,GREENMAN SPECIALIST VEHICLE SERVICES LTD.,Neighbourhoods,610.00,Fire Service Workshops,2122P12_CR00368,133345
Sandwell Metropolitan Borough Council,http://www.sandwell.gov.uk/info/200202/performance_and_spending/1079/payments_over_500,22-Mar-2022,Housing & Communities,GUNN JCB LTD,Neighbourhoods,658.43,Fire Service Workshops,2122P12_CR00369,01015439
Sandwell Metropolitan Borough Council,http://www.sandwell.gov.uk/info/200202/performance_and_spending/1079/payments_over_500,22-Mar-2022,Housing & Communities,GUNN JCB LTD,Neighbourhoods,658.43,Fire Service Workshops,2122P12_CR00370,01015439
Sandwell Metropolitan Borough Council,http://www.sandwell.gov.uk/info/200202/performance_and_spending/1079/payments_over_500,08-Mar-2022,Housing & Communities,H L SMITH (TRANSMISSIONS) LTD,Neighbourhoods,510.00,Fire Service Workshops,2122P12_CR00371,01032886
Sandwell Metropolitan Borough Council,http://www.sandwell.gov.uk/info/200202/performance_and_spending/1079/payments_over_500,01-Mar-2022,Housing & Communities,HADLEYS STEAM CLEANING LTD,Neighbourhoods,1373.00,Repairs & Maintenance,2122P12_CR00372,132536
Sandwell Metropolitan Borough Council,http://www.sandwell.gov.uk/info/200202/performance_and_spending/1079/payments_over_500,17-Mar-2022,Housing & Communities,HARTSHORNE MOTOR SERVICES LTD,Neighbourhoods,1209.52,Fire Service Workshops,2122P12_CR00373,01508668
Sandwell Metropolitan Borough Council,http://www.sandwell.gov.uk/info/200202/performance_and_spending/1079/payments_over_500,28-Mar-2022,Housing & Communities,JAMES LISTER & SONS LTD,Neighbourhoods,550.00,Fire Service Workshops,2122P12_CR00374,01021821
Sandwell Metropolitan Borough Council,http://www.sandwell.gov.uk/info/200202/performance_and_spending/1079/payments_over_500,11-Mar-2022,Housing & Communities,K IRVINE PLANT (UK) LTD,Neighbourhoods,1497.79,Repairs & Maintenance,2122P12_CR00375,01626135
Sandwell Metropolitan Borough Council,http://www.sandwell.gov.uk/info/200202/performance_and_spending/1079/payments_over_500,01-Mar-2022,Housing & Communities,LANDOWNER PRODUCTS,Neighbourhoods,592.00,Fire Service Workshops,2122P12_CR00376,131886
Sandwell Metropolitan Borough Council,http://www.sandwell.gov.uk/info/200202/performance_and_spending/1079/payments_over_500,29-Mar-2022,Housing & Communities,MACKWORTH VEHICLE CONVERSIONS,Neighbourhoods,836.50,Fire Service Workshops,2122P12_CR00377,124922
Sandwell Metropolitan Borough Council,http://www.sandwell.gov.uk/info/200202/performance_and_spending/1079/payments_over_500,25-Mar-2022,Housing & Communities,OAKLEYS LTD,Neighbourhoods,1618.27,Fire Service Workshops,2122P12_CR00378,01598115
Sandwell Metropolitan Borough Council,http://www.sandwell.gov.uk/info/200202/performance_and_spending/1079/payments_over_500,06-Mar-2022,Housing & Communities,PHS BESAFE,Neighbourhoods,1054.83,Laundry,2122P12_CR00379,124613
Sandwell Metropolitan Borough Council,http://www.sandwell.gov.uk/info/200202/performance_and_spending/1079/payments_over_500,01-Mar-2022,Housing & Communities,PUGH'S PLANT HIRE,Neighbourhoods,600.00,Vehicle Hiring Charges,2122P12_CR00380,147204
Sandwell Metropolitan Borough Council,http://www.sandwell.gov.uk/info/200202/performance_and_spending/1079/payments_over_500,01-Mar-2022,Housing & Communities,ROBINS & DAY BIRMINGHAM NORTH,Neighbourhoods,1170.88,Fire Service Workshops,2122P12_CR00381,155696
Sandwell Metropolitan Borough Council,http://www.sandwell.gov.uk/info/200202/performance_and_spending/1079/payments_over_500,28-Mar-2022,Housing & Communities,ROBINS & DAY PARTS WEST MIDLANDS,Neighbourhoods,665.31,Fire Service Workshops,2122P12_CR00382,118812
Sandwell Metropolitan Borough Council,http://www.sandwell.gov.uk/info/200202/performance_and_spending/1079/payments_over_500,15-Mar-2022,Housing & Communities,ROBINS & DAY PARTS WEST MIDLANDS,Neighbourhoods,883.09,Fire Service Workshops,2122P12_CR00383,118812
Sandwell Metropolitan Borough Council,http://www.sandwell.gov.uk/info/200202/performance_and_spending/1079/payments_over_500,19-Mar-2022,Housing & Communities,ROBINS & DAY PARTS WEST MIDLANDS,Neighbourhoods,621.23,Fire Service Workshops,2122P12_CR00384,118812
Sandwell Metropolitan Borough Council,http://www.sandwell.gov.uk/info/200202/performance_and_spending/1079/payments_over_500,24-Mar-2022,Housing & Communities,ROBINS & DAY PARTS WEST MIDLANDS,Neighbourhoods,921.16,Fire Service Workshops,2122P12_CR00385,118812
Sandwell Metropolitan Borough Council,http://www.sandwell.gov.uk/info/200202/performance_and_spending/1079/payments_over_500,28-Mar-2022,Housing & Communities,ROBINS & DAY PARTS WEST MIDLANDS,Neighbourhoods,1215.75,Fire Service Workshops,2122P12_CR00386,118812
Sandwell Metropolitan Borough Council,http://www.sandwell.gov.uk/info/200202/performance_and_spending/1079/payments_over_500,14-Mar-2022,Housing & Communities,ROBINS & DAY PARTS WEST MIDLANDS,Neighbourhoods,509.86,Fire Service Workshops,2122P12_CR00387,118812
Sandwell Metropolitan Borough Council,http://www.sandwell.gov.uk/info/200202/performance_and_spending/1079/payments_over_500,18-Mar-2022,Housing & Communities,ROBINS & DAY PARTS WEST MIDLANDS,Neighbourhoods,684.59,Fire Service Workshops,2122P12_CR00388,118812
Sandwell Metropolitan Borough Council,http://www.sandwell.gov.uk/info/200202/performance_and_spending/1079/payments_over_500,28-Mar-2022,Housing & Communities,RS COMPONENTS LTD,Neighbourhoods,620.29,Fire Service Workshops,2122P12_CR00389,01665835
Sandwell Metropolitan Borough Council,http://www.sandwell.gov.uk/info/200202/performance_and_spending/1079/payments_over_500,09-Mar-2022,Housing & Communities,RS RECOVERY LTD,Neighbourhoods,595.00,Fire Service Workshops,2122P12_CR00390,01756992
Sandwell Metropolitan Borough Council,http://www.sandwell.gov.uk/info/200202/performance_and_spending/1079/payments_over_500,09-Mar-2022,Housing & Communities,RYGOR COMMERCIALS LTD,Neighbourhoods,835.69,Fire Service Workshops,2122P12_CR00391,3345
Sandwell Metropolitan Borough Council,http://www.sandwell.gov.uk/info/200202/performance_and_spending/1079/payments_over_500,18-Mar-2022,Housing & Communities,RYGOR COMMERCIALS LTD,Neighbourhoods,530.75,Fire Service Workshops,2122P12_CR00392,3345
Sandwell Metropolitan Borough Council,http://www.sandwell.gov.uk/info/200202/performance_and_spending/1079/payments_over_500,14-Mar-2022,Housing & Communities,SEDDONS (PLANT AND ENGINEERS) LIMITED,Neighbourhoods,704.80,Repairs & Maintenance,2122P12_CR00393,01359495
Sandwell Metropolitan Borough Council,http://www.sandwell.gov.uk/info/200202/performance_and_spending/1079/payments_over_500,09-Mar-2022,Housing & Communities,SIMON TULLETT MACHINERY COMPANY LIMITED,Neighbourhoods,1571.89,Repairs & Maintenance,2122P12_CR00394,109117
Sandwell Metropolitan Borough Council,http://www.sandwell.gov.uk/info/200202/performance_and_spending/1079/payments_over_500,15-Mar-2022,Housing & Communities,TERBERG MATEC UK LTD,Neighbourhoods,1466.78,Fire Service Workshops,2122P12_CR00395,21235
Sandwell Metropolitan Borough Council,http://www.sandwell.gov.uk/info/200202/performance_and_spending/1079/payments_over_500,15-Mar-2022,Housing & Communities,TERBERG MATEC UK LTD,Neighbourhoods,1466.78,Fire Service Workshops,2122P12_CR00396,21235
Sandwell Metropolitan Borough Council,http://www.sandwell.gov.uk/info/200202/performance_and_spending/1079/payments_over_500,10-Mar-2022,Housing & Communities,TERBERG MATEC UK LTD,Neighbourhoods,1881.22,Fire Service Workshops,2122P12_CR00397,21235
Sandwell Metropolitan Borough Council,http://www.sandwell.gov.uk/info/200202/performance_and_spending/1079/payments_over_500,25-Mar-2022,Housing & Communities,TERBERG MATEC UK LTD,Neighbourhoods,1875.78,Fire Service Workshops,2122P12_CR00398,21235
Sandwell Metropolitan Borough Council,http://www.sandwell.gov.uk/info/200202/performance_and_spending/1079/payments_over_500,01-Mar-2022,Housing & Communities,TH WHITE LIMITED,Neighbourhoods,2251.33,Fire Service Workshops,2122P12_CR00399,01774713
Sandwell Metropolitan Borough Council,http://www.sandwell.gov.uk/info/200202/performance_and_spending/1079/payments_over_500,01-Mar-2022,Housing & Communities,TH WHITE LIMITED,Neighbourhoods,591.00,Fire Service Workshops,2122P12_CR00400,01774713
Sandwell Metropolitan Borough Council,http://www.sandwell.gov.uk/info/200202/performance_and_spending/1079/payments_over_500,07-Mar-2022,Housing & Communities,TH WHITE LIMITED,Neighbourhoods,613.00,Fire Service Workshops,2122P12_CR00401,01774713
Sandwell Metropolitan Borough Council,http://www.sandwell.gov.uk/info/200202/performance_and_spending/1079/payments_over_500,01-Mar-2022,Housing & Communities,TH WHITE LIMITED,Neighbourhoods,753.17,Repairs & Maintenance,2122P12_CR00402,01774713
Sandwell Metropolitan Borough Council,http://www.sandwell.gov.uk/info/200202/performance_and_spending/1079/payments_over_500,21-Mar-2022,Housing & Communities,TH WHITE LIMITED,Neighbourhoods,610.44,Repairs & Maintenance,2122P12_CR00403,01774713
Sandwell Metropolitan Borough Council,http://www.sandwell.gov.uk/info/200202/performance_and_spending/1079/payments_over_500,08-Mar-2022,Housing & Communities,TRUCK & TRAILER EQUIPMENT LIMITED,Neighbourhoods,538.50,Fire Service Workshops,2122P12_CR00404,126296
Sandwell Metropolitan Borough Council,http://www.sandwell.gov.uk/info/200202/performance_and_spending/1079/payments_over_500,01-Mar-2022,Housing & Communities,TRUCK & TRAILER EQUIPMENT LIMITED,Neighbourhoods,1430.00,Protective Clothing & Uniforms,2122P12_CR00405,126296
Sandwell Metropolitan Borough Council,http://www.sandwell.gov.uk/info/200202/performance_and_spending/1079/payments_over_500,30-Mar-2022,Housing & Communities,TRUCKSTOP-HAWKES,Neighbourhoods,2000.00,Externally Purchased Professional Services ,2122P12_CR00406,109408
Sandwell Metropolitan Borough Council,http://www.sandwell.gov.uk/info/200202/performance_and_spending/1079/payments_over_500,03-Mar-2022,Housing & Communities,WATLING JCB LIMITED,Housing & Communities,21950.00,"CIP - Vehicles, Plant & Machinery",2122P12_CR00407,127607
Sandwell Metropolitan Borough Council,http://www.sandwell.gov.uk/info/200202/performance_and_spending/1079/payments_over_500,03-Mar-2022,Housing & Communities,WATLING JCB LIMITED,Housing & Communities,21950.00,"CIP - Vehicles, Plant & Machinery",2122P12_CR00408,127607
Sandwell Metropolitan Borough Council,http://www.sandwell.gov.uk/info/200202/performance_and_spending/1079/payments_over_500,01-Mar-2022,Housing & Communities,WEST BROMWICH FASTENERS LTD,Neighbourhoods,781.04,Fire Service Workshops,2122P12_CR00409,01047787
Sandwell Metropolitan Borough Council,http://www.sandwell.gov.uk/info/200202/performance_and_spending/1079/payments_over_500,01-Mar-2022,Housing & Communities,608 EQUINE & FARM VETS LLP,Neighbourhoods,1064.25,Externally Purchased Professional Services ,2122P12_CR00410,141885
Sandwell Metropolitan Borough Council,http://www.sandwell.gov.uk/info/200202/performance_and_spending/1079/payments_over_500,15-Mar-2022,Housing & Communities,A E CHAPMAN & CO (OLD HILL) LTD,Neighbourhoods,3090.60,Rents,2122P12_CR00411,77001665
Sandwell Metropolitan Borough Council,http://www.sandwell.gov.uk/info/200202/performance_and_spending/1079/payments_over_500,01-Mar-2022,Housing & Communities,ACCORD HOUSING ASSOCIATION LTD                                           ,Neighbourhoods,4635.00,Other Agency Payments,2122P12_CR00412,65002859
Sandwell Metropolitan Borough Council,http://www.sandwell.gov.uk/info/200202/performance_and_spending/1079/payments_over_500,01-Mar-2022,Housing & Communities,ACCORD HOUSING ASSOCIATION LTD                                           ,Neighbourhoods,4635.00,Other Agency Payments,2122P12_CR00413,65002859
Sandwell Metropolitan Borough Council,http://www.sandwell.gov.uk/info/200202/performance_and_spending/1079/payments_over_500,01-Mar-2022,Housing & Communities,ACCORD HOUSING ASSOCIATION LTD                                           ,Neighbourhoods,19565.00,Other Agency Payments,2122P12_CR00414,65002859
Sandwell Metropolitan Borough Council,http://www.sandwell.gov.uk/info/200202/performance_and_spending/1079/payments_over_500,01-Mar-2022,Housing & Communities,ACCORD HOUSING ASSOCIATION LTD                                           ,Neighbourhoods,19565.00,Other Agency Payments,2122P12_CR00415,65002859
Sandwell Metropolitan Borough Council,http://www.sandwell.gov.uk/info/200202/performance_and_spending/1079/payments_over_500,01-Mar-2022,Housing & Communities,ACCORD HOUSING ASSOCIATION LTD                                           ,Neighbourhoods,19565.00,Other Agency Payments,2122P12_CR00416,65002859
Sandwell Metropolitan Borough Council,http://www.sandwell.gov.uk/info/200202/performance_and_spending/1079/payments_over_500,01-Mar-2022,Housing & Communities,ACCORD HOUSING ASSOCIATION LTD                                           ,Neighbourhoods,4635.00,Other Agency Payments,2122P12_CR00417,65002859
Sandwell Metropolitan Borough Council,http://www.sandwell.gov.uk/info/200202/performance_and_spending/1079/payments_over_500,01-Mar-2022,Housing & Communities,AECOM INFRASTRUCTURE & ENVIRONMENT UK LIMITED,Neighbourhoods,4174.82,Consultancy,2122P12_CR00418,107299
Sandwell Metropolitan Borough Council,http://www.sandwell.gov.uk/info/200202/performance_and_spending/1079/payments_over_500,01-Mar-2022,Housing & Communities,AGRIGEM LTD,Neighbourhoods,1760.00,Grounds Maintenance & Improvements,2122P12_CR00419,162012
Sandwell Metropolitan Borough Council,http://www.sandwell.gov.uk/info/200202/performance_and_spending/1079/payments_over_500,15-Mar-2022,Housing & Communities,ALLSTAR BUSINESS SOLUTIONS LIMITED,Neighbourhoods,1457.49,Fuel ,2122P12_CR00420,104057
Sandwell Metropolitan Borough Council,http://www.sandwell.gov.uk/info/200202/performance_and_spending/1079/payments_over_500,09-Mar-2022,Housing & Communities,AMCORP GROUP LTD,Neighbourhoods,19500.00,Civic Events,2122P12_CR00421,155889
Sandwell Metropolitan Borough Council,http://www.sandwell.gov.uk/info/200202/performance_and_spending/1079/payments_over_500,01-Mar-2022,Housing & Communities,AMOBOX LTD,Neighbourhoods,9800.00,Civic Events,2122P12_CR00422,162112
Sandwell Metropolitan Borough Council,http://www.sandwell.gov.uk/info/200202/performance_and_spending/1079/payments_over_500,11-Mar-2022,Housing & Communities,ARNOLD LAVER & CO LTD,Neighbourhoods,1197.62,Building Maintenance & Improvements,2122P12_CR00423,01398491
Sandwell Metropolitan Borough Council,http://www.sandwell.gov.uk/info/200202/performance_and_spending/1079/payments_over_500,01-Mar-2022,Housing & Communities,ARNOLD LAVER & CO LTD,Neighbourhoods,2180.29,Building Maintenance & Improvements,2122P12_CR00424,01398491
Sandwell Metropolitan Borough Council,http://www.sandwell.gov.uk/info/200202/performance_and_spending/1079/payments_over_500,01-Mar-2022,Housing & Communities,ASHTON FIRE LTD,Housing & Communities,1650.00,CIP - Op Equipment,2122P12_CR00425,141798
Sandwell Metropolitan Borough Council,http://www.sandwell.gov.uk/info/200202/performance_and_spending/1079/payments_over_500,09-Mar-2022,Housing & Communities,ASKEWS AND HOLTS LIBRARY SERVICES LTD.,Neighbourhoods,500.00,Materials & Consumables,2122P12_CR00426,111865
Sandwell Metropolitan Borough Council,http://www.sandwell.gov.uk/info/200202/performance_and_spending/1079/payments_over_500,06-Mar-2022,Housing & Communities,BANNER GROUP LTD,Neighbourhoods,557.91,Materials & Consumables,2122P12_CR00427,134506
Sandwell Metropolitan Borough Council,http://www.sandwell.gov.uk/info/200202/performance_and_spending/1079/payments_over_500,01-Mar-2022,Housing & Communities,BCH PROPERTY LIMITED,Neighbourhoods,1166.76,Rents,2122P12_CR00428,01011861
Sandwell Metropolitan Borough Council,http://www.sandwell.gov.uk/info/200202/performance_and_spending/1079/payments_over_500,01-Mar-2022,Housing & Communities,BCH PROPERTY LIMITED,Neighbourhoods,1879.44,Rents,2122P12_CR00429,01011861
Sandwell Metropolitan Borough Council,http://www.sandwell.gov.uk/info/200202/performance_and_spending/1079/payments_over_500,01-Mar-2022,Housing & Communities,BCH PROPERTY LIMITED,Neighbourhoods,1283.52,Rents,2122P12_CR00430,01011861
Sandwell Metropolitan Borough Council,http://www.sandwell.gov.uk/info/200202/performance_and_spending/1079/payments_over_500,01-Mar-2022,Housing & Communities,BCH PROPERTY LIMITED,Neighbourhoods,1283.52,Rents,2122P12_CR00431,01011861
Sandwell Metropolitan Borough Council,http://www.sandwell.gov.uk/info/200202/performance_and_spending/1079/payments_over_500,01-Mar-2022,Housing & Communities,BCH PROPERTY LIMITED,Neighbourhoods,2062.80,Rents,2122P12_CR00432,01011861
Sandwell Metropolitan Borough Council,http://www.sandwell.gov.uk/info/200202/performance_and_spending/1079/payments_over_500,01-Mar-2022,Housing & Communities,BCH PROPERTY LIMITED,Neighbourhoods,666.80,Rents,2122P12_CR00433,01011861
Sandwell Metropolitan Borough Council,http://www.sandwell.gov.uk/info/200202/performance_and_spending/1079/payments_over_500,01-Mar-2022,Housing & Communities,BCH PROPERTY LIMITED,Neighbourhoods,1283.52,Rents,2122P12_CR00434,01011861
Sandwell Metropolitan Borough Council,http://www.sandwell.gov.uk/info/200202/performance_and_spending/1079/payments_over_500,01-Mar-2022,Housing & Communities,BCH PROPERTY LIMITED,Neighbourhoods,1166.76,Rents,2122P12_CR00435,01011861
Sandwell Metropolitan Borough Council,http://www.sandwell.gov.uk/info/200202/performance_and_spending/1079/payments_over_500,01-Mar-2022,Housing & Communities,BCH PROPERTY LIMITED,Neighbourhoods,1867.04,Rents,2122P12_CR00436,01011861
Sandwell Metropolitan Borough Council,http://www.sandwell.gov.uk/info/200202/performance_and_spending/1079/payments_over_500,01-Mar-2022,Housing & Communities,BCH PROPERTY LIMITED,Neighbourhoods,875.07,Rents,2122P12_CR00437,01011861
Sandwell Metropolitan Borough Council,http://www.sandwell.gov.uk/info/200202/performance_and_spending/1079/payments_over_500,01-Mar-2022,Housing & Communities,BCH PROPERTY LIMITED,Neighbourhoods,1867.04,Rents,2122P12_CR00438,01011861
Sandwell Metropolitan Borough Council,http://www.sandwell.gov.uk/info/200202/performance_and_spending/1079/payments_over_500,01-Mar-2022,Housing & Communities,BCH PROPERTY LIMITED,Neighbourhoods,1166.76,Rents,2122P12_CR00439,01011861
Sandwell Metropolitan Borough Council,http://www.sandwell.gov.uk/info/200202/performance_and_spending/1079/payments_over_500,01-Mar-2022,Housing & Communities,BCH PROPERTY LIMITED,Neighbourhoods,1283.52,Rents,2122P12_CR00440,01011861
Sandwell Metropolitan Borough Council,http://www.sandwell.gov.uk/info/200202/performance_and_spending/1079/payments_over_500,01-Mar-2022,Housing & Communities,BCH PROPERTY LIMITED,Neighbourhoods,975.13,Rents,2122P12_CR00441,01011861
Sandwell Metropolitan Borough Council,http://www.sandwell.gov.uk/info/200202/performance_and_spending/1079/payments_over_500,01-Mar-2022,Housing & Communities,BCH PROPERTY LIMITED,Neighbourhoods,500.10,Rents,2122P12_CR00442,01011861
Sandwell Metropolitan Borough Council,http://www.sandwell.gov.uk/info/200202/performance_and_spending/1079/payments_over_500,01-Mar-2022,Housing & Communities,BCH PROPERTY LIMITED,Neighbourhoods,3317.10,Rents,2122P12_CR00443,01011861
Sandwell Metropolitan Borough Council,http://www.sandwell.gov.uk/info/200202/performance_and_spending/1079/payments_over_500,01-Mar-2022,Housing & Communities,BEECHWOOD TREES & LANDSCAPE LTD,Neighbourhoods,900.00,Externally Purchased Professional Services ,2122P12_CR00444,93287
Sandwell Metropolitan Borough Council,http://www.sandwell.gov.uk/info/200202/performance_and_spending/1079/payments_over_500,01-Mar-2022,Housing & Communities,BEECHWOOD TREES & LANDSCAPE LTD,Neighbourhoods,759.00,Externally Purchased Professional Services ,2122P12_CR00445,93287
Sandwell Metropolitan Borough Council,http://www.sandwell.gov.uk/info/200202/performance_and_spending/1079/payments_over_500,01-Mar-2022,Housing & Communities,BEECHWOOD TREES & LANDSCAPE LTD,Neighbourhoods,630.00,Externally Purchased Professional Services ,2122P12_CR00446,93287
Sandwell Metropolitan Borough Council,http://www.sandwell.gov.uk/info/200202/performance_and_spending/1079/payments_over_500,01-Mar-2022,Housing & Communities,BEECHWOOD TREES & LANDSCAPE LTD,Neighbourhoods,610.00,Externally Purchased Professional Services ,2122P12_CR00447,93287
Sandwell Metropolitan Borough Council,http://www.sandwell.gov.uk/info/200202/performance_and_spending/1079/payments_over_500,01-Mar-2022,Housing & Communities,BEECHWOOD TREES & LANDSCAPE LTD,Neighbourhoods,850.00,Externally Purchased Professional Services ,2122P12_CR00448,93287
Sandwell Metropolitan Borough Council,http://www.sandwell.gov.uk/info/200202/performance_and_spending/1079/payments_over_500,04-Mar-2022,Housing & Communities,BEECHWOOD TREES & LANDSCAPE LTD,Neighbourhoods,1040.00,Externally Purchased Professional Services ,2122P12_CR00449,93287
Sandwell Metropolitan Borough Council,http://www.sandwell.gov.uk/info/200202/performance_and_spending/1079/payments_over_500,04-Mar-2022,Housing & Communities,BEECHWOOD TREES & LANDSCAPE LTD,Neighbourhoods,1360.00,Externally Purchased Professional Services ,2122P12_CR00450,93287
Sandwell Metropolitan Borough Council,http://www.sandwell.gov.uk/info/200202/performance_and_spending/1079/payments_over_500,04-Mar-2022,Housing & Communities,BEECHWOOD TREES & LANDSCAPE LTD,Neighbourhoods,585.00,Externally Purchased Professional Services ,2122P12_CR00451,93287
Sandwell Metropolitan Borough Council,http://www.sandwell.gov.uk/info/200202/performance_and_spending/1079/payments_over_500,01-Mar-2022,Housing & Communities,BEECHWOOD TREES & LANDSCAPE LTD,Neighbourhoods,720.00,Externally Purchased Professional Services ,2122P12_CR00452,93287
Sandwell Metropolitan Borough Council,http://www.sandwell.gov.uk/info/200202/performance_and_spending/1079/payments_over_500,01-Mar-2022,Housing & Communities,BEEHIVE BITS LIMITED,Neighbourhoods,864.00,Materials & Consumables,2122P12_CR00453,130628
Sandwell Metropolitan Borough Council,http://www.sandwell.gov.uk/info/200202/performance_and_spending/1079/payments_over_500,02-Mar-2022,Housing & Communities,BIG HELP HOMES,Neighbourhoods,1819.29,Tenants Expenses,2122P12_CR00454,162299
Sandwell Metropolitan Borough Council,http://www.sandwell.gov.uk/info/200202/performance_and_spending/1079/payments_over_500,09-Mar-2022,Housing & Communities,BOLINDA UK LTD,Neighbourhoods,715.71,Materials & Consumables,2122P12_CR00455,117408
Sandwell Metropolitan Borough Council,http://www.sandwell.gov.uk/info/200202/performance_and_spending/1079/payments_over_500,09-Mar-2022,Housing & Communities,BOLINDA UK LTD,Neighbourhoods,504.46,Materials & Consumables,2122P12_CR00456,117408
Sandwell Metropolitan Borough Council,http://www.sandwell.gov.uk/info/200202/performance_and_spending/1079/payments_over_500,09-Mar-2022,Housing & Communities,BROXAP LIMITED,Neighbourhoods,19559.76,Civic Events,2122P12_CR00457,99472
Sandwell Metropolitan Borough Council,http://www.sandwell.gov.uk/info/200202/performance_and_spending/1079/payments_over_500,01-Mar-2022,Housing & Communities,BROXAP LIMITED,Neighbourhoods,767.00,Civic Events,2122P12_CR00458,99472
Sandwell Metropolitan Borough Council,http://www.sandwell.gov.uk/info/200202/performance_and_spending/1079/payments_over_500,01-Mar-2022,Housing & Communities,BROXAP LIMITED,Neighbourhoods,24894.24,Civic Events,2122P12_CR00459,99472
Sandwell Metropolitan Borough Council,http://www.sandwell.gov.uk/info/200202/performance_and_spending/1079/payments_over_500,01-Mar-2022,Housing & Communities,BROXAP LIMITED,Neighbourhoods,4801.00,Equipment & Furniture ,2122P12_CR00460,99472
Sandwell Metropolitan Borough Council,http://www.sandwell.gov.uk/info/200202/performance_and_spending/1079/payments_over_500,01-Mar-2022,Housing & Communities,BRUSHSTROKES,Neighbourhoods,2644.50,Rents,2122P12_CR00461,21029374
Sandwell Metropolitan Borough Council,http://www.sandwell.gov.uk/info/200202/performance_and_spending/1079/payments_over_500,01-Mar-2022,Housing & Communities,BRUSHSTROKES,Neighbourhoods,7569.04,Rents,2122P12_CR00462,21029374
Sandwell Metropolitan Borough Council,http://www.sandwell.gov.uk/info/200202/performance_and_spending/1079/payments_over_500,01-Mar-2022,Housing & Communities,BRUSHSTROKES,Neighbourhoods,8052.85,Rents,2122P12_CR00463,21029374
Sandwell Metropolitan Borough Council,http://www.sandwell.gov.uk/info/200202/performance_and_spending/1079/payments_over_500,01-Mar-2022,Housing & Communities,BRUSHSTROKES,Neighbourhoods,8367.61,Rents,2122P12_CR00464,21029374
Sandwell Metropolitan Borough Council,http://www.sandwell.gov.uk/info/200202/performance_and_spending/1079/payments_over_500,01-Mar-2022,Housing & Communities,BRUSHSTROKES,Neighbourhoods,11030.86,Rents,2122P12_CR00465,21029374
Sandwell Metropolitan Borough Council,http://www.sandwell.gov.uk/info/200202/performance_and_spending/1079/payments_over_500,01-Mar-2022,Housing & Communities,BRUSHSTROKES,Neighbourhoods,9532.15,Rents,2122P12_CR00466,21029374
Sandwell Metropolitan Borough Council,http://www.sandwell.gov.uk/info/200202/performance_and_spending/1079/payments_over_500,01-Mar-2022,Housing & Communities,BRUSHSTROKES,Neighbourhoods,7650.00,Rents,2122P12_CR00467,21029374
Sandwell Metropolitan Borough Council,http://www.sandwell.gov.uk/info/200202/performance_and_spending/1079/payments_over_500,01-Mar-2022,Housing & Communities,BRUSHSTROKES,Neighbourhoods,10486.14,Rents,2122P12_CR00468,21029374
Sandwell Metropolitan Borough Council,http://www.sandwell.gov.uk/info/200202/performance_and_spending/1079/payments_over_500,01-Mar-2022,Housing & Communities,BRUSHSTROKES,Neighbourhoods,8672.91,Rents,2122P12_CR00469,21029374
Sandwell Metropolitan Borough Council,http://www.sandwell.gov.uk/info/200202/performance_and_spending/1079/payments_over_500,01-Mar-2022,Housing & Communities,BRUSHSTROKES,Neighbourhoods,7808.57,Rents,2122P12_CR00470,21029374
Sandwell Metropolitan Borough Council,http://www.sandwell.gov.uk/info/200202/performance_and_spending/1079/payments_over_500,01-Mar-2022,Housing & Communities,C H FURNITURE SUPPLIES LTD,Neighbourhoods,2630.00,Building Maintenance & Improvements,2122P12_CR00471,139811
Sandwell Metropolitan Borough Council,http://www.sandwell.gov.uk/info/200202/performance_and_spending/1079/payments_over_500,01-Mar-2022,Housing & Communities,CERTAS ENERGY LIMITED,Neighbourhoods,14693.92,Fuel ,2122P12_CR00472,80421
Sandwell Metropolitan Borough Council,http://www.sandwell.gov.uk/info/200202/performance_and_spending/1079/payments_over_500,01-Mar-2022,Housing & Communities,CERTAS ENERGY LIMITED,Neighbourhoods,1134.16,Fuel ,2122P12_CR00473,80421
Sandwell Metropolitan Borough Council,http://www.sandwell.gov.uk/info/200202/performance_and_spending/1079/payments_over_500,15-Mar-2022,Housing & Communities,CERTAS ENERGY LIMITED,Neighbourhoods,25452.75,Fuel ,2122P12_CR00474,80421
Sandwell Metropolitan Borough Council,http://www.sandwell.gov.uk/info/200202/performance_and_spending/1079/payments_over_500,01-Mar-2022,Housing & Communities,CERTAS ENERGY LIMITED,Neighbourhoods,1787.35,Oil,2122P12_CR00475,80421
Sandwell Metropolitan Borough Council,http://www.sandwell.gov.uk/info/200202/performance_and_spending/1079/payments_over_500,01-Mar-2022,Housing & Communities,CHUBB FIRE & SECURITY LIMITED t/a CHUBB ELECTRONIC SECURITY,Neighbourhoods,2695.86,Security,2122P12_CR00476,81343
Sandwell Metropolitan Borough Council,http://www.sandwell.gov.uk/info/200202/performance_and_spending/1079/payments_over_500,04-Mar-2022,Housing & Communities,CONTRACT LETTINGS LTD,Neighbourhoods,689.36,Rents,2122P12_CR00477,76625
Sandwell Metropolitan Borough Council,http://www.sandwell.gov.uk/info/200202/performance_and_spending/1079/payments_over_500,04-Mar-2022,Housing & Communities,CONTRACT LETTINGS LTD,Neighbourhoods,633.36,Rents,2122P12_CR00478,76625
Sandwell Metropolitan Borough Council,http://www.sandwell.gov.uk/info/200202/performance_and_spending/1079/payments_over_500,04-Mar-2022,Housing & Communities,CONTRACT LETTINGS LTD,Neighbourhoods,633.36,Rents,2122P12_CR00479,76625
Sandwell Metropolitan Borough Council,http://www.sandwell.gov.uk/info/200202/performance_and_spending/1079/payments_over_500,04-Mar-2022,Housing & Communities,CONTRACT LETTINGS LTD,Neighbourhoods,633.36,Rents,2122P12_CR00480,76625
Sandwell Metropolitan Borough Council,http://www.sandwell.gov.uk/info/200202/performance_and_spending/1079/payments_over_500,04-Mar-2022,Housing & Communities,CONTRACT LETTINGS LTD,Neighbourhoods,689.36,Rents,2122P12_CR00481,76625
Sandwell Metropolitan Borough Council,http://www.sandwell.gov.uk/info/200202/performance_and_spending/1079/payments_over_500,04-Mar-2022,Housing & Communities,CONTRACT LETTINGS LTD,Neighbourhoods,633.36,Rents,2122P12_CR00482,76625
Sandwell Metropolitan Borough Council,http://www.sandwell.gov.uk/info/200202/performance_and_spending/1079/payments_over_500,04-Mar-2022,Housing & Communities,CONTRACT LETTINGS LTD,Neighbourhoods,633.36,Rents,2122P12_CR00483,76625
Sandwell Metropolitan Borough Council,http://www.sandwell.gov.uk/info/200202/performance_and_spending/1079/payments_over_500,04-Mar-2022,Housing & Communities,CONTRACT LETTINGS LTD,Neighbourhoods,697.20,Rents,2122P12_CR00484,76625
Sandwell Metropolitan Borough Council,http://www.sandwell.gov.uk/info/200202/performance_and_spending/1079/payments_over_500,04-Mar-2022,Housing & Communities,CONTRACT LETTINGS LTD,Neighbourhoods,505.68,Rents,2122P12_CR00485,76625
Sandwell Metropolitan Borough Council,http://www.sandwell.gov.uk/info/200202/performance_and_spending/1079/payments_over_500,14-Mar-2022,Housing & Communities,CONTRACT LETTINGS LTD,Neighbourhoods,505.68,Rents,2122P12_CR00486,76625
Sandwell Metropolitan Borough Council,http://www.sandwell.gov.uk/info/200202/performance_and_spending/1079/payments_over_500,14-Mar-2022,Housing & Communities,CONTRACT LETTINGS LTD,Neighbourhoods,2127.00,Rents,2122P12_CR00487,76625
Sandwell Metropolitan Borough Council,http://www.sandwell.gov.uk/info/200202/performance_and_spending/1079/payments_over_500,02-Mar-2022,Housing & Communities,CONTRACT LETTINGS LTD,Neighbourhoods,701.22,Rents,2122P12_CR00488,76625
Sandwell Metropolitan Borough Council,http://www.sandwell.gov.uk/info/200202/performance_and_spending/1079/payments_over_500,01-Mar-2022,Housing & Communities,CONTRACT LETTINGS LTD,Neighbourhoods,701.22,Rents,2122P12_CR00489,76625
Sandwell Metropolitan Borough Council,http://www.sandwell.gov.uk/info/200202/performance_and_spending/1079/payments_over_500,01-Mar-2022,Housing & Communities,COOKE RUDLING LIMITED,Assistant Chief Executive (Excl SIU),1237.50,Externally Purchased Professional Services ,2122P12_CR00490,01577073
Sandwell Metropolitan Borough Council,http://www.sandwell.gov.uk/info/200202/performance_and_spending/1079/payments_over_500,12-Mar-2022,Housing & Communities,COUNTING SOLUTIONS LTD,Neighbourhoods,53502.92,ICT ,2122P12_CR00491,162622
Sandwell Metropolitan Borough Council,http://www.sandwell.gov.uk/info/200202/performance_and_spending/1079/payments_over_500,01-Mar-2022,Housing & Communities,CREATIVE ACTIVE LIVES CIC,Neighbourhoods,1050.00,Civic Events,2122P12_CR00492,138641
Sandwell Metropolitan Borough Council,http://www.sandwell.gov.uk/info/200202/performance_and_spending/1079/payments_over_500,01-Mar-2022,Housing & Communities,CREATIVE ACTIVE LIVES CIC,Neighbourhoods,700.00,Civic Events,2122P12_CR00493,138641
Sandwell Metropolitan Borough Council,http://www.sandwell.gov.uk/info/200202/performance_and_spending/1079/payments_over_500,01-Mar-2022,Housing & Communities,CREATIVE ACTIVE LIVES CIC,Neighbourhoods,2000.00,Civic Events,2122P12_CR00494,138641
Sandwell Metropolitan Borough Council,http://www.sandwell.gov.uk/info/200202/performance_and_spending/1079/payments_over_500,09-Mar-2022,Housing & Communities,DANCOVER PLC UK,Neighbourhoods,6040.51,Civic Events,2122P12_CR00495,162310
Sandwell Metropolitan Borough Council,http://www.sandwell.gov.uk/info/200202/performance_and_spending/1079/payments_over_500,09-Mar-2022,Housing & Communities,DON RUFFLES LTD,Neighbourhoods,2100.00,Materials & Consumables,2122P12_CR00496,106173
Sandwell Metropolitan Borough Council,http://www.sandwell.gov.uk/info/200202/performance_and_spending/1079/payments_over_500,01-Mar-2022,Housing & Communities,DORMY HOTEL,Neighbourhoods,1349.11,Rents,2122P12_CR00497,01737052
Sandwell Metropolitan Borough Council,http://www.sandwell.gov.uk/info/200202/performance_and_spending/1079/payments_over_500,01-Mar-2022,Housing & Communities,DORMY HOTEL,Neighbourhoods,1244.44,Rents,2122P12_CR00498,01737052
Sandwell Metropolitan Borough Council,http://www.sandwell.gov.uk/info/200202/performance_and_spending/1079/payments_over_500,01-Mar-2022,Housing & Communities,DORMY HOTEL,Neighbourhoods,583.33,Rents,2122P12_CR00499,01737052
Sandwell Metropolitan Borough Council,http://www.sandwell.gov.uk/info/200202/performance_and_spending/1079/payments_over_500,01-Mar-2022,Housing & Communities,DORMY HOTEL,Neighbourhoods,3208.33,Rents,2122P12_CR00500,01737052
Sandwell Metropolitan Borough Council,http://www.sandwell.gov.uk/info/200202/performance_and_spending/1079/payments_over_500,01-Mar-2022,Housing & Communities,DORMY HOTEL,Neighbourhoods,1547.43,Rents,2122P12_CR00501,01737052
Sandwell Metropolitan Borough Council,http://www.sandwell.gov.uk/info/200202/performance_and_spending/1079/payments_over_500,01-Mar-2022,Housing & Communities,DORMY HOTEL,Neighbourhoods,2875.00,Rents,2122P12_CR00502,01737052
Sandwell Metropolitan Borough Council,http://www.sandwell.gov.uk/info/200202/performance_and_spending/1079/payments_over_500,01-Mar-2022,Housing & Communities,ELIZABETH OXB ORROW-COWAN ASSOCIATES,Neighbourhoods,3350.00,SH Payments,2122P12_CR00503,146696
Sandwell Metropolitan Borough Council,http://www.sandwell.gov.uk/info/200202/performance_and_spending/1079/payments_over_500,01-Mar-2022,Housing & Communities,EXHIBITION PLUS,Neighbourhoods,8328.00,Civic Events,2122P12_CR00504,117729
Sandwell Metropolitan Borough Council,http://www.sandwell.gov.uk/info/200202/performance_and_spending/1079/payments_over_500,22-Mar-2022,Housing & Communities,EXHIBITION PLUS,Neighbourhoods,5000.00,Externally Purchased Professional Services ,2122P12_CR00505,117729
Sandwell Metropolitan Borough Council,http://www.sandwell.gov.uk/info/200202/performance_and_spending/1079/payments_over_500,02-Mar-2022,Housing & Communities,FUTURE GARMENTS LTD,Neighbourhoods,540.40,Protective Clothing & Uniforms,2122P12_CR00506,17305
Sandwell Metropolitan Borough Council,http://www.sandwell.gov.uk/info/200202/performance_and_spending/1079/payments_over_500,01-Mar-2022,Housing & Communities,FUTURE GARMENTS LTD,Neighbourhoods,523.00,Protective Clothing & Uniforms,2122P12_CR00507,17305
Sandwell Metropolitan Borough Council,http://www.sandwell.gov.uk/info/200202/performance_and_spending/1079/payments_over_500,01-Mar-2022,Housing & Communities,FUTURE GARMENTS LTD,Neighbourhoods,523.00,Protective Clothing & Uniforms,2122P12_CR00508,17305
Sandwell Metropolitan Borough Council,http://www.sandwell.gov.uk/info/200202/performance_and_spending/1079/payments_over_500,01-Mar-2022,Housing & Communities,FUTURE GARMENTS LTD,Neighbourhoods,515.20,Protective Clothing & Uniforms,2122P12_CR00509,17305
Sandwell Metropolitan Borough Council,http://www.sandwell.gov.uk/info/200202/performance_and_spending/1079/payments_over_500,01-Mar-2022,Housing & Communities,GILANI ENTERPRISES LIMITED,Neighbourhoods,5120.00,Rents,2122P12_CR00510,2696
Sandwell Metropolitan Borough Council,http://www.sandwell.gov.uk/info/200202/performance_and_spending/1079/payments_over_500,01-Mar-2022,Housing & Communities,GILANI ENTERPRISES LIMITED,Neighbourhoods,1244.44,Rents,2122P12_CR00511,2696
Sandwell Metropolitan Borough Council,http://www.sandwell.gov.uk/info/200202/performance_and_spending/1079/payments_over_500,01-Mar-2022,Housing & Communities,GILANI ENTERPRISES LIMITED,Neighbourhoods,1991.11,Rents,2122P12_CR00512,2696
Sandwell Metropolitan Borough Council,http://www.sandwell.gov.uk/info/200202/performance_and_spending/1079/payments_over_500,01-Mar-2022,Housing & Communities,GILANI ENTERPRISES LIMITED,Neighbourhoods,6293.33,Rents,2122P12_CR00513,2696
Sandwell Metropolitan Borough Council,http://www.sandwell.gov.uk/info/200202/performance_and_spending/1079/payments_over_500,01-Mar-2022,Housing & Communities,GILANI ENTERPRISES LIMITED,Neighbourhoods,2986.67,Rents,2122P12_CR00514,2696
Sandwell Metropolitan Borough Council,http://www.sandwell.gov.uk/info/200202/performance_and_spending/1079/payments_over_500,01-Mar-2022,Housing & Communities,GILANI ENTERPRISES LIMITED,Neighbourhoods,2986.67,Rents,2122P12_CR00515,2696
Sandwell Metropolitan Borough Council,http://www.sandwell.gov.uk/info/200202/performance_and_spending/1079/payments_over_500,01-Mar-2022,Housing & Communities,GILANI ENTERPRISES LIMITED,Neighbourhoods,2986.67,Rents,2122P12_CR00516,2696
Sandwell Metropolitan Borough Council,http://www.sandwell.gov.uk/info/200202/performance_and_spending/1079/payments_over_500,01-Mar-2022,Housing & Communities,GILANI ENTERPRISES LIMITED,Neighbourhoods,1155.56,Rents,2122P12_CR00517,2696
Sandwell Metropolitan Borough Council,http://www.sandwell.gov.uk/info/200202/performance_and_spending/1079/payments_over_500,01-Mar-2022,Housing & Communities,GILANI ENTERPRISES LIMITED,Neighbourhoods,844.44,Rents,2122P12_CR00518,2696
Sandwell Metropolitan Borough Council,http://www.sandwell.gov.uk/info/200202/performance_and_spending/1079/payments_over_500,01-Mar-2022,Housing & Communities,GILANI ENTERPRISES LIMITED,Neighbourhoods,2773.33,Rents,2122P12_CR00519,2696
Sandwell Metropolitan Borough Council,http://www.sandwell.gov.uk/info/200202/performance_and_spending/1079/payments_over_500,01-Mar-2022,Housing & Communities,GILANI ENTERPRISES LIMITED,Neighbourhoods,1066.67,Rents,2122P12_CR00520,2696
Sandwell Metropolitan Borough Council,http://www.sandwell.gov.uk/info/200202/performance_and_spending/1079/payments_over_500,01-Mar-2022,Housing & Communities,GILANI ENTERPRISES LIMITED,Neighbourhoods,6044.44,Rents,2122P12_CR00521,2696
Sandwell Metropolitan Borough Council,http://www.sandwell.gov.uk/info/200202/performance_and_spending/1079/payments_over_500,17-Mar-2022,Housing & Communities,GO EDUCATION LTD,Neighbourhoods,24998.00,Equipment & Furniture ,2122P12_CR00522,120965
Sandwell Metropolitan Borough Council,http://www.sandwell.gov.uk/info/200202/performance_and_spending/1079/payments_over_500,08-Mar-2022,Housing & Communities,GOUGH CONSULTANTS LIMITED,Neighbourhoods,1295.05,Consultancy,2122P12_CR00523,161961
Sandwell Metropolitan Borough Council,http://www.sandwell.gov.uk/info/200202/performance_and_spending/1079/payments_over_500,01-Mar-2022,Housing & Communities,GREENWICH LEISURE LTD,Neighbourhoods,3000.00,ICT ,2122P12_CR00524,136157
Sandwell Metropolitan Borough Council,http://www.sandwell.gov.uk/info/200202/performance_and_spending/1079/payments_over_500,01-Mar-2022,Housing & Communities,GRESHAM OFFICE FURNITURE LTD,Neighbourhoods,876.15,Equipment & Furniture ,2122P12_CR00525,93465
Sandwell Metropolitan Borough Council,http://www.sandwell.gov.uk/info/200202/performance_and_spending/1079/payments_over_500,30-Mar-2022,Housing & Communities,H WALKER & SONS,Neighbourhoods,500.00,Externally Purchased Professional Services ,2122P12_CR00526,162823
Sandwell Metropolitan Borough Council,http://www.sandwell.gov.uk/info/200202/performance_and_spending/1079/payments_over_500,01-Mar-2022,Housing & Communities,HAGS-SMP LIMITED,Neighbourhoods,19652.40,Equipment & Furniture ,2122P12_CR00527,112922
Sandwell Metropolitan Borough Council,http://www.sandwell.gov.uk/info/200202/performance_and_spending/1079/payments_over_500,23-Mar-2022,Housing & Communities,HILL INTERIOR CONTRACTS LTD,Neighbourhoods,1264.10,Equipment & Furniture ,2122P12_CR00528,17158
Sandwell Metropolitan Borough Council,http://www.sandwell.gov.uk/info/200202/performance_and_spending/1079/payments_over_500,01-Mar-2022,Housing & Communities,HOARE LEA LLP,Neighbourhoods,3550.00,Consultancy,2122P12_CR00529,137607
Sandwell Metropolitan Borough Council,http://www.sandwell.gov.uk/info/200202/performance_and_spending/1079/payments_over_500,23-Mar-2022,Housing & Communities,HOME FARM NURSERIES (PINVIN) LIMITED,Neighbourhoods,3967.18,Operational Services ,2122P12_CR00530,77003445
Sandwell Metropolitan Borough Council,http://www.sandwell.gov.uk/info/200202/performance_and_spending/1079/payments_over_500,22-Mar-2022,Housing & Communities,HQN LTD,Neighbourhoods,750.00,Externally Purchased Professional Services ,2122P12_CR00531,38107
Sandwell Metropolitan Borough Council,http://www.sandwell.gov.uk/info/200202/performance_and_spending/1079/payments_over_500,01-Mar-2022,Housing & Communities,HUNTER STABLES LTD,Neighbourhoods,3924.18,Externally Purchased Professional Services ,2122P12_CR00532,162684
Sandwell Metropolitan Borough Council,http://www.sandwell.gov.uk/info/200202/performance_and_spending/1079/payments_over_500,15-Mar-2022,Housing & Communities,IIZUKA SOFTWARE TECHNOLOGIES LTD,Neighbourhoods,6990.70,Subscriptions,2122P12_CR00533,68311
Sandwell Metropolitan Borough Council,http://www.sandwell.gov.uk/info/200202/performance_and_spending/1079/payments_over_500,22-Mar-2022,Housing & Communities,IMMEDIATE CARE MEDICAL SERVICES LIMITED,Neighbourhoods,570.00,Externally Purchased Professional Services ,2122P12_CR00534,127453
Sandwell Metropolitan Borough Council,http://www.sandwell.gov.uk/info/200202/performance_and_spending/1079/payments_over_500,12-Mar-2022,Housing & Communities,INFAMOUS COMMUNITY ARTS,Neighbourhoods,10140.00,Civic Events,2122P12_CR00535,102940
Sandwell Metropolitan Borough Council,http://www.sandwell.gov.uk/info/200202/performance_and_spending/1079/payments_over_500,11-Mar-2022,Housing & Communities,INTERCLASS PLC,Housing & Communities,18625.43,"CIP - New Construction,Conversion, Enhancement & Reno",2122P12_CR00536,77001959
Sandwell Metropolitan Borough Council,http://www.sandwell.gov.uk/info/200202/performance_and_spending/1079/payments_over_500,23-Mar-2022,Housing & Communities,JAY SECURITY AND EVENTS LIMITED,Neighbourhoods,1372.50,Security,2122P12_CR00537,162111
Sandwell Metropolitan Borough Council,http://www.sandwell.gov.uk/info/200202/performance_and_spending/1079/payments_over_500,11-Mar-2022,Housing & Communities,JIMMY HUGHES SERVICES LTD,Neighbourhoods,1360.00,Externally Purchased Professional Services ,2122P12_CR00538,135579
Sandwell Metropolitan Borough Council,http://www.sandwell.gov.uk/info/200202/performance_and_spending/1079/payments_over_500,11-Mar-2022,Housing & Communities,JIMMY HUGHES SERVICES LTD,Neighbourhoods,990.00,Externally Purchased Professional Services ,2122P12_CR00539,135579
Sandwell Metropolitan Borough Council,http://www.sandwell.gov.uk/info/200202/performance_and_spending/1079/payments_over_500,11-Mar-2022,Housing & Communities,JIMMY HUGHES SERVICES LTD,Neighbourhoods,2400.00,Externally Purchased Professional Services ,2122P12_CR00540,135579
Sandwell Metropolitan Borough Council,http://www.sandwell.gov.uk/info/200202/performance_and_spending/1079/payments_over_500,18-Mar-2022,Housing & Communities,JOHN SHEPHERD ESTATES,Neighbourhoods,1105.77,Tenants Expenses,2122P12_CR00541,162729
Sandwell Metropolitan Borough Council,http://www.sandwell.gov.uk/info/200202/performance_and_spending/1079/payments_over_500,18-Mar-2022,Housing & Communities,KEEP BRITAIN TIDY,Neighbourhoods,502.00,Discretionary Awards,2122P12_CR00542,88061
Sandwell Metropolitan Borough Council,http://www.sandwell.gov.uk/info/200202/performance_and_spending/1079/payments_over_500,16-Mar-2022,Housing & Communities,LIBRARIES CONNECTED,Neighbourhoods,757.03,Subscriptions,2122P12_CR00543,141540
Sandwell Metropolitan Borough Council,http://www.sandwell.gov.uk/info/200202/performance_and_spending/1079/payments_over_500,01-Mar-2022,Housing & Communities,LINGWOOD SECURITY MANAGEMENT LTD,Neighbourhoods,1879.50,Civic Events,2122P12_CR00544,148787
Sandwell Metropolitan Borough Council,http://www.sandwell.gov.uk/info/200202/performance_and_spending/1079/payments_over_500,01-Mar-2022,Housing & Communities,LINGWOOD SECURITY MANAGEMENT LTD,Neighbourhoods,541.00,Security,2122P12_CR00545,148787
Sandwell Metropolitan Borough Council,http://www.sandwell.gov.uk/info/200202/performance_and_spending/1079/payments_over_500,01-Mar-2022,Housing & Communities,MACE LTD,Neighbourhoods,9060.00,Consultancy,2122P12_CR00546,30882
Sandwell Metropolitan Borough Council,http://www.sandwell.gov.uk/info/200202/performance_and_spending/1079/payments_over_500,01-Mar-2022,Housing & Communities,MACINTOSH FOODSERVICE SOLUTIONS LTD,Neighbourhoods,2550.00,Externally Purchased Professional Services ,2122P12_CR00547,162369
Sandwell Metropolitan Borough Council,http://www.sandwell.gov.uk/info/200202/performance_and_spending/1079/payments_over_500,01-Mar-2022,Housing & Communities,MACINTOSH FOODSERVICE SOLUTIONS LTD,Neighbourhoods,2175.00,Externally Purchased Professional Services ,2122P12_CR00548,162369
Sandwell Metropolitan Borough Council,http://www.sandwell.gov.uk/info/200202/performance_and_spending/1079/payments_over_500,08-Mar-2022,Housing & Communities,MANOR ABBEY FOODS LTD,Neighbourhoods,596.60,Catering Provisions,2122P12_CR00549,63063
Sandwell Metropolitan Borough Council,http://www.sandwell.gov.uk/info/200202/performance_and_spending/1079/payments_over_500,15-Feb-2022,Housing & Communities,MIDLAND FORESTRY LIMITED,Neighbourhoods,3344.00,Externally Purchased Professional Services ,2122P12_CR00550,45812
Sandwell Metropolitan Borough Council,http://www.sandwell.gov.uk/info/200202/performance_and_spending/1079/payments_over_500,15-Feb-2022,Housing & Communities,MIDLAND FORESTRY LIMITED,Neighbourhoods,1564.00,Externally Purchased Professional Services ,2122P12_CR00551,45812
Sandwell Metropolitan Borough Council,http://www.sandwell.gov.uk/info/200202/performance_and_spending/1079/payments_over_500,01-Mar-2022,Housing & Communities,MIDLAND FORESTRY LIMITED,Neighbourhoods,704.00,Externally Purchased Professional Services ,2122P12_CR00552,45812
Sandwell Metropolitan Borough Council,http://www.sandwell.gov.uk/info/200202/performance_and_spending/1079/payments_over_500,01-Mar-2022,Housing & Communities,MIDLAND FORESTRY LIMITED,Neighbourhoods,712.00,Externally Purchased Professional Services ,2122P12_CR00553,45812
Sandwell Metropolitan Borough Council,http://www.sandwell.gov.uk/info/200202/performance_and_spending/1079/payments_over_500,01-Mar-2022,Housing & Communities,MIDLAND FORESTRY LIMITED,Neighbourhoods,500.00,Externally Purchased Professional Services ,2122P12_CR00554,45812
Sandwell Metropolitan Borough Council,http://www.sandwell.gov.uk/info/200202/performance_and_spending/1079/payments_over_500,01-Mar-2022,Housing & Communities,MIDLAND FORESTRY LIMITED,Neighbourhoods,560.00,Externally Purchased Professional Services ,2122P12_CR00555,45812
Sandwell Metropolitan Borough Council,http://www.sandwell.gov.uk/info/200202/performance_and_spending/1079/payments_over_500,15-Mar-2022,Housing & Communities,MIDLAND FORESTRY LIMITED,Neighbourhoods,3083.00,Externally Purchased Professional Services ,2122P12_CR00556,45812
Sandwell Metropolitan Borough Council,http://www.sandwell.gov.uk/info/200202/performance_and_spending/1079/payments_over_500,15-Mar-2022,Housing & Communities,MIDLAND FORESTRY LIMITED,Neighbourhoods,824.00,Externally Purchased Professional Services ,2122P12_CR00557,45812
Sandwell Metropolitan Borough Council,http://www.sandwell.gov.uk/info/200202/performance_and_spending/1079/payments_over_500,15-Mar-2022,Housing & Communities,MIDLAND FORESTRY LIMITED,Neighbourhoods,680.00,Externally Purchased Professional Services ,2122P12_CR00558,45812
Sandwell Metropolitan Borough Council,http://www.sandwell.gov.uk/info/200202/performance_and_spending/1079/payments_over_500,15-Mar-2022,Housing & Communities,MIDLAND FORESTRY LIMITED,Neighbourhoods,704.00,Externally Purchased Professional Services ,2122P12_CR00559,45812
Sandwell Metropolitan Borough Council,http://www.sandwell.gov.uk/info/200202/performance_and_spending/1079/payments_over_500,15-Mar-2022,Housing & Communities,MIDLAND FORESTRY LIMITED,Neighbourhoods,704.00,Externally Purchased Professional Services ,2122P12_CR00560,45812
Sandwell Metropolitan Borough Council,http://www.sandwell.gov.uk/info/200202/performance_and_spending/1079/payments_over_500,09-Mar-2022,Housing & Communities,MIDLAND FORESTRY LIMITED,Neighbourhoods,684.00,Externally Purchased Professional Services ,2122P12_CR00561,45812
Sandwell Metropolitan Borough Council,http://www.sandwell.gov.uk/info/200202/performance_and_spending/1079/payments_over_500,09-Mar-2022,Housing & Communities,MIDLAND FORESTRY LIMITED,Neighbourhoods,680.00,Externally Purchased Professional Services ,2122P12_CR00562,45812
Sandwell Metropolitan Borough Council,http://www.sandwell.gov.uk/info/200202/performance_and_spending/1079/payments_over_500,09-Mar-2022,Housing & Communities,MIDLAND FORESTRY LIMITED,Neighbourhoods,1232.00,Externally Purchased Professional Services ,2122P12_CR00563,45812
Sandwell Metropolitan Borough Council,http://www.sandwell.gov.uk/info/200202/performance_and_spending/1079/payments_over_500,09-Mar-2022,Housing & Communities,MIDLAND FORESTRY LIMITED,Neighbourhoods,1042.00,Externally Purchased Professional Services ,2122P12_CR00564,45812
Sandwell Metropolitan Borough Council,http://www.sandwell.gov.uk/info/200202/performance_and_spending/1079/payments_over_500,09-Mar-2022,Housing & Communities,MIDLAND FORESTRY LIMITED,Neighbourhoods,540.00,Externally Purchased Professional Services ,2122P12_CR00565,45812
Sandwell Metropolitan Borough Council,http://www.sandwell.gov.uk/info/200202/performance_and_spending/1079/payments_over_500,09-Mar-2022,Housing & Communities,MIDLAND FORESTRY LIMITED,Neighbourhoods,2000.00,Externally Purchased Professional Services ,2122P12_CR00566,45812
Sandwell Metropolitan Borough Council,http://www.sandwell.gov.uk/info/200202/performance_and_spending/1079/payments_over_500,09-Mar-2022,Housing & Communities,MIDLAND FORESTRY LIMITED,Neighbourhoods,1518.00,Externally Purchased Professional Services ,2122P12_CR00567,45812
Sandwell Metropolitan Borough Council,http://www.sandwell.gov.uk/info/200202/performance_and_spending/1079/payments_over_500,15-Mar-2022,Housing & Communities,MIDLAND FORESTRY LIMITED,Neighbourhoods,880.00,Externally Purchased Professional Services ,2122P12_CR00568,45812
Sandwell Metropolitan Borough Council,http://www.sandwell.gov.uk/info/200202/performance_and_spending/1079/payments_over_500,15-Mar-2022,Housing & Communities,MIDLAND FORESTRY LIMITED,Neighbourhoods,528.00,Externally Purchased Professional Services ,2122P12_CR00569,45812
Sandwell Metropolitan Borough Council,http://www.sandwell.gov.uk/info/200202/performance_and_spending/1079/payments_over_500,18-Mar-2022,Housing & Communities,MIDLAND FORESTRY LIMITED,Neighbourhoods,4880.00,Externally Purchased Professional Services ,2122P12_CR00570,45812
Sandwell Metropolitan Borough Council,http://www.sandwell.gov.uk/info/200202/performance_and_spending/1079/payments_over_500,18-Mar-2022,Housing & Communities,MIDLAND FORESTRY LIMITED,Neighbourhoods,540.00,Externally Purchased Professional Services ,2122P12_CR00571,45812
Sandwell Metropolitan Borough Council,http://www.sandwell.gov.uk/info/200202/performance_and_spending/1079/payments_over_500,18-Mar-2022,Housing & Communities,MIDLAND FORESTRY LIMITED,Neighbourhoods,792.00,Externally Purchased Professional Services ,2122P12_CR00572,45812
Sandwell Metropolitan Borough Council,http://www.sandwell.gov.uk/info/200202/performance_and_spending/1079/payments_over_500,18-Mar-2022,Housing & Communities,MIDLAND FORESTRY LIMITED,Neighbourhoods,800.00,Externally Purchased Professional Services ,2122P12_CR00573,45812
Sandwell Metropolitan Borough Council,http://www.sandwell.gov.uk/info/200202/performance_and_spending/1079/payments_over_500,16-Mar-2022,Housing & Communities,MIDLAND FORESTRY LIMITED,Neighbourhoods,854.40,Externally Purchased Professional Services ,2122P12_CR00574,45812
Sandwell Metropolitan Borough Council,http://www.sandwell.gov.uk/info/200202/performance_and_spending/1079/payments_over_500,17-Mar-2022,Housing & Communities,MIDLAND FORESTRY LIMITED,Neighbourhoods,1001.00,Externally Purchased Professional Services ,2122P12_CR00575,45812
Sandwell Metropolitan Borough Council,http://www.sandwell.gov.uk/info/200202/performance_and_spending/1079/payments_over_500,01-Mar-2022,Housing & Communities,MIDLAND FORESTRY LIMITED,Neighbourhoods,5480.00,Externally Purchased Professional Services ,2122P12_CR00576,45812
Sandwell Metropolitan Borough Council,http://www.sandwell.gov.uk/info/200202/performance_and_spending/1079/payments_over_500,01-Mar-2022,Housing & Communities,MIDLAND FORESTRY LIMITED,Neighbourhoods,1600.00,Externally Purchased Professional Services ,2122P12_CR00577,45812
Sandwell Metropolitan Borough Council,http://www.sandwell.gov.uk/info/200202/performance_and_spending/1079/payments_over_500,01-Mar-2022,Housing & Communities,OCEAN MEDIA GROUP LTD,Neighbourhoods,820.00,Conference Expenses,2122P12_CR00578,01480469
Sandwell Metropolitan Borough Council,http://www.sandwell.gov.uk/info/200202/performance_and_spending/1079/payments_over_500,01-Mar-2022,Housing & Communities,OPUS ENERGY LTD,Neighbourhoods,616.65,Electricity,2122P12_CR00579,78749
Sandwell Metropolitan Borough Council,http://www.sandwell.gov.uk/info/200202/performance_and_spending/1079/payments_over_500,14-Mar-2022,Housing & Communities,P CASEY LTD,Housing & Communities,235822.56,"CIP - New Construction,Conversion, Enhancement & Reno",2122P12_CR00580,149276
Sandwell Metropolitan Borough Council,http://www.sandwell.gov.uk/info/200202/performance_and_spending/1079/payments_over_500,07-Mar-2022,Housing & Communities,PENNON WATER SERVICES T/A SOURCE FOR BUSINESS,Neighbourhoods,1222.58,Water Services,2122P12_CR00581,131726
Sandwell Metropolitan Borough Council,http://www.sandwell.gov.uk/info/200202/performance_and_spending/1079/payments_over_500,14-Mar-2022,Housing & Communities,PETER WELDON IRON DESIGNS LTD,Neighbourhoods,35000.00,Civic Events,2122P12_CR00582,162133
Sandwell Metropolitan Borough Council,http://www.sandwell.gov.uk/info/200202/performance_and_spending/1079/payments_over_500,14-Mar-2022,Housing & Communities,PETER WELDON IRON DESIGNS LTD,Neighbourhoods,1600.00,Civic Events,2122P12_CR00583,162133
Sandwell Metropolitan Borough Council,http://www.sandwell.gov.uk/info/200202/performance_and_spending/1079/payments_over_500,01-Mar-2022,Housing & Communities,PETERS LIMITED,Neighbourhoods,995.00,Equipment & Furniture ,2122P12_CR00584,01059117
Sandwell Metropolitan Borough Council,http://www.sandwell.gov.uk/info/200202/performance_and_spending/1079/payments_over_500,09-Mar-2022,Housing & Communities,PF CUSACK (TOOLS SUPPLIES) LTD,Neighbourhoods,3982.50,Operational Services ,2122P12_CR00585,01776404
Sandwell Metropolitan Borough Council,http://www.sandwell.gov.uk/info/200202/performance_and_spending/1079/payments_over_500,12-Mar-2022,Housing & Communities,PF CUSACK (TOOLS SUPPLIES) LTD,Neighbourhoods,3525.00,Operational Services ,2122P12_CR00586,01776404
Sandwell Metropolitan Borough Council,http://www.sandwell.gov.uk/info/200202/performance_and_spending/1079/payments_over_500,01-Mar-2022,Housing & Communities,PINSENT MASON LLP,Neighbourhoods,1840.80,Externally Purchased Professional Services ,2122P12_CR00587,47648
Sandwell Metropolitan Borough Council,http://www.sandwell.gov.uk/info/200202/performance_and_spending/1079/payments_over_500,01-Mar-2022,Housing & Communities,PINSENT MASON LLP,Neighbourhoods,1947.00,Externally Purchased Professional Services ,2122P12_CR00588,47648
Sandwell Metropolitan Borough Council,http://www.sandwell.gov.uk/info/200202/performance_and_spending/1079/payments_over_500,09-Mar-2022,Housing & Communities,PINSENT MASON LLP,Neighbourhoods,5088.30,Externally Purchased Professional Services ,2122P12_CR00589,47648
Sandwell Metropolitan Borough Council,http://www.sandwell.gov.uk/info/200202/performance_and_spending/1079/payments_over_500,09-Mar-2022,Housing & Communities,PINSENT MASON LLP,Neighbourhoods,8068.10,Externally Purchased Professional Services ,2122P12_CR00590,47648
Sandwell Metropolitan Borough Council,http://www.sandwell.gov.uk/info/200202/performance_and_spending/1079/payments_over_500,09-Mar-2022,Housing & Communities,PINSENT MASON LLP,Neighbourhoods,9558.00,Externally Purchased Professional Services ,2122P12_CR00591,47648
Sandwell Metropolitan Borough Council,http://www.sandwell.gov.uk/info/200202/performance_and_spending/1079/payments_over_500,09-Mar-2022,Housing & Communities,PINSENT MASON LLP,Neighbourhoods,1168.20,Externally Purchased Professional Services ,2122P12_CR00592,47648
Sandwell Metropolitan Borough Council,http://www.sandwell.gov.uk/info/200202/performance_and_spending/1079/payments_over_500,09-Mar-2022,Housing & Communities,PINSENT MASON LLP,Neighbourhoods,5133.00,Externally Purchased Professional Services ,2122P12_CR00593,47648
Sandwell Metropolitan Borough Council,http://www.sandwell.gov.uk/info/200202/performance_and_spending/1079/payments_over_500,09-Mar-2022,Housing & Communities,PITCHMARK LTD,Neighbourhoods,2560.00,Materials & Consumables,2122P12_CR00594,120374
Sandwell Metropolitan Borough Council,http://www.sandwell.gov.uk/info/200202/performance_and_spending/1079/payments_over_500,12-Mar-2022,Housing & Communities,PLACES FOR PEOPLE LEISURE MANAGEMENT LTD,Neighbourhoods,13406.40,SH Payments,2122P12_CR00595,118956
Sandwell Metropolitan Borough Council,http://www.sandwell.gov.uk/info/200202/performance_and_spending/1079/payments_over_500,07-Mar-2022,Housing & Communities,PPL PRS LTD,Neighbourhoods,1884.50,Civic Events,2122P12_CR00596,134302
Sandwell Metropolitan Borough Council,http://www.sandwell.gov.uk/info/200202/performance_and_spending/1079/payments_over_500,01-Mar-2022,Housing & Communities,PRINT DIRECT LIMITED,Neighbourhoods,979.72,Advertising & Publicity,2122P12_CR00597,118575
Sandwell Metropolitan Borough Council,http://www.sandwell.gov.uk/info/200202/performance_and_spending/1079/payments_over_500,01-Mar-2022,Housing & Communities,PROFILE SECURITY SERVICES LTD,Neighbourhoods,1303.68,Security,2122P12_CR00598,131253
Sandwell Metropolitan Borough Council,http://www.sandwell.gov.uk/info/200202/performance_and_spending/1079/payments_over_500,01-Mar-2022,Housing & Communities,PROFILE SECURITY SERVICES LTD,Neighbourhoods,536.41,Security,2122P12_CR00599,131253
Sandwell Metropolitan Borough Council,http://www.sandwell.gov.uk/info/200202/performance_and_spending/1079/payments_over_500,11-Mar-2022,Housing & Communities,Q TECHNICAL SERVICES UK LTD,Neighbourhoods,535.00,Building Maintenance & Improvements,2122P12_CR00600,135645
Sandwell Metropolitan Borough Council,http://www.sandwell.gov.uk/info/200202/performance_and_spending/1079/payments_over_500,01-Mar-2022,Housing & Communities,Q-MATIC AB LTD,Neighbourhoods,615.00,"Printing, Stationery & General Office Expenses",2122P12_CR00601,141886
Sandwell Metropolitan Borough Council,http://www.sandwell.gov.uk/info/200202/performance_and_spending/1079/payments_over_500,14-Mar-2022,Housing & Communities,RADIOTEK LTD,Neighbourhoods,4959.00,Civic Events,2122P12_CR00602,01777696
Sandwell Metropolitan Borough Council,http://www.sandwell.gov.uk/info/200202/performance_and_spending/1079/payments_over_500,01-Mar-2022,Housing & Communities,RAMORA LIMITED,Neighbourhoods,3950.00,Contract Cleaning,2122P12_CR00603,162776
Sandwell Metropolitan Borough Council,http://www.sandwell.gov.uk/info/200202/performance_and_spending/1079/payments_over_500,01-Mar-2022,Housing & Communities,RAMORA LIMITED,Neighbourhoods,3000.00,Contract Cleaning,2122P12_CR00604,162776
Sandwell Metropolitan Borough Council,http://www.sandwell.gov.uk/info/200202/performance_and_spending/1079/payments_over_500,01-Mar-2022,Housing & Communities,RAMORA LIMITED,Neighbourhoods,3250.00,Contract Cleaning,2122P12_CR00605,162776
Sandwell Metropolitan Borough Council,http://www.sandwell.gov.uk/info/200202/performance_and_spending/1079/payments_over_500,01-Mar-2022,Housing & Communities,RAMORA LIMITED,Neighbourhoods,2950.00,Contract Cleaning,2122P12_CR00606,162776
Sandwell Metropolitan Borough Council,http://www.sandwell.gov.uk/info/200202/performance_and_spending/1079/payments_over_500,01-Mar-2022,Housing & Communities,RED MOON CONCEPTS LTD,Neighbourhoods,4442.60,Equipment & Furniture ,2122P12_CR00607,162312
Sandwell Metropolitan Borough Council,http://www.sandwell.gov.uk/info/200202/performance_and_spending/1079/payments_over_500,01-Mar-2022,Housing & Communities,RED MOON CONCEPTS LTD,Neighbourhoods,2721.72,Equipment & Furniture ,2122P12_CR00608,162312
Sandwell Metropolitan Borough Council,http://www.sandwell.gov.uk/info/200202/performance_and_spending/1079/payments_over_500,01-Mar-2022,Housing & Communities,RENAISSANCE CREATIVE DESIGN & PRINT LTD,Neighbourhoods,630.00,Externally Purchased Professional Services ,2122P12_CR00609,97376
Sandwell Metropolitan Borough Council,http://www.sandwell.gov.uk/info/200202/performance_and_spending/1079/payments_over_500,01-Mar-2022,Housing & Communities,RENAISSANCE CREATIVE DESIGN & PRINT LTD,Neighbourhoods,1225.00,"Printing, Stationery & General Office Expenses",2122P12_CR00610,97376
Sandwell Metropolitan Borough Council,http://www.sandwell.gov.uk/info/200202/performance_and_spending/1079/payments_over_500,01-Mar-2022,Housing & Communities,RENAISSANCE CREATIVE DESIGN & PRINT LTD,Neighbourhoods,1120.00,"Printing, Stationery & General Office Expenses",2122P12_CR00611,97376
Sandwell Metropolitan Borough Council,http://www.sandwell.gov.uk/info/200202/performance_and_spending/1079/payments_over_500,01-Mar-2022,Housing & Communities,RIGHT TO CARE LTD.,Neighbourhoods,1107.14,Rents,2122P12_CR00612,133426
Sandwell Metropolitan Borough Council,http://www.sandwell.gov.uk/info/200202/performance_and_spending/1079/payments_over_500,01-Mar-2022,Housing & Communities,RIGHT TO CARE LTD.,Neighbourhoods,678.57,Rents,2122P12_CR00613,133426
Sandwell Metropolitan Borough Council,http://www.sandwell.gov.uk/info/200202/performance_and_spending/1079/payments_over_500,01-Mar-2022,Housing & Communities,RIGHT TO CARE LTD.,Neighbourhoods,1107.14,Rents,2122P12_CR00614,133426
Sandwell Metropolitan Borough Council,http://www.sandwell.gov.uk/info/200202/performance_and_spending/1079/payments_over_500,10-Mar-2022,Housing & Communities,SAMUEL AND CO ASSOCIATES LIMITED,Neighbourhoods,1575.00,Tenants Expenses,2122P12_CR00615,145942
Sandwell Metropolitan Borough Council,http://www.sandwell.gov.uk/info/200202/performance_and_spending/1079/payments_over_500,23-Mar-2022,Housing & Communities,SANCTUARY HOUSING ASSOCIATION LIMITED,Neighbourhoods,516.50,Tenants Expenses,2122P12_CR00616,117870
Sandwell Metropolitan Borough Council,http://www.sandwell.gov.uk/info/200202/performance_and_spending/1079/payments_over_500,09-Mar-2022,Housing & Communities,SANDWELL & WEST BIRMINGHAM HOSPITALS NHS TRUST,Neighbourhoods,22000.00,Grant Payments,2122P12_CR00617,1385
Sandwell Metropolitan Borough Council,http://www.sandwell.gov.uk/info/200202/performance_and_spending/1079/payments_over_500,01-Mar-2022,Housing & Communities,SANDWELL & WEST BIRMINGHAM HOSPITALS NHS TRUST,Neighbourhoods,5198.53,Waste Disposal Charges,2122P12_CR00618,1385
Sandwell Metropolitan Borough Council,http://www.sandwell.gov.uk/info/200202/performance_and_spending/1079/payments_over_500,09-Mar-2022,Housing & Communities,SANDWELL & WEST BIRMINGHAM HOSPITALS NHS TRUST,Neighbourhoods,5198.53,Waste Disposal Charges,2122P12_CR00619,1385
Sandwell Metropolitan Borough Council,http://www.sandwell.gov.uk/info/200202/performance_and_spending/1079/payments_over_500,09-Mar-2022,Housing & Communities,SANDWELL & WEST BIRMINGHAM HOSPITALS NHS TRUST,Neighbourhoods,5198.53,Waste Disposal Charges,2122P12_CR00620,1385
Sandwell Metropolitan Borough Council,http://www.sandwell.gov.uk/info/200202/performance_and_spending/1079/payments_over_500,08-Mar-2022,Housing & Communities,SANDWELL & WEST BIRMINGHAM HOSPITALS NHS TRUST,Neighbourhoods,5198.53,Waste Disposal Charges,2122P12_CR00621,1385
Sandwell Metropolitan Borough Council,http://www.sandwell.gov.uk/info/200202/performance_and_spending/1079/payments_over_500,08-Mar-2022,Housing & Communities,SANDWELL & WEST BIRMINGHAM HOSPITALS NHS TRUST,Neighbourhoods,5198.53,Waste Disposal Charges,2122P12_CR00622,1385
Sandwell Metropolitan Borough Council,http://www.sandwell.gov.uk/info/200202/performance_and_spending/1079/payments_over_500,01-Mar-2022,Housing & Communities,SANDWELL COLLEGE,Neighbourhoods,100000.00,ICT ,2122P12_CR00623,01529345
Sandwell Metropolitan Borough Council,http://www.sandwell.gov.uk/info/200202/performance_and_spending/1079/payments_over_500,01-Mar-2022,Housing & Communities,SANDWELL LIFT PROJECT COMPANY (NO 3) LIMITED,Neighbourhoods,111833.08,SH Payments,2122P12_CR00624,113986
Sandwell Metropolitan Borough Council,http://www.sandwell.gov.uk/info/200202/performance_and_spending/1079/payments_over_500,01-Mar-2022,Housing & Communities,SANDWELL LIFT PROJECT COMPANY (NO 3) LIMITED,Neighbourhoods,111833.10,SH Payments,2122P12_CR00625,113986
Sandwell Metropolitan Borough Council,http://www.sandwell.gov.uk/info/200202/performance_and_spending/1079/payments_over_500,01-Mar-2022,Housing & Communities,SERCO LIMITED,Neighbourhoods,1551943.62,Waste Disposal Charges,2122P12_CR00626,53771
Sandwell Metropolitan Borough Council,http://www.sandwell.gov.uk/info/200202/performance_and_spending/1079/payments_over_500,15-Mar-2022,Housing & Communities,SERCO LIMITED,Neighbourhoods,511451.46,Waste Disposal Charges,2122P12_CR00627,53771
Sandwell Metropolitan Borough Council,http://www.sandwell.gov.uk/info/200202/performance_and_spending/1079/payments_over_500,21-Mar-2022,Housing & Communities,SERCO LIMITED,Neighbourhoods,471499.03,Waste Disposal Charges,2122P12_CR00628,53771
Sandwell Metropolitan Borough Council,http://www.sandwell.gov.uk/info/200202/performance_and_spending/1079/payments_over_500,15-Mar-2022,Housing & Communities,SERCO LIMITED,Neighbourhoods,13137.69,Waste Disposal Charges,2122P12_CR00629,53771
Sandwell Metropolitan Borough Council,http://www.sandwell.gov.uk/info/200202/performance_and_spending/1079/payments_over_500,15-Mar-2022,Housing & Communities,SERCO LIMITED,Neighbourhoods,12932.85,Waste Disposal Charges,2122P12_CR00630,53771
Sandwell Metropolitan Borough Council,http://www.sandwell.gov.uk/info/200202/performance_and_spending/1079/payments_over_500,11-Mar-2022,Housing & Communities,SERCO LIMITED,Neighbourhoods,10301.20,Waste Disposal Charges,2122P12_CR00631,53771
Sandwell Metropolitan Borough Council,http://www.sandwell.gov.uk/info/200202/performance_and_spending/1079/payments_over_500,01-Mar-2022,Housing & Communities,SERCO LIMITED,Neighbourhoods,3395.00,Waste Disposal Charges,2122P12_CR00632,53771
Sandwell Metropolitan Borough Council,http://www.sandwell.gov.uk/info/200202/performance_and_spending/1079/payments_over_500,15-Mar-2022,Housing & Communities,SERCO LIMITED,Neighbourhoods,77700.23,Waste Disposal Charges,2122P12_CR00633,53771
Sandwell Metropolitan Borough Council,http://www.sandwell.gov.uk/info/200202/performance_and_spending/1079/payments_over_500,01-Mar-2022,Housing & Communities,SHARP,Neighbourhoods,2201.22,Rents,2122P12_CR00634,08280972
Sandwell Metropolitan Borough Council,http://www.sandwell.gov.uk/info/200202/performance_and_spending/1079/payments_over_500,01-Mar-2022,Housing & Communities,SHARP,Neighbourhoods,2201.22,Rents,2122P12_CR00635,08280972
Sandwell Metropolitan Borough Council,http://www.sandwell.gov.uk/info/200202/performance_and_spending/1079/payments_over_500,09-Mar-2022,Housing & Communities,SPECTRUM PLASTICS LTD,Neighbourhoods,626.00,"Printing, Stationery & General Office Expenses",2122P12_CR00636,2017
Sandwell Metropolitan Borough Council,http://www.sandwell.gov.uk/info/200202/performance_and_spending/1079/payments_over_500,01-Mar-2022,Housing & Communities,STAFFORDSHIRE COUNTY COUNCIL,Neighbourhoods,386789.36,Waste Disposal Charges,2122P12_CR00637,01124861
Sandwell Metropolitan Borough Council,http://www.sandwell.gov.uk/info/200202/performance_and_spending/1079/payments_over_500,08-Mar-2022,Housing & Communities,STERLING LETTING,Neighbourhoods,3613.00,Building Maintenance & Improvements,2122P12_CR00638,107807
Sandwell Metropolitan Borough Council,http://www.sandwell.gov.uk/info/200202/performance_and_spending/1079/payments_over_500,01-Mar-2022,Housing & Communities,STUDIO LODGE,Neighbourhoods,13975.00,Rents,2122P12_CR00639,138742
Sandwell Metropolitan Borough Council,http://www.sandwell.gov.uk/info/200202/performance_and_spending/1079/payments_over_500,01-Mar-2022,Housing & Communities,SUEZ RECYLING AND RECOVERY HOLDINGS UK LTD,Neighbourhoods,1280.14,Waste Disposal Charges,2122P12_CR00640,129939
Sandwell Metropolitan Borough Council,http://www.sandwell.gov.uk/info/200202/performance_and_spending/1079/payments_over_500,01-Mar-2022,Housing & Communities,SUPPORT WAREHOUSE LTD,Neighbourhoods,1189.92,ICT ,2122P12_CR00641,140978
Sandwell Metropolitan Borough Council,http://www.sandwell.gov.uk/info/200202/performance_and_spending/1079/payments_over_500,01-Mar-2022,Housing & Communities,TELETRAC NAVMAN (UK) LTD,Neighbourhoods,665.00,External Contract Hire,2122P12_CR00642,129341
Sandwell Metropolitan Borough Council,http://www.sandwell.gov.uk/info/200202/performance_and_spending/1079/payments_over_500,01-Mar-2022,Housing & Communities,THE SURVIVORS TRUST,Neighbourhoods,7000.00,Grant Payments,2122P12_CR00643,157660
Sandwell Metropolitan Borough Council,http://www.sandwell.gov.uk/info/200202/performance_and_spending/1079/payments_over_500,01-Mar-2022,Housing & Communities,TIPTON LITTERWATCH,Neighbourhoods,2000.00,Contract Cleaning,2122P12_CR00644,27921
Sandwell Metropolitan Borough Council,http://www.sandwell.gov.uk/info/200202/performance_and_spending/1079/payments_over_500,01-Mar-2022,Housing & Communities,TOTALENERGIES GAS & POWER LTD,Housing & Communities,11180.83,"CIP - New Construction,Conversion, Enhancement & Reno",2122P12_CR00645,107605
Sandwell Metropolitan Borough Council,http://www.sandwell.gov.uk/info/200202/performance_and_spending/1079/payments_over_500,01-Mar-2022,Housing & Communities,TOTALENERGIES GAS & POWER LTD,Housing & Communities,9339.31,"CIP - New Construction,Conversion, Enhancement & Reno",2122P12_CR00646,107605
Sandwell Metropolitan Borough Council,http://www.sandwell.gov.uk/info/200202/performance_and_spending/1079/payments_over_500,01-Mar-2022,Housing & Communities,TOTALENERGIES GAS & POWER LTD,Housing & Communities,3487.19,"CIP - New Construction,Conversion, Enhancement & Reno",2122P12_CR00647,107605
Sandwell Metropolitan Borough Council,http://www.sandwell.gov.uk/info/200202/performance_and_spending/1079/payments_over_500,01-Mar-2022,Housing & Communities,TOTALENERGIES GAS & POWER LTD,Housing & Communities,3573.71,"CIP - New Construction,Conversion, Enhancement & Reno",2122P12_CR00648,107605
Sandwell Metropolitan Borough Council,http://www.sandwell.gov.uk/info/200202/performance_and_spending/1079/payments_over_500,15-Mar-2022,Housing & Communities,TOTALENERGIES GAS & POWER LTD,Housing & Communities,18951.96,"CIP - New Construction,Conversion, Enhancement & Reno",2122P12_CR00649,107605
Sandwell Metropolitan Borough Council,http://www.sandwell.gov.uk/info/200202/performance_and_spending/1079/payments_over_500,15-Mar-2022,Housing & Communities,TOTALENERGIES GAS & POWER LTD,Housing & Communities,19166.98,"CIP - New Construction,Conversion, Enhancement & Reno",2122P12_CR00650,107605
Sandwell Metropolitan Borough Council,http://www.sandwell.gov.uk/info/200202/performance_and_spending/1079/payments_over_500,12-Mar-2022,Housing & Communities,TOTALENERGIES GAS & POWER LTD,Neighbourhoods,1154.04,Electricity,2122P12_CR00651,107605
Sandwell Metropolitan Borough Council,http://www.sandwell.gov.uk/info/200202/performance_and_spending/1079/payments_over_500,01-Mar-2022,Housing & Communities,TREDOMEN FARM LTD,Neighbourhoods,891.00,Externally Purchased Professional Services ,2122P12_CR00652,154259
Sandwell Metropolitan Borough Council,http://www.sandwell.gov.uk/info/200202/performance_and_spending/1079/payments_over_500,01-Mar-2022,Housing & Communities,TRH WALSALL LTD,Neighbourhoods,933.52,Rents,2122P12_CR00653,85648
Sandwell Metropolitan Borough Council,http://www.sandwell.gov.uk/info/200202/performance_and_spending/1079/payments_over_500,01-Mar-2022,Housing & Communities,TRH WALSALL LTD,Neighbourhoods,933.52,Rents,2122P12_CR00654,85648
Sandwell Metropolitan Borough Council,http://www.sandwell.gov.uk/info/200202/performance_and_spending/1079/payments_over_500,01-Mar-2022,Housing & Communities,TRH WALSALL LTD,Neighbourhoods,700.14,Rents,2122P12_CR00655,85648
Sandwell Metropolitan Borough Council,http://www.sandwell.gov.uk/info/200202/performance_and_spending/1079/payments_over_500,24-Mar-2022,Housing & Communities,TURF WORLD LIMITED,Neighbourhoods,1112.00,Materials & Consumables,2122P12_CR00656,130609
Sandwell Metropolitan Borough Council,http://www.sandwell.gov.uk/info/200202/performance_and_spending/1079/payments_over_500,22-Mar-2022,Housing & Communities,UNITE FIRE & SECURITY COMPANY LTD,Neighbourhoods,1746.00,Security,2122P12_CR00657,148200
Sandwell Metropolitan Borough Council,http://www.sandwell.gov.uk/info/200202/performance_and_spending/1079/payments_over_500,07-Mar-2022,Housing & Communities,UNITE FIRE & SECURITY COMPANY LTD,Neighbourhoods,817.00,Security,2122P12_CR00658,148200
Sandwell Metropolitan Borough Council,http://www.sandwell.gov.uk/info/200202/performance_and_spending/1079/payments_over_500,10-Mar-2022,Housing & Communities,USMAN BROTHERS LTD,Neighbourhoods,1500.00,Tenants Expenses,2122P12_CR00659,150320
Sandwell Metropolitan Borough Council,http://www.sandwell.gov.uk/info/200202/performance_and_spending/1079/payments_over_500,26-Mar-2022,Housing & Communities,VENDAID LTD,Neighbourhoods,1420.64,Catering Provisions,2122P12_CR00660,01045695
Sandwell Metropolitan Borough Council,http://www.sandwell.gov.uk/info/200202/performance_and_spending/1079/payments_over_500,01-Mar-2022,Housing & Communities,WATER PLUS SELECT LIMITED,Neighbourhoods,765.28,Water Services,2122P12_CR00661,129644
Sandwell Metropolitan Borough Council,http://www.sandwell.gov.uk/info/200202/performance_and_spending/1079/payments_over_500,01-Mar-2022,Housing & Communities,WATER PLUS SELECT LIMITED,Neighbourhoods,923.10,Water Services,2122P12_CR00662,129644
Sandwell Metropolitan Borough Council,http://www.sandwell.gov.uk/info/200202/performance_and_spending/1079/payments_over_500,01-Mar-2022,Housing & Communities,WATER PLUS SELECT LIMITED,Neighbourhoods,771.19,Water Services,2122P12_CR00663,129644
Sandwell Metropolitan Borough Council,http://www.sandwell.gov.uk/info/200202/performance_and_spending/1079/payments_over_500,01-Mar-2022,Housing & Communities,WATES CONSTRUCTION LTD                                ,Housing & Communities,474906.44,"CIP - New Construction,Conversion, Enhancement & Reno",2122P12_CR00664,77000882
Sandwell Metropolitan Borough Council,http://www.sandwell.gov.uk/info/200202/performance_and_spending/1079/payments_over_500,12-Mar-2022,Housing & Communities,WATES CONSTRUCTION LTD                                ,Housing & Communities,555741.02,"CIP - New Construction,Conversion, Enhancement & Reno",2122P12_CR00665,77000882
Sandwell Metropolitan Borough Council,http://www.sandwell.gov.uk/info/200202/performance_and_spending/1079/payments_over_500,28-Mar-2022,Housing & Communities,WATES CONSTRUCTION LTD                                ,Housing & Communities,467411.27,"CIP - New Construction,Conversion, Enhancement & Reno",2122P12_CR00666,77000882
Sandwell Metropolitan Borough Council,http://www.sandwell.gov.uk/info/200202/performance_and_spending/1079/payments_over_500,07-Mar-2022,Housing & Communities,WEST BROMWICH TOWN BID COMMUNITY INTEREST COMPANY,Neighbourhoods,23250.00,Contract Cleaning,2122P12_CR00667,122470
Sandwell Metropolitan Borough Council,http://www.sandwell.gov.uk/info/200202/performance_and_spending/1079/payments_over_500,01-Mar-2022,Housing & Communities,WEST MIDLANDS HOUSING SOLUTIONS LTD,Neighbourhoods,1440.00,Equipment & Furniture ,2122P12_CR00668,150318
Sandwell Metropolitan Borough Council,http://www.sandwell.gov.uk/info/200202/performance_and_spending/1079/payments_over_500,01-Mar-2022,Housing & Communities,WEST MIDLANDS HOUSING SOLUTIONS LTD,Neighbourhoods,3195.00,Equipment & Furniture ,2122P12_CR00669,150318
Sandwell Metropolitan Borough Council,http://www.sandwell.gov.uk/info/200202/performance_and_spending/1079/payments_over_500,01-Mar-2022,Housing & Communities,WILSON & SCOTT (HIGHWAYS) LIMITED,Neighbourhoods,3094.83,Operational Services ,2122P12_CR00670,114593
Sandwell Metropolitan Borough Council,http://www.sandwell.gov.uk/info/200202/performance_and_spending/1079/payments_over_500,11-Mar-2022,Housing & Communities,WYNDLEY AUCTION SALES LIMITED,Neighbourhoods,935.00,Equipment & Furniture ,2122P12_CR00671,162001
Sandwell Metropolitan Borough Council,http://www.sandwell.gov.uk/info/200202/performance_and_spending/1079/payments_over_500,12-Mar-2022,Housing & Communities,WYNNSTAY (AGRICULTURAL SUPPLIES) LIMITED,Neighbourhoods,3977.11,Civic Events,2122P12_CR00672,121165
Sandwell Metropolitan Borough Council,http://www.sandwell.gov.uk/info/200202/performance_and_spending/1079/payments_over_500,08-Mar-2022,Housing & Communities,WYNNSTAY (AGRICULTURAL SUPPLIES) LIMITED,Neighbourhoods,1567.47,Externally Purchased Professional Services ,2122P12_CR00673,121165
Sandwell Metropolitan Borough Council,http://www.sandwell.gov.uk/info/200202/performance_and_spending/1079/payments_over_500,01-Mar-2022,Housing & Communities,WYNNSTAY (AGRICULTURAL SUPPLIES) LIMITED,Neighbourhoods,715.27,Externally Purchased Professional Services ,2122P12_CR00674,121165
Sandwell Metropolitan Borough Council,http://www.sandwell.gov.uk/info/200202/performance_and_spending/1079/payments_over_500,01-Mar-2022,Housing & Communities,WYNNSTAY (AGRICULTURAL SUPPLIES) LIMITED,Neighbourhoods,1111.75,Externally Purchased Professional Services ,2122P12_CR00675,121165
Sandwell Metropolitan Borough Council,http://www.sandwell.gov.uk/info/200202/performance_and_spending/1079/payments_over_500,01-Mar-2022,Housing & Communities,WYNNSTAY (AGRICULTURAL SUPPLIES) LIMITED,Neighbourhoods,1975.52,Externally Purchased Professional Services ,2122P12_CR00676,121165
Sandwell Metropolitan Borough Council,http://www.sandwell.gov.uk/info/200202/performance_and_spending/1079/payments_over_500,07-Mar-2022,Housing & Communities,WYNNSTAY (AGRICULTURAL SUPPLIES) LIMITED,Neighbourhoods,1128.52,Externally Purchased Professional Services ,2122P12_CR00677,121165
Sandwell Metropolitan Borough Council,http://www.sandwell.gov.uk/info/200202/performance_and_spending/1079/payments_over_500,01-Mar-2022,Housing & Communities,XEROX FINANCE LTD,Neighbourhoods,2402.82,Equipment & Furniture ,2122P12_CR00678,2269
Sandwell Metropolitan Borough Council,http://www.sandwell.gov.uk/info/200202/performance_and_spending/1079/payments_over_500,10-Mar-2022,Housing & Communities,XMA LTD,Neighbourhoods,2058.00,ICT ,2122P12_CR00679,01135462
Sandwell Metropolitan Borough Council,http://www.sandwell.gov.uk/info/200202/performance_and_spending/1079/payments_over_500,01-Mar-2022,Housing & Communities,XMA LTD,Neighbourhoods,2598.00,ICT ,2122P12_CR00680,01135462
Sandwell Metropolitan Borough Council,http://www.sandwell.gov.uk/info/200202/performance_and_spending/1079/payments_over_500,30-Mar-2022,Housing & Communities,MERVYN R FORSTER,Neighbourhoods,2550.00,Externally Purchased Professional Services ,2122P12_CR00681,34762
Sandwell Metropolitan Borough Council,http://www.sandwell.gov.uk/info/200202/performance_and_spending/1079/payments_over_500,01-Mar-2022,Housing & Communities,REDACTED PERSONAL DATA,Neighbourhoods,3200.00,Rents,2122P12_CR00682,REDACTED PERSONAL DATA
Sandwell Metropolitan Borough Council,http://www.sandwell.gov.uk/info/200202/performance_and_spending/1079/payments_over_500,29-Mar-2022,Housing & Communities,A E HUDSON,Neighbourhoods,500.00,Rents,2122P12_CR00683,107342
Sandwell Metropolitan Borough Council,http://www.sandwell.gov.uk/info/200202/performance_and_spending/1079/payments_over_500,29-Mar-2022,Housing & Communities,A PRASHER,Neighbourhoods,500.00,Rents,2122P12_CR00684,112229
Sandwell Metropolitan Borough Council,http://www.sandwell.gov.uk/info/200202/performance_and_spending/1079/payments_over_500,29-Mar-2022,Housing & Communities,BALIJIT KAUR,Neighbourhoods,500.00,Rents,2122P12_CR00685,101860
Sandwell Metropolitan Borough Council,http://www.sandwell.gov.uk/info/200202/performance_and_spending/1079/payments_over_500,29-Mar-2022,Housing & Communities,BALJIT PUREWAL,Neighbourhoods,550.00,Rents,2122P12_CR00686,113595
Sandwell Metropolitan Borough Council,http://www.sandwell.gov.uk/info/200202/performance_and_spending/1079/payments_over_500,29-Mar-2022,Housing & Communities,BALWANT SINGH,Neighbourhoods,500.00,Rents,2122P12_CR00687,84433
Sandwell Metropolitan Borough Council,http://www.sandwell.gov.uk/info/200202/performance_and_spending/1079/payments_over_500,29-Mar-2022,Housing & Communities,CHRISTINE ANN CADDEN,Neighbourhoods,500.00,Rents,2122P12_CR00688,112728
Sandwell Metropolitan Borough Council,http://www.sandwell.gov.uk/info/200202/performance_and_spending/1079/payments_over_500,29-Mar-2022,Housing & Communities,ELEANOR MCGEE,Neighbourhoods,550.00,Rents,2122P12_CR00689,109162
Sandwell Metropolitan Borough Council,http://www.sandwell.gov.uk/info/200202/performance_and_spending/1079/payments_over_500,29-Mar-2022,Housing & Communities,J S GARCHA,Neighbourhoods,500.00,Rents,2122P12_CR00690,106491
Sandwell Metropolitan Borough Council,http://www.sandwell.gov.uk/info/200202/performance_and_spending/1079/payments_over_500,29-Mar-2022,Housing & Communities,LORNA DOUGLAS,Neighbourhoods,550.00,Rents,2122P12_CR00691,124809
Sandwell Metropolitan Borough Council,http://www.sandwell.gov.uk/info/200202/performance_and_spending/1079/payments_over_500,29-Mar-2022,Housing & Communities,MOHANAD ABBAS,Neighbourhoods,550.00,Rents,2122P12_CR00692,108876
Sandwell Metropolitan Borough Council,http://www.sandwell.gov.uk/info/200202/performance_and_spending/1079/payments_over_500,29-Mar-2022,Housing & Communities,Narinder singh.,Neighbourhoods,500.00,Rents,2122P12_CR00693,114091
Sandwell Metropolitan Borough Council,http://www.sandwell.gov.uk/info/200202/performance_and_spending/1079/payments_over_500,29-Mar-2022,Housing & Communities,SAKANDAR SINGH,Neighbourhoods,1000.00,Rents,2122P12_CR00694,117913
Sandwell Metropolitan Borough Council,http://www.sandwell.gov.uk/info/200202/performance_and_spending/1079/payments_over_500,17-Mar-2022,Housing & Communities,BRUSHSTROKES,Neighbourhoods,59719.00,Grant Payments,2122P12_CR00695,21029374
Sandwell Metropolitan Borough Council,http://www.sandwell.gov.uk/info/200202/performance_and_spending/1079/payments_over_500,01-Mar-2022,Housing & Communities,CAPE COMMUNITY CARE DAY CENTRE,Neighbourhoods,9250.00,Grant Payments,2122P12_CR00696,01693179
Sandwell Metropolitan Borough Council,http://www.sandwell.gov.uk/info/200202/performance_and_spending/1079/payments_over_500,22-Mar-2022,Housing & Communities,ILEYS COMMUNITY ASSOCIATION,Neighbourhoods,9500.00,Grant Payments,2122P12_CR00697,88247
Sandwell Metropolitan Borough Council,http://www.sandwell.gov.uk/info/200202/performance_and_spending/1079/payments_over_500,22-Mar-2022,Housing & Communities,KRUNCH UK,Neighbourhoods,5992.72,Grant Payments,2122P12_CR00698,08588452
Sandwell Metropolitan Borough Council,http://www.sandwell.gov.uk/info/200202/performance_and_spending/1079/payments_over_500,17-Mar-2022,Housing & Communities,S.C.V.O.,Neighbourhoods,115500.00,Grant Payments,2122P12_CR00699,109813
Sandwell Metropolitan Borough Council,http://www.sandwell.gov.uk/info/200202/performance_and_spending/1079/payments_over_500,30-Mar-2022,Housing & Communities,SANDWELL COMMUNITY INFORMATION AND PARTICIPATION SERVICE LIMITED,Neighbourhoods,5000.00,Grant Payments,2122P12_CR00700,01707456
Sandwell Metropolitan Borough Council,http://www.sandwell.gov.uk/info/200202/performance_and_spending/1079/payments_over_500,28-Mar-2022,Housing & Communities,SANDWELL COMMUNITY INFORMATION AND PARTICIPATION SERVICE LIMITED,Neighbourhoods,10000.00,Grant Payments,2122P12_CR00701,01707456
Sandwell Metropolitan Borough Council,http://www.sandwell.gov.uk/info/200202/performance_and_spending/1079/payments_over_500,15-Mar-2022,Housing & Communities,STEPWAY COMMUNITY BANKING,Neighbourhoods,6720.00,Grant Payments,2122P12_CR00702,162652
Sandwell Metropolitan Borough Council,http://www.sandwell.gov.uk/info/200202/performance_and_spending/1079/payments_over_500,01-Mar-2022,Housing Revenue Account Capital,AXIS EUROPE PLC ,Housing Revenue Account Capital,12185.41,Deferred Charges/Grant Payments,2122P12_CR00703,64946
Sandwell Metropolitan Borough Council,http://www.sandwell.gov.uk/info/200202/performance_and_spending/1079/payments_over_500,01-Mar-2022,Housing Revenue Account Capital,AXIS EUROPE PLC ,Housing Revenue Account Capital,6299.48,Deferred Charges/Grant Payments,2122P12_CR00704,64946
Sandwell Metropolitan Borough Council,http://www.sandwell.gov.uk/info/200202/performance_and_spending/1079/payments_over_500,01-Mar-2022,Housing Revenue Account Capital,AXIS EUROPE PLC ,Housing Revenue Account Capital,7879.60,Deferred Charges/Grant Payments,2122P12_CR00705,64946
Sandwell Metropolitan Borough Council,http://www.sandwell.gov.uk/info/200202/performance_and_spending/1079/payments_over_500,01-Mar-2022,Housing Revenue Account Capital,AXIS EUROPE PLC ,Housing Revenue Account Capital,5342.16,Deferred Charges/Grant Payments,2122P12_CR00706,64946
Sandwell Metropolitan Borough Council,http://www.sandwell.gov.uk/info/200202/performance_and_spending/1079/payments_over_500,01-Mar-2022,Housing Revenue Account Capital,AXIS EUROPE PLC ,Housing Revenue Account Capital,1980.00,Deferred Charges/Grant Payments,2122P12_CR00707,64946
Sandwell Metropolitan Borough Council,http://www.sandwell.gov.uk/info/200202/performance_and_spending/1079/payments_over_500,01-Mar-2022,Housing Revenue Account Capital,AXIS EUROPE PLC ,Housing Revenue Account Capital,9622.34,Deferred Charges/Grant Payments,2122P12_CR00708,64946
Sandwell Metropolitan Borough Council,http://www.sandwell.gov.uk/info/200202/performance_and_spending/1079/payments_over_500,01-Mar-2022,Housing Revenue Account Capital,AXIS EUROPE PLC ,Housing Revenue Account Capital,34913.80,Deferred Charges/Grant Payments,2122P12_CR00709,64946
Sandwell Metropolitan Borough Council,http://www.sandwell.gov.uk/info/200202/performance_and_spending/1079/payments_over_500,01-Mar-2022,Housing Revenue Account Capital,AXIS EUROPE PLC ,Housing Revenue Account Capital,5884.86,Deferred Charges/Grant Payments,2122P12_CR00710,64946
Sandwell Metropolitan Borough Council,http://www.sandwell.gov.uk/info/200202/performance_and_spending/1079/payments_over_500,01-Mar-2022,Housing Revenue Account Capital,AXIS EUROPE PLC ,Housing Revenue Account Capital,4569.82,Deferred Charges/Grant Payments,2122P12_CR00711,64946
Sandwell Metropolitan Borough Council,http://www.sandwell.gov.uk/info/200202/performance_and_spending/1079/payments_over_500,01-Mar-2022,Housing Revenue Account Capital,AXIS EUROPE PLC ,Housing Revenue Account Capital,5945.36,Deferred Charges/Grant Payments,2122P12_CR00712,64946
Sandwell Metropolitan Borough Council,http://www.sandwell.gov.uk/info/200202/performance_and_spending/1079/payments_over_500,01-Mar-2022,Housing Revenue Account Capital,AXIS EUROPE PLC ,Housing Revenue Account Capital,4983.91,Deferred Charges/Grant Payments,2122P12_CR00713,64946
Sandwell Metropolitan Borough Council,http://www.sandwell.gov.uk/info/200202/performance_and_spending/1079/payments_over_500,12-Mar-2022,Housing Revenue Account Capital,BESBLOCK LIMITED,Housing Revenue Account Capital,750.00,"CIP - New Construction,Conversion, Enhancement & Reno",2122P12_CR00714,136675
Sandwell Metropolitan Borough Council,http://www.sandwell.gov.uk/info/200202/performance_and_spending/1079/payments_over_500,01-Mar-2022,Housing Revenue Account Capital,CONNECT SERVICES BUILDING SOLUTIONS LTD,Housing Revenue Account Capital,29781.03,"CIP - New Construction,Conversion, Enhancement & Reno",2122P12_CR00715,141859
Sandwell Metropolitan Borough Council,http://www.sandwell.gov.uk/info/200202/performance_and_spending/1079/payments_over_500,01-Mar-2022,Housing Revenue Account Capital,DOLPHIN LIFTS MIDLANDS LTD,Housing Revenue Account Capital,1165.60,Deferred Charges/Grant Payments,2122P12_CR00716,123852
Sandwell Metropolitan Borough Council,http://www.sandwell.gov.uk/info/200202/performance_and_spending/1079/payments_over_500,01-Mar-2022,Housing Revenue Account Capital,FIXED FIREFIGHTING SYSTEMS BUREAU LTD,Housing Revenue Account Capital,850.82,"CIP - New Construction,Conversion, Enhancement & Reno",2122P12_CR00717,155527
Sandwell Metropolitan Borough Council,http://www.sandwell.gov.uk/info/200202/performance_and_spending/1079/payments_over_500,29-Mar-2022,Housing Revenue Account Capital,HIGGS LLP CLIENT ACCOUNT,Housing Revenue Account Capital,81233.00,CIP - Acquisition of Land & Existing Buildings,2122P12_CR00718,120965
Sandwell Metropolitan Borough Council,http://www.sandwell.gov.uk/info/200202/performance_and_spending/1079/payments_over_500,09-Mar-2022,Housing Revenue Account Capital,HIGGS LLP CLIENT ACCOUNT,Housing Revenue Account Capital,140223.00,CIP - Acquisition of Land & Existing Buildings,2122P12_CR00719,120965
Sandwell Metropolitan Borough Council,http://www.sandwell.gov.uk/info/200202/performance_and_spending/1079/payments_over_500,01-Mar-2022,Housing Revenue Account Capital,J MCCANN & CO LIMITED,Housing Revenue Account Capital,198125.28,CIP - Fixtures & Fittings,2122P12_CR00720,127457
Sandwell Metropolitan Borough Council,http://www.sandwell.gov.uk/info/200202/performance_and_spending/1079/payments_over_500,22-Mar-2022,Housing Revenue Account Capital,J MCCANN & CO LIMITED,Housing Revenue Account Capital,160661.87,CIP - Fixtures & Fittings,2122P12_CR00721,127457
Sandwell Metropolitan Borough Council,http://www.sandwell.gov.uk/info/200202/performance_and_spending/1079/payments_over_500,12-Mar-2022,Housing Revenue Account Capital,J.HARPER & SONS (LEOMINSTER) LIMITED,Housing Revenue Account Capital,248840.82,"CIP - New Construction,Conversion, Enhancement & Reno",2122P12_CR00722,111814
Sandwell Metropolitan Borough Council,http://www.sandwell.gov.uk/info/200202/performance_and_spending/1079/payments_over_500,01-Mar-2022,Housing Revenue Account Capital,LIFT & ENGINEERING SERVICES LTD,Housing Revenue Account Capital,1173.72,"CIP - New Construction,Conversion, Enhancement & Reno",2122P12_CR00723,77003962
Sandwell Metropolitan Borough Council,http://www.sandwell.gov.uk/info/200202/performance_and_spending/1079/payments_over_500,01-Mar-2022,Housing Revenue Account Capital,LIFT & ENGINEERING SERVICES LTD,Housing Revenue Account Capital,651.76,"CIP - New Construction,Conversion, Enhancement & Reno",2122P12_CR00724,77003962
Sandwell Metropolitan Borough Council,http://www.sandwell.gov.uk/info/200202/performance_and_spending/1079/payments_over_500,01-Mar-2022,Housing Revenue Account Capital,LOVELL PARTNERSHIPS  LTD,Housing Revenue Account Capital,66083.63,"CIP - New Construction,Conversion, Enhancement & Reno",2122P12_CR00725,77007398
Sandwell Metropolitan Borough Council,http://www.sandwell.gov.uk/info/200202/performance_and_spending/1079/payments_over_500,01-Mar-2022,Housing Revenue Account Capital,LOVELL PARTNERSHIPS  LTD,Housing Revenue Account Capital,99797.87,"CIP - New Construction,Conversion, Enhancement & Reno",2122P12_CR00726,77007398
Sandwell Metropolitan Borough Council,http://www.sandwell.gov.uk/info/200202/performance_and_spending/1079/payments_over_500,02-Mar-2022,Housing Revenue Account Capital,LOVELL PARTNERSHIPS  LTD,Housing Revenue Account Capital,96734.25,"CIP - New Construction,Conversion, Enhancement & Reno",2122P12_CR00727,77007398
Sandwell Metropolitan Borough Council,http://www.sandwell.gov.uk/info/200202/performance_and_spending/1079/payments_over_500,04-Mar-2022,Housing Revenue Account Capital,LOVELL PARTNERSHIPS  LTD,Housing Revenue Account Capital,115079.93,"CIP - New Construction,Conversion, Enhancement & Reno",2122P12_CR00728,77007398
Sandwell Metropolitan Borough Council,http://www.sandwell.gov.uk/info/200202/performance_and_spending/1079/payments_over_500,24-Mar-2022,Housing Revenue Account Capital,MOVECORP HOLDINGS LTD,Housing Revenue Account Capital,1370.00,Waste Disposal Charges,2122P12_CR00729,152623
Sandwell Metropolitan Borough Council,http://www.sandwell.gov.uk/info/200202/performance_and_spending/1079/payments_over_500,01-Mar-2022,Housing Revenue Account Capital,NATIONWIDE REMOVALS & STORAGE LTD T/A REMOVALS.CO.UK,Housing Revenue Account Capital,610.00,Hire of Facilities,2122P12_CR00730,123785
Sandwell Metropolitan Borough Council,http://www.sandwell.gov.uk/info/200202/performance_and_spending/1079/payments_over_500,01-Mar-2022,Housing Revenue Account Capital,NATIONWIDE REMOVALS & STORAGE LTD T/A REMOVALS.CO.UK,Housing Revenue Account Capital,1895.00,Waste Disposal Charges,2122P12_CR00731,123785
Sandwell Metropolitan Borough Council,http://www.sandwell.gov.uk/info/200202/performance_and_spending/1079/payments_over_500,01-Mar-2022,Housing Revenue Account Capital,NATIONWIDE REMOVALS & STORAGE LTD T/A REMOVALS.CO.UK,Housing Revenue Account Capital,710.00,Waste Disposal Charges,2122P12_CR00732,123785
Sandwell Metropolitan Borough Council,http://www.sandwell.gov.uk/info/200202/performance_and_spending/1079/payments_over_500,23-Mar-2022,Housing Revenue Account Capital,NATIONWIDE WINDOWS LIMITED,Housing Revenue Account Capital,24924.93,"CIP - New Construction,Conversion, Enhancement & Reno",2122P12_CR00733,108316
Sandwell Metropolitan Borough Council,http://www.sandwell.gov.uk/info/200202/performance_and_spending/1079/payments_over_500,01-Mar-2022,Housing Revenue Account Capital,POWRED HEATING COMPONENTS LIMITED,Housing Revenue Account Capital,1301.31,Materials & Consumables,2122P12_CR00734,133978
Sandwell Metropolitan Borough Council,http://www.sandwell.gov.uk/info/200202/performance_and_spending/1079/payments_over_500,01-Mar-2022,Housing Revenue Account Capital,POWRED HEATING COMPONENTS LIMITED,Housing Revenue Account Capital,1396.15,Materials & Consumables,2122P12_CR00735,133978
Sandwell Metropolitan Borough Council,http://www.sandwell.gov.uk/info/200202/performance_and_spending/1079/payments_over_500,01-Mar-2022,Housing Revenue Account Capital,POWRED HEATING COMPONENTS LIMITED,Housing Revenue Account Capital,2255.16,Materials & Consumables,2122P12_CR00736,133978
Sandwell Metropolitan Borough Council,http://www.sandwell.gov.uk/info/200202/performance_and_spending/1079/payments_over_500,01-Mar-2022,Housing Revenue Account Capital,POWRED HEATING COMPONENTS LIMITED,Housing Revenue Account Capital,2915.42,Materials & Consumables,2122P12_CR00737,133978
Sandwell Metropolitan Borough Council,http://www.sandwell.gov.uk/info/200202/performance_and_spending/1079/payments_over_500,01-Mar-2022,Housing Revenue Account Capital,POWRED HEATING COMPONENTS LIMITED,Housing Revenue Account Capital,3481.78,Materials & Consumables,2122P12_CR00738,133978
Sandwell Metropolitan Borough Council,http://www.sandwell.gov.uk/info/200202/performance_and_spending/1079/payments_over_500,01-Mar-2022,Housing Revenue Account Capital,POWRED HEATING COMPONENTS LIMITED,Housing Revenue Account Capital,4057.88,Materials & Consumables,2122P12_CR00739,133978
Sandwell Metropolitan Borough Council,http://www.sandwell.gov.uk/info/200202/performance_and_spending/1079/payments_over_500,01-Mar-2022,Housing Revenue Account Capital,POWRED HEATING COMPONENTS LIMITED,Housing Revenue Account Capital,4280.87,Materials & Consumables,2122P12_CR00740,133978
Sandwell Metropolitan Borough Council,http://www.sandwell.gov.uk/info/200202/performance_and_spending/1079/payments_over_500,01-Mar-2022,Housing Revenue Account Capital,POWRED HEATING COMPONENTS LIMITED,Housing Revenue Account Capital,4329.34,Materials & Consumables,2122P12_CR00741,133978
Sandwell Metropolitan Borough Council,http://www.sandwell.gov.uk/info/200202/performance_and_spending/1079/payments_over_500,01-Mar-2022,Housing Revenue Account Capital,POWRED HEATING COMPONENTS LIMITED,Housing Revenue Account Capital,4597.01,Materials & Consumables,2122P12_CR00742,133978
Sandwell Metropolitan Borough Council,http://www.sandwell.gov.uk/info/200202/performance_and_spending/1079/payments_over_500,01-Mar-2022,Housing Revenue Account Capital,POWRED HEATING COMPONENTS LIMITED,Housing Revenue Account Capital,4740.21,Materials & Consumables,2122P12_CR00743,133978
Sandwell Metropolitan Borough Council,http://www.sandwell.gov.uk/info/200202/performance_and_spending/1079/payments_over_500,01-Mar-2022,Housing Revenue Account Capital,POWRED HEATING COMPONENTS LIMITED,Housing Revenue Account Capital,6351.25,Materials & Consumables,2122P12_CR00744,133978
Sandwell Metropolitan Borough Council,http://www.sandwell.gov.uk/info/200202/performance_and_spending/1079/payments_over_500,01-Mar-2022,Housing Revenue Account Capital,PR PROPERTY MAINTENANCE,Housing Revenue Account Capital,6096.75,Deferred Charges/Grant Payments,2122P12_CR00745,33836
Sandwell Metropolitan Borough Council,http://www.sandwell.gov.uk/info/200202/performance_and_spending/1079/payments_over_500,01-Mar-2022,Housing Revenue Account Capital,PR PROPERTY MAINTENANCE,Housing Revenue Account Capital,25372.78,Deferred Charges/Grant Payments,2122P12_CR00746,33836
Sandwell Metropolitan Borough Council,http://www.sandwell.gov.uk/info/200202/performance_and_spending/1079/payments_over_500,01-Mar-2022,Housing Revenue Account Capital,PR PROPERTY MAINTENANCE,Housing Revenue Account Capital,8878.68,Deferred Charges/Grant Payments,2122P12_CR00747,33836
Sandwell Metropolitan Borough Council,http://www.sandwell.gov.uk/info/200202/performance_and_spending/1079/payments_over_500,01-Mar-2022,Housing Revenue Account Capital,PR PROPERTY MAINTENANCE,Housing Revenue Account Capital,7053.99,Deferred Charges/Grant Payments,2122P12_CR00748,33836
Sandwell Metropolitan Borough Council,http://www.sandwell.gov.uk/info/200202/performance_and_spending/1079/payments_over_500,11-Mar-2022,Housing Revenue Account Capital,PR PROPERTY MAINTENANCE,Housing Revenue Account Capital,8135.77,Deferred Charges/Grant Payments,2122P12_CR00749,33836
Sandwell Metropolitan Borough Council,http://www.sandwell.gov.uk/info/200202/performance_and_spending/1079/payments_over_500,01-Mar-2022,Housing Revenue Account Capital,PR PROPERTY MAINTENANCE,Housing Revenue Account Capital,41579.07,Deferred Charges/Grant Payments,2122P12_CR00750,33836
Sandwell Metropolitan Borough Council,http://www.sandwell.gov.uk/info/200202/performance_and_spending/1079/payments_over_500,01-Mar-2022,Housing Revenue Account Capital,PR PROPERTY MAINTENANCE,Housing Revenue Account Capital,26838.78,Deferred Charges/Grant Payments,2122P12_CR00751,33836
Sandwell Metropolitan Borough Council,http://www.sandwell.gov.uk/info/200202/performance_and_spending/1079/payments_over_500,01-Mar-2022,Housing Revenue Account Capital,PR PROPERTY MAINTENANCE,Housing Revenue Account Capital,24831.30,Deferred Charges/Grant Payments,2122P12_CR00752,33836
Sandwell Metropolitan Borough Council,http://www.sandwell.gov.uk/info/200202/performance_and_spending/1079/payments_over_500,01-Mar-2022,Housing Revenue Account Capital,PR PROPERTY MAINTENANCE,Housing Revenue Account Capital,29882.74,Deferred Charges/Grant Payments,2122P12_CR00753,33836
Sandwell Metropolitan Borough Council,http://www.sandwell.gov.uk/info/200202/performance_and_spending/1079/payments_over_500,01-Mar-2022,Housing Revenue Account Capital,PR PROPERTY MAINTENANCE,Housing Revenue Account Capital,24400.72,Deferred Charges/Grant Payments,2122P12_CR00754,33836
Sandwell Metropolitan Borough Council,http://www.sandwell.gov.uk/info/200202/performance_and_spending/1079/payments_over_500,01-Mar-2022,Housing Revenue Account Capital,PR PROPERTY MAINTENANCE,Housing Revenue Account Capital,9242.78,Deferred Charges/Grant Payments,2122P12_CR00755,33836
Sandwell Metropolitan Borough Council,http://www.sandwell.gov.uk/info/200202/performance_and_spending/1079/payments_over_500,15-Mar-2022,Housing Revenue Account Capital,PR PROPERTY MAINTENANCE,Housing Revenue Account Capital,9066.84,Deferred Charges/Grant Payments,2122P12_CR00756,33836
Sandwell Metropolitan Borough Council,http://www.sandwell.gov.uk/info/200202/performance_and_spending/1079/payments_over_500,01-Mar-2022,Housing Revenue Account Capital,RIDGE & PARTNERS LLP,Housing Revenue Account Capital,825.00,CIP - Acquisition of Land & Existing Buildings,2122P12_CR00757,134994
Sandwell Metropolitan Borough Council,http://www.sandwell.gov.uk/info/200202/performance_and_spending/1079/payments_over_500,11-Mar-2022,Housing Revenue Account Capital,SEDDON CONSTRUCTION LIMITED,Housing Revenue Account Capital,475641.04,"CIP - New Construction,Conversion, Enhancement & Reno",2122P12_CR00758,132999
Sandwell Metropolitan Borough Council,http://www.sandwell.gov.uk/info/200202/performance_and_spending/1079/payments_over_500,01-Mar-2022,Housing Revenue Account Capital,SEDDON CONSTRUCTION LIMITED,Housing Revenue Account Capital,281520.09,"CIP - New Construction,Conversion, Enhancement & Reno",2122P12_CR00759,132999
Sandwell Metropolitan Borough Council,http://www.sandwell.gov.uk/info/200202/performance_and_spending/1079/payments_over_500,01-Mar-2022,Housing Revenue Account Capital,SELECT WINDOWS (HOME IMPROVEMENTS) LIMITED,Housing Revenue Account Capital,992.18,Contract Payments,2122P12_CR00760,42616
Sandwell Metropolitan Borough Council,http://www.sandwell.gov.uk/info/200202/performance_and_spending/1079/payments_over_500,01-Mar-2022,Housing Revenue Account Capital,SELECT WINDOWS (HOME IMPROVEMENTS) LIMITED,Housing Revenue Account Capital,1092.18,Contract Payments,2122P12_CR00761,42616
Sandwell Metropolitan Borough Council,http://www.sandwell.gov.uk/info/200202/performance_and_spending/1079/payments_over_500,01-Mar-2022,Housing Revenue Account Capital,SELECT WINDOWS (HOME IMPROVEMENTS) LIMITED,Housing Revenue Account Capital,712.13,Contract Payments,2122P12_CR00762,42616
Sandwell Metropolitan Borough Council,http://www.sandwell.gov.uk/info/200202/performance_and_spending/1079/payments_over_500,01-Mar-2022,Housing Revenue Account Capital,SELECT WINDOWS (HOME IMPROVEMENTS) LIMITED,Housing Revenue Account Capital,1017.30,Contract Payments,2122P12_CR00763,42616
Sandwell Metropolitan Borough Council,http://www.sandwell.gov.uk/info/200202/performance_and_spending/1079/payments_over_500,01-Mar-2022,Housing Revenue Account Capital,SELECT WINDOWS (HOME IMPROVEMENTS) LIMITED,Housing Revenue Account Capital,697.91,Contract Payments,2122P12_CR00764,42616
Sandwell Metropolitan Borough Council,http://www.sandwell.gov.uk/info/200202/performance_and_spending/1079/payments_over_500,01-Mar-2022,Housing Revenue Account Capital,SELECT WINDOWS (HOME IMPROVEMENTS) LIMITED,Housing Revenue Account Capital,1104.19,Contract Payments,2122P12_CR00765,42616
Sandwell Metropolitan Borough Council,http://www.sandwell.gov.uk/info/200202/performance_and_spending/1079/payments_over_500,01-Mar-2022,Housing Revenue Account Capital,SELECT WINDOWS (HOME IMPROVEMENTS) LIMITED,Housing Revenue Account Capital,595.04,Contract Payments,2122P12_CR00766,42616
Sandwell Metropolitan Borough Council,http://www.sandwell.gov.uk/info/200202/performance_and_spending/1079/payments_over_500,01-Mar-2022,Housing Revenue Account Capital,SELECT WINDOWS (HOME IMPROVEMENTS) LIMITED,Housing Revenue Account Capital,938.17,Contract Payments,2122P12_CR00767,42616
Sandwell Metropolitan Borough Council,http://www.sandwell.gov.uk/info/200202/performance_and_spending/1079/payments_over_500,01-Mar-2022,Housing Revenue Account Capital,SELECT WINDOWS (HOME IMPROVEMENTS) LIMITED,Housing Revenue Account Capital,750.62,Contract Payments,2122P12_CR00768,42616
